Workbook

Sheet Title Page
A1: U.S. EPA Office of Ground Water and Drinking Water
A2: Work Breakdown Structure (WBS) Model for Biological Ttreatment
A3: Release Date: March 2023
A4: · The primary purpose of this model is to assist EPA in estimating national compliance costs.
A5: · As such, the costs are intended to be representative of the central tendency of typical facilities.
A6: · The default settings, however, do not account for all of the site-specific factors that could affect the cost of any given individual facility or project.
A7: · Still, other uses of the model might be reasonable if sufficient care is taken by the user to account for site- or project-specific factors.
A8: · The model results are point estimates shown to the nearest $1, but this precision is not meant to imply that the results are accurate to $1.
A9: · Instead, users should review all documentation, modify inputs/assumptions as appropriate to their specific purpose, and form their own informed opinions about the accuracy and suitability of the results.
A10: · Use of this model requires Excel 2007 or later.
A11: · The model should be opened as Read-only, so that any changes you make are saved under a new file name.
A12: · To function properly, macros ("active content") must be enabled. If a security warning appears, click "options" and "enable this content."
A13: · For further information see the following document distributed with this file:
A14: USEPA. 2023. Work Breakdown Structure-Based Cost Model for Biological Drinking Water Treatment. Office of Water.
A15: · To begin using the model, go to the INPUT sheet.

Sheet Index
A1: INDEX
A2: This page provides an index to all user-adjustable inputs and assumptions. Click on a variable name to go directly to the adjustable cells.
A4: User-adjustable Input or Assumption | B4: Variable Name and Link
A5: Access space per pump for custom designed systems | B5: space_pumps_cust
A6: Access space per pump for pre-engineered packages | B6: space_pumps_pre
A7: Acetic Acid density | B7: CH3NOOH_dens
A8: Acetic Acid solution strength | B8: CH3NOOH_strength
A9: Add a redundant bioreactor per x parallel lines for fixed bed pressure vessel designs | B9: redund_freq
A10: Add a redundant bioreactor per x parallel lines for fluidized bed designs | B10: redund_freq_fluid
A11: Add ferric chloride to holding tank? | B11: coag_res
A12: Add polymer to holding tank? | B12: polymer_res
A13: Additional blower head above water level | B13: add_blow_head
A14: Additional building after… | B14: add_2nd_building
A15: Additional freeboard | B15: sec_cont_freeboard
A16: Additional sampling ports | B16: add_ports
A17: Additional turbididy meters | B17: add_turb
A18: Administrative LOE as a percent of average technical labor | B18: Clerical_percent
A19: Aeration Rate | B19: rate_aeration
A20: Aeration Tank Residence Time | B20: hrt_aeration
A21: Air conditioning EER | B21: EER
A22: Air scour time | B22: air_scour_time
A23: Air scour volume | B23: air_scour_vol
A24: Always include NEPA compliance costs? | B24: include_NEPA
A25: Ammonium Chloride density | B25: NH4CL_dens
A26: Ammonium chloride dose | B26: NH4Cl_dose_I
A27: Annual contactor materials cost as a percent of capital | B27: Materials_pct
A28: Annual cooling degree days | B28: cool_DD
A29: Annual heating degree days | B29: heat_DD
A30: Anthracite density | B30: anthracite_density
A31: Apply POTW discharge base charge (i.e., $/month) | B31: POTW_base_fee
A32: Apply POTW discharge TSS charge (i.e., $/lb of TSS over limit below) | B32: POTW_TSS_fee
A33: Apply POTW discharge volume charge (i.e., $/1000 gallons) | B33: POTW_volume_fee
A34: Average annual pan evaporation rate | B34: pan_evap
A35: Average annual precipitation | B35: precip
A36: Average Flow (including bypass) | B36: average_flow_I
A37: Backwash pipe length multiplier | B37: back_pipe_mult
A38: Backwash pump head | B38: back_pump_head
A39: Basin excavation depth above which deeper boreholes are needed | B39: deep_bore_need
A40: Basin freeboard above filter media at full expansion | B40: basin_freeboard
A41: Basin freeboard above filter media at full expansion | B41: filt_freeboard
A42: Bed Depth for Filtration < 0.1 MGD | B42: bed_depth_filt_small
A43: Bed Depth for Filtration > 10 MGD | B43: bed_depth_filt_large
A44: Bed Depth for Filtration 0.1 MGD-10 MGD | B44: bed_depth_filt
A45: Bed Depth or Static bed depth | B45: bed_depth
A46: Bed expansion during backwash | B46: bed_expansion
A47: Bed expansion during backwash | B47: filt_bed_expansion
A48: Bedding depth below pipe | B48: bedding_depth
A49: Bedding depth surrounding the pipe | B49: bedding_pct
A50: Biomass generation | B50: biomass_I
A51: Biomass Seperator Air Scour Volume for fluidized beds | B51: biomass_air_scour
A52: Bioreactor backwash time | B52: backwash_time
A53: Bioreactor water backwash rate | B53: h2oflush_backwash_rate
A54: Blower efficiency | B54: blower_effcy
A55: Booster Pump efficiency | B55: booster_pump_efficiency
A56: Borehole depth (pressure systems) | B56: bore_depth_p
A57: Borehole depth for deep basins | B57: bore_depth_max
A58: Borehole depth for shallow basins | B58: bore_depth_min
A59: Borehole needed every x square feet | B59: hole_per_sf
A60: Boreholes per job | B60: hole_per_job
A61: Builder's risk insurance percentage | B61: br_ins_pct
A62: Bypass pipe length multiplier | B62: bp_pipe_mult
A63: Chemical pipe length multiplier | B63: chem_pipe_mult
A64: Chemical resistant coating coverage | B64: sec_cont_coating_cvg
A65: Chemical tank mixer horsepower | B65: cmix_hp_per
A66: City index | B66: city_index
A67: Clean holding tanks/basins when solids accumulation =x% of capacity | B67: htank_clean_pct
A68: Clearance space beneath the ceiling | B68: ceiling_clearance
A69: Coagulant dosage prior to post-treatment filtration | B69: coag_dose_filt
A70: Coagulant mix tank mixer horsepower | B70: mix_hp_per
A71: Coagulant mix time prior to filtration | B71: coag_mix_time
A72: Coagulant solution concentration | B72: coag_pct_filt
A73: Coagulant solution density | B73: coag_density_filt
A74: Coefficient of passive pressure | B74: Coeff_Kp
A75: Computer workstations per x operators | B75: workstation_ratio
A76: Concrete pad thickness | B76: pad_thick
A77: Concrete pad thickness for small systems | B77: pad_thick_small
A78: Concrete thickness for storage basins | B78: conc_thick
A79: Cooling table for buildings 500 square feet or greater | B79: cooling_table
A80: Cooling table for buildings less than 500 ft2 | B80: cooling_table_shed
A81: Cooling ventilation/infiltration load | B81: cool_viload
A82: Cost estimating method | B82: curve
A83: Cost for parts & maintenance for pumps and blowers | B83: booster_pump_maintenance
A84: Days of chemical storage for all other chemicals | B84: chem_storage
A85: Days of chemical storage for H2O2 | B85: H2O2_days
A86: Days of coagulant storage | B86: cstore_days
A87: Days of winter (i.e., days of storage during periods with no net evaporation) | B87: winter_days
A88: Default number of residuals basins | B88: hbasins_default
A89: Default number of thickener basins | B89: thick_basins_default
A90: Design Flow (including bypass) | B90: design_flow_I
A91: Design safety factor for standby power | B91: std_safety_factor
A92: Diameter | B92: comm_diam
A93: Diluted concentration to be fed | B93: H2O2_dilute_conc
A94: Disposal method for non-hazardous secondary solids | B94: solids_method
A95: Distance to discharge or recycle point | B95: add_res_pipe_length
A96: Drive controllers per backwash pump and air scour blower | B96: S_back_pump
A97: Drive controllers per booster pump | B97: S_booster_pump
A98: Drive controllers per chemical metering pump | B98: S_cm_pump
A99: Drive controllers per eductor | B99: S_eductor
A100: Drive controllers per mixer | B100: S_mixer
A101: Drive controllers per recycle pump | B101: S_recycle_pump
A102: Drive controllers per residuals pump | B102: S_res_pump
A103: EBCT for Filtration | B103: ebct_filt
A104: Electric resistance heating efficiency | B104: resist_eff
A105: Electrical percentage | B105: elect_pct
A106: Electron donor dose | B106: e_donor_dose_I
A107: Electron donor type | B107: e_donor_type_I
A108: Engineering percentage for large systems | B108: eng_pct_large
A109: Engineering percentage for medium systems | B109: eng_pct_medium
A110: Engineering percentage for small systems | B110: eng_pct_small
A111: Ethanol density | B111: ethanol_dens
A112: Ethernet modules | B112: plc_ethernet
A113: Evaporation pond dike cross-sectional area | B113: dike_xsection
A114: Evaporation pond freeboard | B114: ep_freeboard
A115: Evaporation pond safety factor | B115: ep_safety_factor
A116: Evaporation pond solids density | B116: ep_solids_density
A117: Evaporation pond solids removal frequency | B117: dredging_freq
A118: Evaporation ratio | B118: evap_ratio
A119: Ferric chloride dosage for residuals | B119: coag_dose
A120: Ferric chloride sludge production factor | B120: coag_spf
A121: Ferric chloride solution concentration | B121: coag_pct
A122: Ferric chloride solution density | B122: coag_density
A123: Filter backwash time | B123: filter_backwash_time
A124: Filter loading rate maximum | B124: load_max_filt
A125: Filter loading rate minimum | B125: load_min_filt
A126: Filter water backwash rate | B126: filter_h2oflush_backwash_rate
A127: Financing percentage | B127: finance_pct
A128: Financing percentage for small systems | B128: finance_pct_small
A129: Fire Buffer for Buildings | B129: fire_buffer
A130: Flow meters for backwash line | B130: tot_fm_back
A131: Flow meters for influent and treated water line | B131: tot_fm_in
A132: Flow meters for process line per vessel | B132: fm_proc
A133: Flow meters for residuals line | B133: tot_fm_res
A134: For chemical supply systems | B134: uloe_chem_maint
A135: For instruments (includes calibration) | B135: uloe_inst_maint
A136: For pumps | B136: uloe_pump_maint
A137: For valves | B137: uloe_valve_maint
A138: Fraction of media anthracite | B138: anthracite_fraction
A139: Fraction of media GAC | B139: GAC_fraction
A140: Fraction of media garnet/ilmenite | B140: garnet_fraction
A141: Fraction of media sand | B141: sand_fraction
A142: Free board above media at full expansion (fixed bed designs) | B142: free_board
A143: Freeboard above fully expanded media (Design < 1MGD) | B143: freeboard_fluidized_small
A144: Freeboard above fully expanded media (Design > 1MGD) | B144: freeboard_fluidized
A145: Frost depth | B145: frost
A146: GAC bulk density | B146: GAC_density
A147: Garnet density | B147: garnet_density
A148: Head loss sensors per vessel | B148: head_tank
A149: Heat pump cooling mode EER | B149: hp_EER
A150: Heat pump heating coefficient of performance | B150: COP
A151: Heating oil heat content | B151: diesel_heat_content
A152: Heating table for buildings 500 square feet or greater | B152: heating_table
A153: Heating table for buildings less than 500 ft2 | B153: heating_table_shed
A154: Heating ventilation/infiltration load | B154: heat_viload
A155: Height (straight) or Length (straight) | B155: comm_height_length
A156: High/Low alarm for backwash tank | B156: alarm_back
A157: High/Low alarms for chemical tank | B157: alarm_chem
A158: High/Low alarms per holding tank | B158: alarm_res
A159: Holding basin depth to volume ratio | B159: holding_ratio
A160: Holding basin freeboard | B160: holding_freeboard
A161: Holding tank/basin capacity safety factor | B161: res_cap_factor
A162: Holding tank/basin mixer horsepower (if coagulant is used) | B162: hmix_hp_per
A163: Holding tank/basin solids density | B163: ht_solids_density
A164: Holding tank/basin solids transfer method | B164: res_transfer_method
A165: Holding tank/basin suspended solids removal efficiency with coagulant | B165: coag_TSSrem
A166: Holding tank/basin suspended solids removal efficiency without coagulant | B166: htank_TSSrem
A167: Hours per media changeout | B167: uloe_throwaway
A168: Hydraulic residence time (HRT) or Theoretical total empty bed contact time (EBCT) | B168: ebct_I
A169: Hydrogen Peroxide Dose | B169: H2O2_dose
A170: I/O port table | B170: port_table
A171: Include a separate day tank if daily volume is x or greater | B171: day_tank_needed
A172: Include architectural fee for small systems? | B172: include_arch_small
A173: Include architectural fee? | B173: include_arch
A174: Include concrete pad in total capital cost? | B174: include_pad
A175: Include construction management cost for pre-engineered packages? | B175: include_cm_pre
A176: Include construction management cost? | B176: include_cm
A177: Include contingency costs for high cost systems? | B177: include_conting_high
A178: Include contingency costs for low cost systems? | B178: include_conting_low
A179: Include contingency costs for medium cost systems? | B179: include_conting_medium
A180: Include cooling in standby power | B180: need_cool
A181: Include geotechnical costs for high cost systems? | B181: include_geo_high
A182: Include geotechnical costs for low cost systems? | B182: include_geo_low
A183: Include geotechnical costs for medium cost systems? | B183: include_geo_medium
A184: Include heating in standby power | B184: need_heat
A185: Include mixers for chemical tanks | B185: include_cmix
A186: Include performance bond cost? | B186: include_bond
A187: Include permit costs? | B187: include_permits
A188: Include pilot study costs? | B188: include_pilot
A189: Include secondary containment | B189: include_sec_cont
A190: Include sitework costs? | B190: include_sitework
A191: Include standby power costs for small systems? | B191: include_standby_small
A192: Include standby power costs? | B192: include_standby
A193: Include yard piping costs? | B193: include_yardpipe
A194: Influent and treated water pipe length multiplier | B194: in_out_pipe_mult
A195: Influent dissolved oxygen concentration | B195: O2_in
A196: Influent nitrate-nitrogen concentration | B196: NO3_in
A197: Influent perchlorate concentration | B197: ClO4_in
A198: Installation, Transportatation, and O&P percentage | B198: inst_pct
A199: Instrumentation and control percentage | B199: i_c_pct
A200: Labor hours per week for contact basins | B200: Weekly_labor
A201: Legal percentage | B201: legal_pct
... 181 more rows

Sheet INPUT
A1: BIOTREATMENT SYSTEM DESIGN AND COST INPUT
E2: STEP 1
E3: Select Target Contaminant | H3: =IF(contam<>3,"","For other contaminants, the buttons shown in Step 3 will enter flows only, and clear all other inputs. Advanced users can change this behavior by entering inputs on the Standard Inputs sheet") -> 
E5: STEP 2
E6: Select Bioreactor Design Type
E8: STEP 3 | H8: =IF(OR('Standard Inputs'!BE9,'Standard Inputs'!BE17,'Standard Inputs'!BE25,'Standard Inputs'!BE33,'Standard Inputs'!BE41,'Standard Inputs'!BE49,'Standard Inputs'!BE57,'Standard Inputs'!BE65,'Standard Inputs'!BE73),"<- Using this design",IF(OR('Standard Inputs'!BF9,'Standard Inputs'!BF17,'Standard Inputs'!BF25,'Standard Inputs'!BF33,'Standard Inputs'!BF41,'Standard Inputs'!BF49,'Standard Inputs'!BF57,'Standard Inputs'!BF65,'Standard Inputs'!BF73),"<- You modified this design","")) -> <- Using this design | I8: The standard design buttons are for EPA's use in estimating national costs, but other users might find them useful as a starting point. See documentation for more information
E9: Select one of the eight standard designs at right OR select "CLEAR FOR MANUAL ENTRY" | H9: =IF(OR('Standard Inputs'!BE10,'Standard Inputs'!BE18,'Standard Inputs'!BE26,'Standard Inputs'!BE34,'Standard Inputs'!BE42,'Standard Inputs'!BE50,'Standard Inputs'!BE58,'Standard Inputs'!BE66,'Standard Inputs'!BE74),"<- Using this design",IF(OR('Standard Inputs'!BF10,'Standard Inputs'!BF18,'Standard Inputs'!BF26,'Standard Inputs'!BF34,'Standard Inputs'!BF42,'Standard Inputs'!BF50,'Standard Inputs'!BF58,'Standard Inputs'!BF66,'Standard Inputs'!BF74),"<- You modified this design","")) -> 
H10: =IF(OR('Standard Inputs'!BE11,'Standard Inputs'!BE19,'Standard Inputs'!BE27,'Standard Inputs'!BE35,'Standard Inputs'!BE43,'Standard Inputs'!BE51,'Standard Inputs'!BE59,'Standard Inputs'!BE67,'Standard Inputs'!BE75),"<- Using this design",IF(OR('Standard Inputs'!BF11,'Standard Inputs'!BF19,'Standard Inputs'!BF27,'Standard Inputs'!BF35,'Standard Inputs'!BF43,'Standard Inputs'!BF51,'Standard Inputs'!BF59,'Standard Inputs'!BF67,'Standard Inputs'!BF75),"<- You modified this design","")) -> 
H11: =IF(OR('Standard Inputs'!BE12,'Standard Inputs'!BE20,'Standard Inputs'!BE28,'Standard Inputs'!BE36,'Standard Inputs'!BE44,'Standard Inputs'!BE52,'Standard Inputs'!BE60,'Standard Inputs'!BE68,'Standard Inputs'!BE76),"<- Using this design",IF(OR('Standard Inputs'!BF12,'Standard Inputs'!BF20,'Standard Inputs'!BF28,'Standard Inputs'!BF36,'Standard Inputs'!BF44,'Standard Inputs'!BF52,'Standard Inputs'!BF60,'Standard Inputs'!BF68,'Standard Inputs'!BF76),"<- You modified this design","")) -> 
H12: =IF(OR('Standard Inputs'!BE13,'Standard Inputs'!BE21,'Standard Inputs'!BE29,'Standard Inputs'!BE37,'Standard Inputs'!BE45,'Standard Inputs'!BE53,'Standard Inputs'!BE61,'Standard Inputs'!BE69,'Standard Inputs'!BE77),"<- Using this design",IF(OR('Standard Inputs'!BF13,'Standard Inputs'!BF21,'Standard Inputs'!BF29,'Standard Inputs'!BF37,'Standard Inputs'!BF45,'Standard Inputs'!BF53,'Standard Inputs'!BF61,'Standard Inputs'!BF69,'Standard Inputs'!BF77),"<- You modified this design","")) -> 
H13: =IF(OR('Standard Inputs'!BE14,'Standard Inputs'!BE22,'Standard Inputs'!BE30,'Standard Inputs'!BE38,'Standard Inputs'!BE46,'Standard Inputs'!BE54,'Standard Inputs'!BE62,'Standard Inputs'!BE70,'Standard Inputs'!BE78),"<- Using this design",IF(OR('Standard Inputs'!BF14,'Standard Inputs'!BF22,'Standard Inputs'!BF30,'Standard Inputs'!BF38,'Standard Inputs'!BF46,'Standard Inputs'!BF54,'Standard Inputs'!BF62,'Standard Inputs'!BF70,'Standard Inputs'!BF78),"<- You modified this design","")) -> 
H14: =IF(OR('Standard Inputs'!BE15,'Standard Inputs'!BE23,'Standard Inputs'!BE31,'Standard Inputs'!BE39,'Standard Inputs'!BE47,'Standard Inputs'!BE55,'Standard Inputs'!BE63,'Standard Inputs'!BE71,'Standard Inputs'!BE79),"<- Using this design",IF(OR('Standard Inputs'!BF15,'Standard Inputs'!BF23,'Standard Inputs'!BF31,'Standard Inputs'!BF39,'Standard Inputs'!BF47,'Standard Inputs'!BF55,'Standard Inputs'!BF63,'Standard Inputs'!BF71,'Standard Inputs'!BF79),"<- You modified this design","")) -> 
H15: =IF(OR('Standard Inputs'!BE16,'Standard Inputs'!BE24,'Standard Inputs'!BE32,'Standard Inputs'!BE40,'Standard Inputs'!BE48,'Standard Inputs'!BE56,'Standard Inputs'!BE64,'Standard Inputs'!BE72,'Standard Inputs'!BE80),"<- Using this design",IF(OR('Standard Inputs'!BF16,'Standard Inputs'!BF24,'Standard Inputs'!BF32,'Standard Inputs'!BF40,'Standard Inputs'!BF48,'Standard Inputs'!BF56,'Standard Inputs'!BF64,'Standard Inputs'!BF72,'Standard Inputs'!BF80),"<- You modified this design","")) -> 
H16: =IF(COUNTIF(H8:H15,"")=8,"Using a manual design","") ->  | I16: =IF(COUNTIF(H8:H15,"")=8,"Fill in all gold cells below, then consider using AutoSize button","") -> 
G18: =IF(input_complete,IF('Standard Inputs'!BE83,"Input Complete -- Results Ready","Input Complete--Press 'Generate Results'"),"Input Incomplete--Check for Error Messages Below") -> Input Complete -- Results Ready | I18: =IF(C19,"","Fill in all gold cells below. If errors persist, consider using AutoSize button.") -> 
C19: =AND(C35:C142) -> TRUE | E19: (Optional for standard designs)
E20: Enter or change values in the gold and blue cells below, under "Manual Inputs"
E22: STEP 4: | I22: ="Resulting Costs (in year "&TEXT(current_year_cl,0)&" dollars, see OUTPUT sheet for details)" -> Resulting Costs (in year 2021 dollars, see OUTPUT sheet for details)
E23: =IF(G18="input complete -- results ready","Results are ready (no need to click button)","Click here to generate results -->") -> Results are ready (no need to click button) | I23: ="Direct Capital Cost: " & IF(input_status<>"input complete -- results ready",input_status,IF(Missing_Cost,"Missing cost!",IF(cost_buildup_error,"Cost buildup error!",IF(ISERROR(direct_cost),"Calculation error!",TEXT(direct_cost,"$0,0"))))) -> Direct Capital Cost: $270,117
I24: ="Total Capital Cost: " & IF(input_status<>"input complete -- results ready",input_status,IF(Missing_Cost,"Missing cost!",IF(cost_buildup_error,"Cost buildup error!",IF(ISERROR(system_cost),"Calculation error!",TEXT(system_cost,"$0,0"))))) -> Total Capital Cost: $529,900
I25: ="Annualized Capital Cost: "&IF(input_status<>"Input Complete -- Results Ready",input_status,IF(Missing_Cost,"Missing Price!",IF(cost_buildup_error,"Cost buildup error!",IF(ISERROR(Annualized_Capital_Cost),"Calculation error!",TEXT(Annualized_Capital_Cost,"$0,0")&" per year"&" (over "&useful_life&" years at "&Discount_rate*100&"%)")))) -> Annualized Capital Cost: $53,775 per year (over 17.3 years at 7%)
I26: ="Annual O&M Cost: "&IF(input_status<>"input complete -- results ready",input_status,IF(ISERROR(om_cost),"Calculation error!",TEXT(om_cost,"$0,0")&" per year")) -> Annual O&M Cost: $31,225 per year
E27: MANUAL INPUTS | I27: ="Total Annualized Cost: "&IF(input_status<>"input complete -- results ready",input_status,IF(Missing_Cost,"Missing Price!",IF(cost_buildup_error,"Cost buildup error!",IF(ISERROR(Annualized_Cost),"Calculation error!",TEXT(Annualized_Cost,"$0,0")&" per year ("&TEXT(TAC_pct_cap,"0%")&" capital, "&TEXT(TAC_pct_OM,"0%")&" O&M)")))) -> Total Annualized Cost: $84,999 per year (63% capital, 37% O&M)
E28: Cells in gold are required; cells in blue are optional | I28: =IF(input_status="Input Incomplete -- check for error messages below","",IF(Missing_Cost,"A price is not available for at least one required component. See Use? column on OUTPUT sheet.",IF(cost_buildup_error,"There is an Excel error in the price for at least one component. Please see the Use? column on OUTPUT sheet.",""))) -> 
B29: Used? | C29: Valid input? | D29: Invalid reason? | H29: Select units
E30: Design Flow (including bypass) | F30: design_flow_I | G30: 0.03 | H30: MGD
E31: Average Flow (including bypass) | F31: average_flow_I | G31: 0.007 | H31: MGD
E33: Treatment system design flow | G33: =IF(ISERROR(design_flow),"",IF(df_units="gpm",design_flow_rate, design_flow)) -> 0.03 | H33: =df_units -> MGD
E34: Bypass design flow | G34: =IF(ISERROR(design_flow),"",IF(df_units="gpm",bp_flow_rate, bp_flow_rate*60*24/10^6)) -> 0 | H34: =df_units -> MGD | I34: ="Current bypass percentage is "&TEXT(bp_pct,"0%")&". Go to Critical Design Assumptions to change this value." -> Current bypass percentage is 0%. Go to Critical Design Assumptions to change this value.
C35: =IF(OR(df_units="",af_units=""),FALSE,IF(OR(average_flow>design_flow,average_flow<design_flow*min_avg_flow),FALSE,IF(OR(design_flow_I=0,average_flow_I=0),FALSE,TRUE))) -> TRUE | D35: =IF(OR(df_units="",af_units=""),"Choose units for design and average flow",IF(average_flow>design_flow,"The average flow should not be greater than the design flow",IF(average_flow<design_flow*min_avg_flow,"The average flow must be at least " & min_avg_flow & " times design flow",IF(OR(design_flow_I=0,average_flow_I=0),"Input incomplete","OK")))) -> OK | H35: =IF(C35,"System size inputs OK",D35) -> System size inputs OK | I35: Adjust bypass percentage
C37: =IF(e_donor_type_I="",FALSE,TRUE) -> TRUE | E37: Electron donor type | F37: e_donor_type_I | G37: acetic acid | H37: <-- pick one
C38: =IF(e_donor_dose_I="",FALSE,TRUE) -> TRUE | E38: Electron donor dose | F38: e_donor_dose_I | G38: 10 | H38: mg/L | I38: Guidance: Electron donor dose and biomass accumilation is dependent on raw water conditions, and should be determined based upon pilot study. Perchlorate treatment occurs after the removal of dissolved oxygen and nitrate. Doses typically increase as raw water temperature decreases, temperatures below 10 degrees Celsius are not considered suitable for biotreatment. Excess dose may result in formation of sulfides.
C39: =IF(biomass_I="",FALSE,TRUE) -> TRUE | E39: Biomass generation | F39: biomass_I | G39: 8 | H39: mg/L
B40: =OR(contam=1, contam=3) -> TRUE | E40: Influent perchlorate concentration | F40: ClO4_in | H40: mg/L
E41: Influent dissolved oxygen concentration | F41: O2_in | H41: mg/L
E42: Influent nitrate-nitrogen concentration | F42: NO3_in | H42: mg/L as nitrogen
E43: For information:
E44: =IF(dose_calc,"Theoretical calculated electron donor dose","Enter influent chemical concentrations to see sample electron donor dose calculation") -> Enter influent chemical concentrations to see sample electron donor dose calculation | G44: =IF(dose_calc,IF(e_donor_type=1,acetic_dose_sample,ethanol_dose_sample),"") ->  | H44: =IF(dose_calc, "mg/l","") ->  | I44: Theoretical values for comparison purposes only. Calculated based on equations provided in Harding 2001 and peer review comments. Site-specific values are best determined by pilot studies.
E45: =IF(dose_calc,"Theoretical calculated biomass generation rate","Enter influent chemical concentrations to see sample biomass generation calculation") -> Enter influent chemical concentrations to see sample biomass generation calculation | G45: =IF(dose_calc,biomass_sample,"") ->  | H45: =IF(dose_calc, "mg/l","") -> 
C46: =IF(NOT(AND(C37:C39)),FALSE,TRUE) -> TRUE | D46: =IF(NOT(C46),"Electron Donor Inputs Incomplete","OK") -> OK | H46: =IF(C46,"Electron Donor inputs OK",D46) -> Electron Donor inputs OK
C48: =IF(nutrient_option_I="",FALSE,TRUE) -> TRUE | E48: Nutrient requirements | F48: nutrient_option_I | G48: additional phosphorous required | H48: <-- pick one | I48: Guidance: Perchlorate & nitrate reducing bacteria require nutrients to thrive. Source waters typically have sufficient nitrogen but insufficient phosphorus. Source water sampling and pilot studies should be used to determine if additional nutrients are necessary.
B49: =OR(nutrient_option=2,nutrient_option=4) -> FALSE | C49: =IF(B49,NOT(NH4Cl_dose_I=""),TRUE) -> TRUE | E49: Ammonium chloride dose | F49: NH4Cl_dose_I | H49: mg/L
B50: =OR(nutrient_option=3,nutrient_option=4) -> TRUE | C50: =IF(B50,NOT(H3PO4_dose_I=""),TRUE) -> TRUE | E50: Phosphoric acid dose | F50: H3PO4_dose_I | G50: 1 | H50: mg/L as phosphorus
C51: =IF(NOT(AND(C48:C50)),FALSE,TRUE) -> TRUE | D51: =IF(NOT(C51),"Nutrient Options Incomplete, Check dosing","OK") -> OK | H51: =IF(C51,"Nutrient inputs OK",D51) -> Nutrient inputs OK
C53: =IF(ebct_I="",FALSE,TRUE) -> TRUE | D53: =IF(ebct_I="","EBCT Inputs Incomplete","OK") -> OK | E53: =IF(design_type=3,"Hydraulic residence time (HRT)","Theoretical total empty bed contact time (EBCT)") -> Theoretical total empty bed contact time (EBCT) | F53: ebct_I | G53: 12 | H53: minutes | I53: =IF(contam=1,"Guidance: Typically in the range of 10-12 minutes for perchlorate treatment",IF(contam=2,"Guidance: Typically in the range of 7-10 minutes for nitrate treatment","")) -> Guidance: Typically in the range of 10-12 minutes for perchlorate treatment
H54: =IF(C53,IF(design_type=3,"HRT inputs OK","EBCT inputs OK"),D53) -> EBCT inputs OK
B56: =IF(OR(design_type=1,design_type=3),TRUE,FALSE) -> TRUE | E56: Bioreactor Pressure Vessels
B57: yes | C57: <- Autosize Std Inputs | E57: The next four inputs may be entered manually, or calculated with AutoSize button. All other gold inputs must be complete before AutoSizing.
E58: =IF(design_type=1,"Bed depth","Static bed depth") -> Bed depth | F58: bed_depth | G58: 3.5 | H58: feet | I58: Guidance: between 2 and 7 ft
B59: =IF(design_type=3, FALSE,TRUE) -> TRUE | E59: Vessel geometry | F59: tank_geom_I | G59: upright | H59: <-- pick one
E60: =IF(tank_geom=1,"Height (straight)",IF(tank_geom=2,"Length (straight)","")) -> Height (straight) | F60: comm_height_length | G60: 6.5 | H60: =IF(tank_geom<>"","feet","") -> feet
E61: Diameter | F61: comm_diam | G61: 2.5 | H61: =IF(tank_geom<>"","feet","") -> feet | I61: Guidance: between 2 and 12 ft
E62: For information:
E63: Number of operating vessels | G63: =IF(NOT(B56),"",IF(ISERROR(op_num_tanks),"",op_num_tanks)) -> 2 | H63: vessels
E64: Total vessels (incl. redundancy, below) | G64: =IF(NOT(B56),"",IF(ISERROR(final_num_tanks),"",final_num_tanks)) -> 2 | H64: vessels
E65: Loading rate | G65: =IF(NOT(B56),"",IF(ISERROR(comm_load_rate),"",comm_load_rate)) -> 2.122065908 | H65: gpm/ft2
C66: =IF(NOT(B56),TRUE,IF(OR(bed_depth="",tank_geom_I="",comm_height_length="",comm_diam=""),FALSE,IF(bed_depth>2*comm_diam,FALSE,IF(bed_depth<min_bed_depth,FALSE,TRUE)))) -> TRUE | D66: =IF(NOT(B56),"OK",IF(OR(bed_depth="",comm_height_length="",comm_diam="",tank_geom_I=""),"Input incomplete",IF(bed_depth>2*comm_diam,"Warning: bed depth should be less than twice the vessel diameter",IF(bed_depth<min_bed_depth,"Warning: bed depth too shallow","OK")))) -> OK | H66: =IF(NOT(B56),"",IF(C66,"Bed Depth OK",D66)) -> Bed Depth OK | I66: Adjust bed depth constraints
C67: =IF(NOT(B56),TRUE,IF(H66="Input incomplete",FALSE,IF(tank_geom=1,IF(IF(AND(comm_diam>=min_diam,comm_diam<=max_diam_std_size),(OR(comm_height_length>=max_comm_height,comm_height_length>max_height)),comm_height_length>max_height),FALSE,IF(IF(AND(comm_diam>=min_diam,comm_diam<=max_diam_std_size),(AND(comm_height_length>=min_comm_height,comm_height_length>=height)),comm_height_length>=height),TRUE,FALSE)),IF(tank_geom=2,IF(comm_height_length>max_length,FALSE,TRUE),FALSE)))) -> TRUE | D67: =IF(NOT(B56),"OK",IF(H66="Input incomplete","",IF(tank_geom=1,IF(IF(AND(comm_diam>=min_diam,comm_diam<=max_diam_std_size),(OR(comm_height_length>=max_comm_height,comm_height_length>max_height)),comm_height_length>max_height),"Warning: vessel too high",IF(IF(AND(comm_diam>=min_diam,comm_diam<=max_diam_std_size),(AND(comm_height_length>=min_comm_height,comm_height_length>=height)),comm_height_length>=height),"OK","Warning: vessel not high enough")),IF(tank_geom=2,IF(comm_height_length>max_length,"Warning: vessel too long","OK"),"Invalid tank geometry input")))) -> OK | H67: =IF(NOT(B56),"",IF(C67,"Height OK",D67)) -> Height OK | I67: Adjust vessel size constraints
C68: =IF(NOT(B56),TRUE,IF(H66="Input Incomplete",FALSE,IF(tank_geom=1,IF(comm_diam>max_diam,FALSE,IF(comm_diam<diameter,FALSE,TRUE)),IF(tank_geom=2,IF(comm_diam>max_diam,FALSE,IF(comm_diam>max_height,FALSE,IF(comm_SA<SA,FALSE,IF(comm_diam<height,FALSE,TRUE)))),FALSE)))) -> TRUE | D68: =IF(NOT(B56),"OK",IF(H66="Input incomplete","",IF(tank_geom=1,IF(comm_diam>max_diam,"Warning: vessel diameter too great",IF(comm_diam<diameter,"Warning: vessel diameter too small","OK")),IF(tank_geom=2,IF(comm_diam>max_diam,"Warning: vessel diameter too great",IF(comm_diam>max_height,"Warning: vessel diameter too great",IF(comm_SA<SA,"Warning: vessel surface area too small",IF(comm_diam<height,"Warning: vessel diameter too small","OK")))),"")))) -> OK | H68: =IF(NOT(B56),"",IF(C68,"Diameter OK",D68)) -> Diameter OK
C69: =IF(NOT(B56),TRUE,IF(H66="Input incomplete",FALSE,IF(input_vol_vess<media_volume_expanded,FALSE,TRUE))) -> TRUE | D69: =IF(NOT(B56),"OK",IF(H66="Input incomplete","",IF(input_vol_vess<media_volume_expanded,"Warning: vessel too small for this bed depth","OK"))) -> OK | H69: =IF(NOT(B56),"",IF(C69,"Volume OK",D69)) -> Volume OK
C70: =IF(NOT(B56),TRUE,IF(H66="Input incomplete",FALSE,IF(input_vol_vess<media_volume_expanded,CHOOSE(tank_geom,FALSE,FALSE),TRUE))) -> TRUE | D70: =IF(NOT(B56),"OK",IF(H66="Input incomplete","",IF(input_vol_vess<media_volume_expanded,CHOOSE(tank_geom,"Hint: reduce bed depth or increase diameter or height","Hint: reduce bed depth or increase diameter"),"OK"))) -> OK | H70: =IF(NOT(B56),"",IF(C70,"",D70)) -> 
C71: =IF(NOT(B56),TRUE,IF(H66="Input incomplete",FALSE,IF(ISERROR(final_num_tanks),FALSE,IF(tank_geom=1,IF(comm_load_rate>load_max,FALSE,IF(comm_load_rate<load_min,FALSE,TRUE)),IF(comm_load_rate>load_max,FALSE,IF(comm_load_rate<load_min,FALSE,TRUE)))))) -> TRUE | D71: =IF(NOT(B56),"OK",IF(H66="Input incomplete","",IF(ISERROR(final_num_tanks),"",IF(tank_geom=1,IF(comm_load_rate>load_max,"Warning: design exceeds maximum loading",IF(comm_load_rate<load_min,"Warning: design below minimum loading","OK")),IF(comm_load_rate>load_max,"Warning: design exceeds maximum loading",IF(comm_load_rate<load_min,"Warning: design below minimum loading","OK")))))) -> OK | H71: =IF(NOT(B56),"",IF(C71,"Contact Time OK",D71)) -> Contact Time OK | I71: Adjust loading constraints
H72: =IF(OR(NOT(B56),ISERROR(final_num_tanks)),"",IF(tank_geom=1,IF(comm_load_rate>load_max,"Hint: increase vessel diameter or decrease bed depth",IF(comm_load_rate<load_min,"Hint: reduce vessel diameter or increase bed depth","")),IF(comm_load_rate>load_max,"Hint: increase vessel length and diameter or decrease bed depth",IF(comm_load_rate<load_min,"Hint: reduce vessel length and diameter or increase bed depth","")))) -> 
B74: =IF(design_type=2,TRUE,FALSE) -> FALSE | E74: Bioreactor Fixed Bed Gravity Contact Basins
C75: <- Autosize Std Inputs | E75: The next three inputs may be entered manually, or calculated with AutoSize button. All other gold inputs must be complete before AutoSizing.
C76: =IF(NOT(B74),TRUE,NOT(basin_width="")) -> TRUE | E76: Basin width | F76: basin_width | H76: feet | I76: Guidance: contactors typically are square or with maximum length 1.5x width
C77: =IF(NOT(B74),TRUE,NOT(basin_length="")) -> TRUE | E77: Basin length | F77: basin_length | H77: feet
C78: =IF(NOT(B74),TRUE,NOT(basin_op_depth="")) -> TRUE | E78: Bed depth | F78: basin_op_depth | H78: feet | I78: Guidance: Typical gravity bed depths are 3-10 feet
E79: For information:
E80: Total biorewactors (incl. redundancy, below) | G80: =IF(OR(NOT(B74),ISERROR(total_num_basins)),"",total_num_basins) ->  | H80: contactors
E81: Loading rate | G81: =IF(OR(NOT(B74),ISERROR(surface_loading_rate_g)),"",surface_loading_rate_g) ->  | H81: gpm/ft2
C82: =IF(NOT(B74),TRUE,IF(NOT(AND(C76,C77,C78)),FALSE,IF(basin_op_depth>max_depth,FALSE,IF(basin_op_depth<min_depth,FALSE,TRUE)))) -> TRUE | D82: =IF(NOT(B74),"OK",IF(NOT(AND(C76,C77,C78)),"Input incomplete",IF(basin_op_depth>max_depth,"Warning: basin too deep",IF(basin_op_depth<min_depth,"Warning: basin too shallow","OK")))) -> OK | H82: =IF(NOT(B74),"",IF(C82,"Bed Depth OK",D82)) ->  | I82: Adjust bed depth constraints
C83: =IF(NOT(B74),TRUE,IF(basin_width>max_width,FALSE,IF(basin_width<min_width,FALSE,TRUE))) -> TRUE | D83: =IF(NOT(B74),"OK",IF(NOT(AND(C76,C77,C78)),"",IF(basin_width>max_width,"Warning: basin too wide",IF(basin_width<min_width,"Warning: basin too narrow","OK")))) -> OK | H83: =IF(NOT(B74),"",IF(C83,"Width OK",D83)) ->  | I83: Adjust width constraints
C84: =IF(NOT(B74),TRUE,IF(basin_length>max_length_g,FALSE,IF(basin_length<min_length_g,FALSE,TRUE))) -> TRUE | D84: =IF(NOT(B74),"OK",IF(ISERROR(total_num_basins),"",IF(H82="input incomplete","",IF(basin_length>max_length_g,"Warning: basin too long",IF(OR(basin_length<min_length_g,basin_length<(min_basin_vol/op_num_basins/basin_op_depth/basin_width)),"Warning: basin too short","OK"))))) -> OK | H84: =IF(NOT(B74),"",IF(C84,"Length OK",D84)) ->  | I84: Adjust length constraints
C85: =IF(NOT(B74),TRUE,IF(ISERROR(total_num_basins),"",IF(D82="input incomplete",FALSE,IF(surface_loading_rate_g>load_max,FALSE,IF(surface_loading_rate_g<load_min,FALSE,TRUE))))) -> TRUE | D85: =IF(NOT(B74),"OK",IF(ISERROR(total_num_basins),"",IF(D82="input incomplete","",IF(surface_loading_rate_g>load_max,"Warning: design exceeds maximum loading",IF(surface_loading_rate_g<load_min,"Warning: design below minimum loading","OK"))))) -> OK | H85: =IF(NOT(B74),"",IF(ISERROR(total_num_basins),"",IF(C85,"Loading OK",D85))) ->  | I85: Adjust loading constraints
C87: =IF(include_post_h2o2_I="",FALSE,TRUE) -> TRUE | E87: Post-treatment oxidation option | F87: include_post_h2o2_I | G87: aeration | H87: <-- pick one
C88: =IF(include_post_I="",FALSE,TRUE) -> TRUE | E88: Include polishing filter | F88: include_post_I | G88: yes | H88: <-- pick one
B89: =IF(include_post=1,TRUE,FALSE) -> TRUE | C89: =IF(B89,NOT(filter_type_I=""),TRUE) -> TRUE | E89: Polishing filter type | F89: filter_type_I | G89: pressure vessel | H89: <-- pick one
C90: =IF(B89,NOT(include_coag_filt_I=""),TRUE) -> TRUE | E90: Incude coagulant addition before filtration | F90: include_coag_filt_I | G90: yes | H90: <-- pick one
C91: =AND(C87:C90) -> TRUE | D91: =IF(NOT(C91),"Post-treatment Inputs Incomplete","OK") -> OK | H91: =IF(C91,"Post-treatment inputs OK",D91) -> Post-treatment inputs OK
B93: =IF(filter_type=1,TRUE,FALSE) -> FALSE | E93: Polishing Filter Gravity Contact Basins
C94: <- Autosize Std Inputs | E94: The next three inputs may be entered manually, or calculated with AutoSize button. All other gold inputs must be complete before AutoSizing.
C95: =IF(NOT(B93),TRUE,NOT(filt_basin_width="")) -> TRUE | E95: Basin width | F95: filt_basin_width | H95: feet | I95: Guidance: basins typically are square or with maximum length 1.5x width
C96: =IF(NOT(B93),TRUE,NOT(filt_basin_length="")) -> TRUE | E96: Basin length | F96: filt_basin_length | H96: feet
C97: =IF(NOT(B93),TRUE,NOT(filt_basin_op_depth="")) -> TRUE | E97: Bed depth | F97: filt_basin_op_depth | H97: feet | I97: Guidance: Typical gravity bed depths are 3-10 feet
E98: For information:
E99: Total basins (incl. redundancy, below) | G99: =IF(OR(NOT(B93),ISERROR(total_num_filt_basins)),"",total_num_filt_basins) ->  | H99: basins
C100: =IF(NOT(B93),TRUE,IF(NOT(AND(C95,C96,C97)),FALSE,IF(filt_basin_op_depth>max_depth,FALSE,IF(filt_basin_op_depth<min_depth,FALSE,TRUE)))) -> TRUE | D100: =IF(NOT(B93),"OK",IF(NOT(AND(C95,C96,C97)),"Input incomplete",IF(filt_basin_op_depth>max_depth,"Warning: basin too deep",IF(filt_basin_op_depth<min_depth,"Warning: basin too shallow","OK")))) -> OK | H100: =IF(NOT(B93),"",IF(C100,"Bed Depth OK",D100)) ->  | I100: Adjust bed depth constraints
C101: =IF(NOT(B93),TRUE,IF(filt_basin_width>max_width,FALSE,IF(filt_basin_width<min_width,FALSE,TRUE))) -> TRUE | D101: =IF(NOT(B93),"OK",IF(NOT(AND(C95,C96,C97)),"",IF(filt_basin_width>max_width,"Warning: basin too wide",IF(filt_basin_width<min_width,"Warning: basin too narrow","OK")))) -> OK | H101: =IF(NOT(B93),"",IF(C101,"Width OK",D101)) ->  | I101: Adjust width constraints
C102: =IF(NOT(B93),TRUE,IF(filt_basin_length>max_length_g,FALSE,IF(filt_basin_length<min_length_g,FALSE,TRUE))) -> TRUE | D102: =IF(NOT(B93),"OK",IF(ISERROR(total_num_filt_basins),"",IF(H100="input incomplete","",IF(filt_basin_length>max_length_g,"Warning: basin too long",IF(OR(filt_basin_length<min_length_g,filt_basin_length<(min_filt_vol/op_num_filters/filt_basin_op_depth/filt_basin_width)),"Warning: basin too short","OK"))))) -> OK | H102: =IF(NOT(B93),"",IF(C102,"Length OK",D102)) ->  | I102: Adjust length constraints
B104: =IF(filter_type=2,TRUE,FALSE) -> TRUE | E104: Polishing Filter Pressure Vessels
B105: yes | C105: <- Autosize Std Inputs | E105: The next four inputs may be entered manually, or calculated with AutoSize button. All other gold inputs must be complete before AutoSizing.
E106: Bed depth | F106: filt_bed_depth | G106: 3 | H106: feet | I106: Guidance: between 2 and 5 ft
E107: Vessel geometry | F107: filt_tank_geom_I | G107: upright | H107: <-- pick one
E108: =IF(tank_geom_filt=1,"Height (straight)",IF(tank_geom_filt=2,"Length (straight)","")) -> Height (straight) | F108: filt_comm_height_length | G108: 5.5 | H108: =IF(tank_geom<>"","feet","") -> feet
E109: Diameter | F109: filt_comm_diam | G109: 2 | H109: =IF(tank_geom<>"","feet","") -> feet
E110: For information:
E111: Number of operating vessels | G111: =IF(NOT(B104),"",IF(ISERROR(op_num_tanks_filt),"",op_num_tanks_filt)) -> 3 | H111: vessels
E112: Total vessels (incl. redundancy, below) | G112: =IF(NOT(B104),"",IF(ISERROR(final_num_tanks_filt),"",final_num_tanks_filt)) -> 3 | H112: vessels
E113: Loading rate | G113: =IF(NOT(B104),"",IF(ISERROR(comm_load_rate_filt),"",comm_load_rate_filt)) -> 2.210485321 | H113: gpm/ft2
C114: =IF(NOT(B104),TRUE,IF(OR(filt_bed_depth="",filt_tank_geom_I="",filt_comm_height_length="",filt_comm_diam=""),FALSE,IF(filt_bed_depth>2*filt_comm_diam,FALSE,IF(filt_bed_depth<min_bed_depth,FALSE,TRUE)))) -> TRUE | D114: =IF(NOT(B104),"OK",IF(OR(filt_bed_depth="",filt_comm_height_length="",filt_comm_diam="",filt_tank_geom_I=""),"Input incomplete",IF(filt_bed_depth>2*filt_comm_diam,"Warning: bed depth should be less than twice the vessel diameter",IF(filt_bed_depth<min_bed_depth,"Warning: bed depth too shallow","OK")))) -> OK | H114: =IF(NOT(B104),"",IF(C114,"Bed Depth OK",D114)) -> Bed Depth OK | I114: Adjust bed depth constraints
C115: =IF(NOT(B104),TRUE,IF(H114="Input incomplete",FALSE,IF(tank_geom_filt=1,IF(IF(AND(filt_comm_diam>=min_diam,filt_comm_diam<=max_diam_std_size),(OR(filt_comm_height_length>=max_comm_height_filt,filt_comm_height_length>max_height)),filt_comm_height_length>max_height),FALSE,IF(IF(AND(filt_comm_diam>=min_diam,filt_comm_diam<=max_diam_std_size),(AND(filt_comm_height_length>=min_comm_height_filt,filt_comm_height_length>=height_filt)),filt_comm_height_length>=height_filt),TRUE,FALSE)),IF(tank_geom_filt=2,IF(filt_comm_height_length>max_length,FALSE,TRUE),FALSE)))) -> TRUE | D115: =IF(NOT(B104),"OK",IF(H114="Input incomplete","",IF(tank_geom_filt=1,IF(IF(AND(filt_comm_diam>=min_diam,filt_comm_diam<=max_diam_std_size),(OR(filt_comm_height_length>=max_comm_height_filt,filt_comm_height_length>max_height)),filt_comm_height_length>max_height),"Warning: vessel too high",IF(IF(AND(filt_comm_diam>=min_diam,filt_comm_diam<=max_diam_std_size),(AND(filt_comm_height_length>=min_comm_height_filt,filt_comm_height_length>=height_filt)),filt_comm_height_length>=height_filt),"OK","Warning: vessel not high enough")),IF(tank_geom_filt=2,IF(filt_comm_height_length>max_length,"Warning: vessel too long","OK"),"Invalid tank geometry input")))) -> OK | H115: =IF(NOT(B104),"",IF(C115,"Height OK",D115)) -> Height OK | I115: Adjust vessel size constraints
C116: =IF(NOT(B104),TRUE,IF(H114="Input Incomplete",FALSE,IF(tank_geom_filt=1,IF(filt_comm_diam>max_diam,FALSE,IF(filt_comm_diam<diameter_filt,FALSE,TRUE)),IF(tank_geom_filt=2,IF(filt_comm_diam>max_diam,FALSE,IF(filt_comm_diam>max_height,FALSE,IF(comm_SA_filt<SA_filt,FALSE,IF(filt_comm_diam<height_filt,FALSE,TRUE)))),FALSE)))) -> TRUE | D116: =IF(NOT(B104),"OK",IF(H114="Input incomplete","",IF(tank_geom_filt=1,IF(filt_comm_diam>max_diam,"Warning: vessel diameter too great",IF(filt_comm_diam<diameter_filt,"Warning: vessel diameter too small","OK")),IF(tank_geom_filt=2,IF(filt_comm_diam>max_diam,"Warning: vessel diameter too great",IF(filt_comm_diam>max_height,"Warning: vessel diameter too great",IF(comm_SA_filt<SA_filt,"Warning: vessel surface area too small",IF(filt_comm_diam<height_filt,"Warning: vessel diameter too small","OK")))),"")))) -> OK | H116: =IF(NOT(B104),"",IF(C116,"Diameter OK",D116)) -> Diameter OK
B118: =IF(design_type=3,FALSE,TRUE) -> TRUE | C118: =IF(B118,NOT(back_interval_I=""),TRUE) -> TRUE | E118: Interval between bioreactor backwashes | F118: back_interval_I | G118: 24 | H118: hours | I118: For biomass buildup, backwash bioreactor about every 24-36 hours
B119: =IF(include_post=1,TRUE,FALSE) -> TRUE | C119: =IF(B119,NOT(filter_back_interval_I=""),TRUE) -> TRUE | E119: Interval between filter backwashes | F119: filter_back_interval_I | G119: 36 | H119: hours | I119: Typically 36-48 hours
B120: =IF(AND(design_type=3,include_post=0),FALSE,TRUE) -> TRUE | C120: =NOT(res_s2_opt_I="") -> TRUE | E120: Include air scour | F120: air_scour_I | G120: yes | H120: <-- pick one
B121: =IF(AND(design_type=3,include_post=0),FALSE,TRUE) -> TRUE | C121: =NOT(res_s2_opt_I="") -> TRUE | E121: Discharge option for spent backwash | F121: res_s2_opt_I | G121: recycle | H121: <-- pick one
B122: =OR(res_s2_opt=1,res_s2_opt=2) -> FALSE | C122: =IF(B122,NOT(res_s1_opt_I=""),TRUE) -> TRUE | E122: Holding tank for spent backwash | F122: res_s1_opt_I | G122: holding tank | H122: =IF(res_s2_opt=3,"always included",IF(res_s2_opt=4,"not required","<-- pick one")) -> always included | I122: =IF(res_s1_opt_I="Holding tank","Model selects between holding tank or basin based upon priority lookups on the Output sheet","") -> Model selects between holding tank or basin based upon priority lookups on the Output sheet
B123: =IF(OR(res_s2_opt=3),TRUE,IF(res_s1_opt=1,TRUE,FALSE)) -> TRUE | C123: =IF(B123,NOT(sed_sludge_method_I=""),TRUE) -> TRUE | E123: Solids treatment/storage | F123: sed_sludge_method_I | G123: none | H123: =IF(res_s1_opt=2,"not required","<-- pick one") -> <-- pick one | I123: =IF(sed_sludge_method_I="","Please pick a valid input.","") -> 
B124: =IF(OR(res_s2_opt=3,res_s2_opt=4),TRUE,IF(res_s1_opt=1,TRUE,FALSE)) -> TRUE | C124: =IF(B124,NOT(solids_haz_I=""),TRUE) -> TRUE | E124: =IF(res_s2_opt=4,"Characteristics of evaporation pond solids","Characteristics of holding tank solids") -> Characteristics of holding tank solids | F124: solids_haz_I | G124: non-hazardous | H124: =IF(NOT(B124),"not required","<-- pick one") -> <-- pick one
C125: =IF(NOT(AND(C118:C124)),FALSE,TRUE) -> TRUE | D125: =IF(NOT(C125),"Residual Inputs Incomplete","OK") -> OK | H125: =IF(AND(design_type=3,include_post=0),"",IF(C125,"Residual inputs OK",D125)) -> Residual inputs OK | I125: Additional residuals assumtions loacted on the cirtical deisgn assumptions page
E127: Number of booster pumps | F127: lines_pump_I | H127: pumps | I127: Enter 0 to exclude booster pumps (i.e., use existing pumps). Leave blank to accept model defaults (no pumps for systems <1 MGD, otherwise sized per average and design flows)
E128: For information: # of booster pumps | G128: =IF(ISERROR(booster_pumps),"",booster_pumps) -> 0 | H128: pumps
E129: Number of redundant units to be added | F129: NRD_I | H129: units | I129: Leave blank to accept model defaults (0 for systems <1 MGD, calculated otherwise)
E130: For information: Redundant bioreactors | G130: =IF(OR(design_type=1,design_type=3),IF(ISERROR(NRD),"",NRD),IF(ISERROR(NRD_g),"",NRD_g)) -> 0 | H130: units
E131: Backwash pumping | F131: no_backwash_I | H131: <-- pick or leave blank | I131: Leave blank to accept model defaults (systems <1 MGD backwash using existing supply or treated water pumps, other systems add new backwash pumps)
E132: Backwash storage | F132: no_back_tank_I | H132: <-- pick or leave blank | I132: Leave blank to accept model defaults (only systems between 1 and 10 MGD require separate backwash tanks)
E133: For information: # of backwash pumps | G133: =IF(ISERROR(backwash_pumps),"",backwash_pumps) -> 0 | H133: units
E134: # of backwash tanks | G134: =IF(ISERROR(back_tanks),"",back_tanks) -> 0 | H134: units
E135: Component level | F135: component_level_I | H135: <-- pick or leave blank | I135: Leave blank to use low cost components
E136: System automation | F136: manual_I | G136: fully automated | H136: <-- pick or leave blank | I136: Leave blank to allow model to pick based on component level
E137: Include buildings? | F137: include_buildings_I | H137: <-- pick or leave blank | I137: Leave blank to include buildings
E138: Include HVAC? | F138: include_HVAC_I | H138: <-- pick or leave blank | I138: Leave blank to allow model to pick based on component level and building type
E139: Include land? | F139: include_land_I | H139: <-- pick or leave blank | I139: Leave blank to include land
E140: For information: Component level | G140: =IF(component_level=2,"high cost",IF(component_level=1,"mid cost","low cost")) -> low cost
E141: Automation | G141: =IF(manual=1,"manual",IF(manual=2,"semi-automated",IF(manual=3,"fully automated"))) -> fully automated
C142: =IF(ISERROR(pump_rating),FALSE,IF(pump_rating>max_pump_size,FALSE,TRUE)) -> TRUE | D142: =IF(ISERROR(pump_rating),"Input incomplete",IF(pump_rating>max_pump_size,"Warning: insufficent number of pumps.","OK")) -> OK | H142: =IF(C142,"Optional Inputs OK",D142) -> Optional Inputs OK
H143: =IF(OR(H142="input incomplete",H142="Optional Inputs OK"),"",IF(pump_rating>max_pump_size,"Hint: increase number of pumps or leave that input blank","")) -> 

Sheet OUTPUT
A1: OUTPUT SUMMARY
B2: Parameter | C2: Value | D2: Units
B3: Technology | C3: BIO
B4: System Size Category | C4: =IF(ss_cat2=1,"small","large") -> small
B5: Target Contaminant | C5: =IF(contam=1,"perchlorate",IF(contam=2,"nitrate","other")) -> perchlorate
B6: Design Type | C6: =IF(design_type=1,"pressure","gravity") -> pressure
B7: Design Flow | C7: =design_flow -> 0.03 | D7: MGD (excludes bypass flow)
B8: Average Flow | C8: =average_flow -> 0.007 | D8: MGD (excludes bypass flow)
B9: Bed type | C9: =IF(design_type=3,"fluidized","fixed") -> fixed
B10: # of bioreactors | C10: =IF(design_type=2,total_num_basins,final_num_tanks) -> 2 | D10: (including redundancy)
B11: Loading rate | C11: =IF(design_type=2,surface_loading_rate_g,comm_load_rate) -> 2.122065908 | D11: gpm/ft2
B12: =IF(design_type=3,"HRT","EBCT") -> EBCT | C12: =EBCT -> 12 | D12: minutes
B13: Bed depth | C13: =IF(design_type=2,basin_op_depth,bed_depth) -> 3.5 | D13: feet
B14: Vessel geometry | C14: =IF(design_type=1,tank_geom_I,"basins") -> upright
B15: =IF(design_type=2,"Basin width",IF(tank_geom=1,"Height (straight)",IF(tank_geom=2,"Length (straight)",""))) -> Height (straight) | C15: =IF(design_type=2,basin_width,comm_height_length) -> 6.5 | D15: feet
B16: =IF(design_type=2,"Basin length","Diameter") -> Diameter | C16: =IF(design_type=2,basin_length,comm_diam) -> 2.5 | D16: feet
B17: Component level | C17: =IF(component_level=2,"high cost",IF(component_level=1,"mid cost","low cost")) -> low cost
B18: System automation | C18: =IF(manual=1,"manual",IF(manual=2,"semi-automated",IF(manual=3,"fully automated"))) -> fully automated
B19: ="Resulting Costs (in year "&TEXT(current_year_cl,0)&" dollars)" -> Resulting Costs (in year 2021 dollars)
B20: Direct Capital Cost | C20: =IF(input_status<>"input complete -- results ready","Action required",IF(Missing_Cost,"Missing cost!",IF(cost_buildup_error,"Error in buildup!",direct_cost))) -> 270117.2717 | D20: Details | E20: =IF(input_status<>"input complete -- results ready",IF(input_complete,"Press Generate Results","Check INPUT sheet for errors"),IF(Missing_Cost,"A price is not available for at least one required component. See Use? column below.",IF(cost_buildup_error,"There is an Excel error in the price for at least one component. See Use? column below.",""))) -> 
B21: Add-on Cost | C21: =IF(input_status<>"input complete -- results ready","Action required",addon_cost) -> 136348.802 | D21: Details
B22: Indirect Capital Cost | C22: =IF(input_status<>"input complete -- results ready","Action required",indirect_cost) -> 123433.8752 | D22: Details
B23: Total Capital Cost | C23: =IF(input_status<>"input complete -- results ready","Action required",IF(Missing_Cost,"Missing cost!",IF(cost_buildup_error,"Error in buildup!",system_cost))) -> 529899.9489 | D23: Details
B24: ="Annualized Capital Cost "&IF(OR(input_status<>"input complete -- results ready",Missing_Cost,cost_buildup_error),"","(per year over "&useful_life&" years at "&Discount_rate*100&"%)") -> Annualized Capital Cost (per year over 17.3 years at 7%) | C24: =IF(input_status<>"input complete -- results ready","Action required",Annualized_Capital_Cost) -> 53774.60213 | D24: Details
B25: Annual O&M Cost (per year) | C25: =IF(input_status<>"input complete -- results ready","Action required",om_cost) -> 31224.60607 | D25: Details
B26: ="Total Annualized Cost (per year"&IF(OR(input_status<>"input complete -- results ready",ISERROR(OR(TAC_pct_cap,TAC_pct_OM))),"",", "&TEXT(TAC_pct_cap,"0%")&" capital, "&TEXT(TAC_pct_OM,"0%")&" O&M")&")" -> Total Annualized Cost (per year, 63% capital, 37% O&M) | C26: =IF(input_status<>"input complete -- results ready","Action required",IF(Missing_Cost,"Missing cost!",IF(cost_buildup_error,"Error in buildup!",Annualized_Cost))) -> 84999.2082 | D26: Details
B27: Annualized cost per 1,000 gallons average flow | C27: =IF(input_status<>"input complete -- results ready","Action required",IF(Missing_Cost,"Missing cost!",IF(cost_buildup_error,"Error in buildup!",C622))) -> 33.26779186
B28: Annualized cost per household per year | C28: =IF(input_status<>"input complete -- results ready","Action required",IF(Missing_Cost,"Missing cost!",IF(cost_buildup_error,"Error in buildup!",C623))) -> 3352.349664
A30: Direct Capital Cost Details (items in italics, without a 1 in the "Use?" column, represent alternate costs and are excluded from total)
A31: WBS # | B31: Item | C31: Design Quanitity | E31: Design Size | G31: Size used in estimate | I31: Unit Cost | J31: Total Cost | K31: Useful Life | L31: Use? | M31: Full Line Item Name | N31: Priority selection | W31: Useful Life
N32: Small (<1 mgd) | Q32: Medium (1-10 mgd) | T32: Large (>10 mgd)
N33: Low | O33: Mid | P33: High | Q33: Low | R33: Mid | S33: High | T33: Low | U33: Mid | V33: High | W33: Count? | X33: Depreciation | Y33: Buildings
A34: 1 | B34: Bioreactors
A35: 1.1 | B35: Pressure Vessels
A36: 1.1.1 | B36: Stainless Steel | C36: =final_num_tanks -> 2 | D36: units | E36: =comm_vol_gal -> 238.6628669 | F36: gal | G36: =IF(curve=1,comm_vol_gal,VLOOKUP(comm_vol_gal,ss_pv_cost_cl,2)) -> 238.6628669 | H36: gal | I36: =IF(C36=0,"NA",IF(curve=1,ss_pv_eq,VLOOKUP(comm_vol_gal,ss_pv_cost_cl,3))) -> 34901.34843 | J36: =IF(C36=0,"--",IF(I36="contact vendor","--",C36*I36)) -> 69802.69686 | K36: =IF(C36=0,"NA",VLOOKUP(comm_vol_gal,ss_pv_cost_cl,IF(ss_cat="large",4,5))) -> 30 | L36: 0 | M36: =$B$34&" - "&$B$35&" - "&B36 -> Bioreactors - Pressure Vessels - Stainless Steel | N36: 4 | O36: 4 | P36: 1 | Q36: 4 | R36: 4 | S36: 1 | T36: 4 | U36: 4 | V36: 1 | W36: =IF(ISERROR(K36*L36),0,IF(K36<1,0,L36)) -> 0 | X36: =IF(W36,J36/K36,0) -> 0
A37: 1.1.1 | B37: Carbon Steel - Stainless Internals | C37: =final_num_tanks -> 2 | D37: units | E37: =comm_vol_gal -> 238.6628669 | F37: gal | G37: =IF(curve=1,comm_vol_gal,VLOOKUP(comm_vol_gal,cs_pv_cost_cl,2)) -> 238.6628669 | H37: gal | I37: =IF(C37=0,"NA",IF(curve=1,cs_pv_eq,VLOOKUP(comm_vol_gal,cs_pv_cost_cl,3))) -> 19758.46918 | J37: =IF(C37=0,"--",IF(I37="contact vendor","--",C37*I37)) -> 39516.93836 | K37: =IF(C37=0,"NA",VLOOKUP(comm_vol_gal,cs_pv_cost_cl,IF(ss_cat="large",4,5))) -> 30 | L37: 0 | M37: =$B$34&" - "&$B$35&" - "&B37 -> Bioreactors - Pressure Vessels - Carbon Steel - Stainless Internals | N37: 3 | O37: 3 | P37: 2 | Q37: 3 | R37: 3 | S37: 2 | T37: 3 | U37: 3 | V37: 2 | W37: =IF(ISERROR(K37*L37),0,IF(K37<1,0,L37)) -> 0 | X37: =IF(W37,J37/K37,0) -> 0
A38: 1.1.1 | B38: Carbon Steel - Plastic Internals | C38: =final_num_tanks -> 2 | D38: units | E38: =comm_vol_gal -> 238.6628669 | F38: gal | G38: =IF(curve=1,comm_vol_gal,VLOOKUP(comm_vol_gal,csp_pv_cost_cl,2)) -> 238.6628669 | H38: gal | I38: =IF(C38=0,"NA",IF(curve=1,csp_pv_eq,VLOOKUP(comm_vol_gal,csp_pv_cost_cl,3))) -> 18237.85989 | J38: =IF(C38=0,"--",IF(I38="contact vendor","--",C38*I38)) -> 36475.71978 | K38: =IF(C38=0,"NA",VLOOKUP(comm_vol_gal,csp_pv_cost_cl,IF(ss_cat="large",4,5))) -> 30 | L38: 0 | M38: =$B$34&" - "&$B$35&" - "&B38 -> Bioreactors - Pressure Vessels - Carbon Steel - Plastic Internals | N38: 2 | O38: 1 | P38: 3 | Q38: 2 | R38: 1 | S38: 3 | T38: 2 | U38: 1 | V38: 3 | W38: 0 | X38: 0
A39: 1.1.1 | B39: Fiberglass | C39: =final_num_tanks -> 2 | D39: units | E39: =comm_vol_gal -> 238.6628669 | F39: gal | G39: =IF(curve=1,comm_vol_gal,VLOOKUP(comm_vol_gal,fg_pv_cost_cl,2)) -> 238.6628669 | H39: gal | I39: =IF(C39=0,"NA",IF(curve=1,fg_pv_eq,VLOOKUP(comm_vol_gal,fg_pv_cost_cl,3))) -> 4887.905823 | J39: =IF(C39=0,"--",IF(I39="contact vendor","--",C39*I39)) -> 9775.811646 | K39: =IF(C39=0,"NA",VLOOKUP(comm_vol_gal,fg_pv_cost_cl,IF(ss_cat="large",4,5))) -> 20 | L39: 1 | M39: =$B$34&" - "&$B$35&" - "&B39 -> Bioreactors - Pressure Vessels - Fiberglass | N39: 1 | O39: 2 | P39: 4 | Q39: 1 | R39: 2 | S39: 4 | T39: 1 | U39: 2 | V39: 4 | W39: 1 | X39: 488.7905823
A40: 1.2 | B40: Gravity Basins | W40: 0 | X40: 0
A41: 1.2.1 | B41: Concrete | C41: =total_num_basins -> 0 | D41: units | E41: =basin_vol -> - | F41: gal | G41: =basin_vol -> - | H41: gal | I41: =IF(C41=0,"NA",basin_conc_vol/total_num_basins*VLOOKUP(0,conc_basin_cost_cl,3)) -> NA | J41: =IF(C41=0,"--",IF(I41="contact vendor","--",C41*I41)) -> -- | K41: =IF(C41=0,"NA",VLOOKUP(0,conc_basin_cost_cl,IF(ss_cat="large",4,5))) -> NA | M41: =$B$34&" - "&$B$40&" - "&B41 -> Bioreactors - Gravity Basins - Concrete | N41: 1 | O41: 1 | P41: 1 | Q41: 1 | R41: 1 | S41: 1 | T41: 1 | U41: 1 | V41: 1 | W41: 0 | X41: 0
A42: 1.2.2 | B42: Internals (Underdrain/Backwash System) | C42: =total_num_basins -> 0 | D42: units | E42: =basin_area -> - | F42: sf | G42: =basin_area -> - | H42: sf | I42: =IF(C42=0,"NA",IF(cont_int_eq="contact vendor","contact vendor",J42/total_num_basins)) -> NA | J42: =IF(C42=0,"--",IF(cont_int_eq="contact vendor","--",cont_int_eq)) -> -- | K42: =IF(C42=0,"NA",VLOOKUP(0,cont_top_cost_cl,IF(ss_cat="large",4,5))) -> NA | M42: Bioreactors - Gravity Basins - Internals (Underdrain/Backwash System) | N42: 1 | O42: 1 | P42: 1 | Q42: 1 | R42: 1 | S42: 1 | T42: 1 | U42: 1 | V42: 1 | W42: 0 | X42: 0
A43: 1.2.3 | B43: Aluminum Railing | C43: =IF(OR(design_type=1,design_type=3),0,railing) -> 0 | D43: lf | E43: NA | G43: NA | I43: =IF(C43=0,"NA",VLOOKUP(B43,metal_cost_cl,3)) -> NA | J43: =IF(C43=0,"--",IF(I43="contact vendor","--",C43*I43)) -> -- | K43: =IF(C43=0,"NA",VLOOKUP(B43,metal_cost_cl,IF(ss_cat="large",4,5))) -> NA | M43: Bioreactors - Gravity Basins - Aluminum Railing | N43: 1 | O43: 1 | P43: 1 | Q43: 1 | R43: 1 | S43: 1 | T43: 1 | U43: 1 | V43: 1 | W43: 0 | X43: 0
A44: 1.2.4 | B44: Aluminum Stairs | C44: =IF(OR(design_type=1,design_type=3),0,risers) -> 0 | D44: risers | E44: NA | G44: NA | I44: =IF(C44=0,"NA",VLOOKUP(B44,metal_cost_cl,3)) -> NA | J44: -- | K44: =IF(C44=0,"NA",VLOOKUP(B44,metal_cost_cl,IF(ss_cat="large",4,5))) -> NA | M44: Bioreactors - Gravity Basins - Aluminum Stairs | N44: 1 | O44: 1 | P44: 1 | Q44: 1 | R44: 1 | S44: 1 | T44: 1 | U44: 1 | V44: 1 | W44: 0 | X44: 0
A45: 1.2.5 | B45: Excavation | C45: =IF(OR(design_type=1,design_type=3),0,excavation_vol) -> 0 | D45: cy | E45: NA | G45: NA | I45: =IF(C45=0,"NA",VLOOKUP(0,excavate_cost_cl,3)) -> NA | J45: -- | K45: =IF(C45=0,"NA",VLOOKUP(0,conc_basin_cost_cl,IF(ss_cat="large",4,5))) -> NA | M45: Bioreactors - Gravity Basins - Excavation | N45: 1 | O45: 1 | P45: 1 | Q45: 1 | R45: 1 | S45: 1 | T45: 1 | U45: 1 | V45: 1 | W45: 0 | X45: 0
A46: 1.2.6 | B46: Backfill and Compaction | C46: =IF(OR(design_type=1,design_type=3),0,backfill_vol) -> 0 | D46: cy | E46: NA | G46: NA | I46: =IF(C46=0,"NA",VLOOKUP(0,backfill_cost_cl,3)) -> NA | J46: -- | K46: =IF(C46=0,"NA",VLOOKUP(0,conc_basin_cost_cl,IF(ss_cat="large",4,5))) -> NA | M46: Bioreactors - Gravity Basins - Backfill and Compaction | N46: 1 | O46: 1 | P46: 1 | Q46: 1 | R46: 1 | S46: 1 | T46: 1 | U46: 1 | V46: 1 | W46: 0 | X46: 0
A47: 1.3 | B47: Media | W47: 0 | X47: 0
A48: 1.3.1 | B48: GAC | C48: =total_resin -> 1030.835089 | D48: lbs | E48: NA | G48: NA | I48: =IF(curve=1,gac_eq,VLOOKUP(C48,gac_cost_cl,3)) -> 2.089451319 | J48: =IF(I48="contact vendor","--",C48*I48) -> 2153.879737 | K48: =VLOOKUP(B48,media_cost_cl,IF(ss_cat="large",4,5)) -> 8.5 | L48: 1 | M48: =$B$34&" - "&$B$47&" - "&B48 -> Bioreactors - Media - GAC | N48: 1 | O48: 1 | P48: 1 | Q48: 1 | R48: 1 | S48: 1 | T48: 1 | U48: 1 | V48: 1 | W48: 1 | X48: 253.3976161
A49: 2 | B49: Post-Treatment Filters | W49: 0 | X49: 0
A50: 2.1 | B50: Filter Basins | W50: 0 | X50: 0
A51: 2.1.1 | B51: Concrete | C51: =total_num_filt_basins -> 0 | D51: units | E51: =filt_volume -> - | F51: gal | G51: =filt_volume -> - | H51: gal | I51: =IF(C51=0,"NA",filt_basin_conc_vol/total_num_filt_basins*VLOOKUP(0,conc_basin_cost_cl,3)) -> NA | J51: =IF(C51=0,"--",IF(I51="contact vendor","--",C51*I51)) -> -- | K51: =IF(C51=0,"NA",VLOOKUP(0,conc_basin_cost_cl,IF(ss_cat="large",4,5))) -> NA | M51: =$B$49&" - "&$B$50&" - "&B51 -> Post-Treatment Filters - Filter Basins - Concrete | N51: 1 | O51: 1 | P51: 1 | Q51: 1 | R51: 1 | S51: 1 | T51: 1 | U51: 1 | V51: 1 | W51: 0 | X51: 0
A52: 2.1.2 | B52: Internals (Underdrain/Backwash System) | C52: =total_num_filt_basins -> 0 | D52: units | E52: =filt_basin_area -> - | F52: sf | G52: =filt_basin_area -> - | H52: sf | I52: =IF(C52=0,"NA",IF(filt_int_eq="contact vendor","contact vendor",J52/total_num_filt_basins)) -> NA | J52: =IF(C52=0,"--",IF(filt_int_eq="contact vendor","--",filt_int_eq)) -> -- | K52: =IF(C52=0,"NA",VLOOKUP(0,cont_top_cost_cl,IF(ss_cat="large",4,5))) -> NA | M52: Post-Treatment Filters - Filter Basins - Internals (Underdrain/Backwash System) | N52: 1 | O52: 1 | P52: 1 | Q52: 1 | R52: 1 | S52: 1 | T52: 1 | U52: 1 | V52: 1 | W52: 0 | X52: 0
A53: 2.1.3 | B53: Aluminum Railing | C53: =IF(filter_type=1,filt_railing,0) -> 0 | D53: lf | E53: NA | G53: NA | I53: =IF(C53=0,"NA",VLOOKUP(B53,metal_cost_cl,3)) -> NA | J53: =IF(C53=0,"--",IF(I53="contact vendor","--",C53*I53)) -> -- | K53: =IF(C53=0,"NA",VLOOKUP(B53,metal_cost_cl,IF(ss_cat="large",4,5))) -> NA | M53: Post-Treatment Filters - Filter Basins - Aluminum Railing | N53: 1 | O53: 1 | P53: 1 | Q53: 1 | R53: 1 | S53: 1 | T53: 1 | U53: 1 | V53: 1 | W53: 0 | X53: 0
A54: 2.1.4 | B54: Aluminum Stairs | C54: =IF(filter_type=1,risers,0) -> 0 | D54: risers | E54: NA | G54: NA | I54: =IF(C54=0,"NA",VLOOKUP(B54,metal_cost_cl,3)) -> NA | J54: -- | K54: =IF(C54=0,"NA",VLOOKUP(B54,metal_cost_cl,IF(ss_cat="large",4,5))) -> NA | M54: Post-Treatment Filters - Filter Basins - Aluminum Stairs | N54: 1 | O54: 1 | P54: 1 | Q54: 1 | R54: 1 | S54: 1 | T54: 1 | U54: 1 | V54: 1 | W54: 0 | X54: 0
A55: 2.1.5 | B55: Excavation | C55: =IF(filter_type=1,filt_excavation_vol,0) -> 0 | D55: cy | E55: NA | G55: NA | I55: =IF(C55=0,"NA",VLOOKUP(0,excavate_cost_cl,3)) -> NA | J55: -- | K55: =IF(C55=0,"NA",VLOOKUP(0,conc_basin_cost_cl,IF(ss_cat="large",4,5))) -> NA | M55: Post-Treatment Filters - Filter Basins - Excavation | N55: 1 | O55: 1 | P55: 1 | Q55: 1 | R55: 1 | S55: 1 | T55: 1 | U55: 1 | V55: 1 | W55: 0 | X55: 0
A56: 2.1.6 | B56: Backfill and Compaction | C56: =IF(filter_type=1,filt_backfill_vol,0) -> 0 | D56: cy | E56: NA | G56: NA | I56: =IF(C56=0,"NA",VLOOKUP(0,backfill_cost_cl,3)) -> NA | J56: -- | K56: =IF(C56=0,"NA",VLOOKUP(0,conc_basin_cost_cl,IF(ss_cat="large",4,5))) -> NA | M56: Post-Treatment Filters - Filter Basins - Backfill and Compaction | N56: 1 | O56: 1 | P56: 1 | Q56: 1 | R56: 1 | S56: 1 | T56: 1 | U56: 1 | V56: 1 | W56: 0 | X56: 0
A57: 2.2 | B57: Pressure Vessels | W57: 0 | X57: 0
A58: 2.2.1 | B58: Stainless Steel | C58: =final_num_tanks_filt -> 3 | D58: units | E58: =comm_vol_gal_filt -> 129.2451218 | F58: gal | G58: =IF(curve=1,comm_vol_gal_filt,VLOOKUP(comm_vol_gal_filt,ss_pv_cost_cl,2)) -> 129.2451218 | H58: gal | I58: =IF(C58=0,"NA",IF(curve=1,ss_pv_eq_filt,VLOOKUP(comm_vol_gal_filt,ss_pv_cost_cl,3))) -> 32069.24509 | J58: =IF(C58=0,"--",IF(I58="contact vendor","--",C58*I58)) -> 96207.73527 | K58: =IF(C58=0,"NA",VLOOKUP(comm_vol_gal_filt,ss_pv_cost_cl,IF(ss_cat="large",4,5))) -> 30 | L58: 0 | M58: =$B$49&" - "&$B$57&" - "&B58 -> Post-Treatment Filters - Pressure Vessels - Stainless Steel | N58: 4 | O58: 4 | P58: 1 | Q58: 4 | R58: 4 | S58: 1 | T58: 4 | U58: 4 | V58: 1 | W58: 0 | X58: 0
A59: 2.2.1 | B59: Carbon Steel - Stainless Internals | C59: =final_num_tanks_filt -> 3 | D59: units | E59: =comm_vol_gal_filt -> 129.2451218 | F59: gal | G59: =IF(curve=1,comm_vol_gal_filt,VLOOKUP(comm_vol_gal_filt,ss_pv_cost_cl,2)) -> 129.2451218 | H59: gal | I59: =IF(C59=0,"NA",IF(curve=1,cs_pv_eq_filt,VLOOKUP(comm_vol_gal_filt,cs_pv_cost_cl,3))) -> 14905.85219 | J59: =IF(C59=0,"--",IF(I59="contact vendor","--",C59*I59)) -> 44717.55657 | K59: =IF(C59=0,"NA",VLOOKUP(comm_vol_gal_filt,cs_pv_cost_cl,IF(ss_cat="large",4,5))) -> 30 | L59: 0 | M59: =$B$49&" - "&$B$57&" - "&B59 -> Post-Treatment Filters - Pressure Vessels - Carbon Steel - Stainless Internals | N59: 3 | O59: 3 | P59: 2 | Q59: 3 | R59: 3 | S59: 2 | T59: 3 | U59: 3 | V59: 2 | W59: 0 | X59: 0
A60: 2.2.1 | B60: Carbon Steel - Plastic Internals | C60: =final_num_tanks_filt -> 3 | D60: units | E60: =comm_vol_gal_filt -> 129.2451218 | F60: gal | G60: =IF(curve=1,comm_vol_gal_filt,VLOOKUP(comm_vol_gal_filt,ss_pv_cost_cl,2)) -> 129.2451218 | H60: gal | I60: =IF(C60=0,"NA",IF(curve=1,csp_pv_eq_filt,VLOOKUP(comm_vol_gal_filt,csp_pv_cost_cl,3))) -> 14069.39018 | J60: =IF(C60=0,"--",IF(I60="contact vendor","--",C60*I60)) -> 42208.17055 | K60: =IF(C60=0,"NA",VLOOKUP(comm_vol_gal_filt,csp_pv_cost_cl,IF(ss_cat="large",4,5))) -> 30 | L60: 0 | M60: =$B$49&" - "&$B$57&" - "&B60 -> Post-Treatment Filters - Pressure Vessels - Carbon Steel - Plastic Internals | N60: 2 | O60: 1 | P60: 3 | Q60: 2 | R60: 1 | S60: 3 | T60: 2 | U60: 1 | V60: 3 | W60: 0 | X60: 0
A61: 2.2.1 | B61: Fiberglass | C61: =final_num_tanks_filt -> 3 | D61: units | E61: =comm_vol_gal_filt -> 129.2451218 | F61: gal | G61: =IF(curve=1,comm_vol_gal_filt,VLOOKUP(comm_vol_gal_filt,ss_pv_cost_cl,2)) -> 129.2451218 | H61: gal | I61: =IF(C61=0,"NA",IF(curve=1,fg_pv_eq_filt,VLOOKUP(comm_vol_gal_filt,fg_pv_cost_cl,3))) -> 2741.701519 | J61: =IF(C61=0,"--",IF(I61="contact vendor","--",C61*I61)) -> 8225.104558 | K61: =IF(C61=0,"NA",VLOOKUP(comm_vol_gal_filt,fg_pv_cost_cl,IF(ss_cat="large",4,5))) -> 20 | L61: 1 | M61: =$B$49&" - "&$B$57&" - "&B61 -> Post-Treatment Filters - Pressure Vessels - Fiberglass | N61: 1 | O61: 2 | P61: 4 | Q61: 1 | R61: 2 | S61: 4 | T61: 1 | U61: 2 | V61: 4 | W61: 1 | X61: 411.2552279
A62: 2.3 | B62: Media | W62: 0 | X62: 0
A63: 2.3.1 | B63: Anthracite | C63: =anthracite -> 947.1901851 | D63: lbs | E63: NA | G63: NA | I63: =IF(anthracite=0,"NA",VLOOKUP(B63,media_cost_cl,3,FALSE)) -> 0.5912325439 | J63: =IF(anthracite=0,"--",IF(I63="contact vendor","--",C63*I63)) -> 560.0096627 | K63: =IF(I63="NA","N/A",IF(anthracite=0,"N/A",VLOOKUP(B63,media_cost_cl,IF(ss_cat="large",4,5)))) -> 8.5 | L63: 1 | M63: =$B$49&" - "&$B$62&" - "&B63 -> Post-Treatment Filters - Media - Anthracite | N63: 1 | O63: 1 | P63: 1 | Q63: 1 | R63: 1 | S63: 1 | T63: 1 | U63: 1 | V63: 1 | W63: 1 | X63: 65.88348973
A64: 2.3.2 | B64: Sand | C64: =sand_vol -> 28.27433388 | D64: cf | E64: NA | G64: NA | I64: =IF(sand_vol=0,"NA",VLOOKUP(B64,media_cost_cl,3,FALSE)) -> 75.89965296 | J64: =IF(sand_vol=0,"--",IF(I64="contact vendor","--",C64*I64)) -> 2146.012129 | K64: =IF(I64="NA","N/A",IF(sand_vol=0,"N/A",VLOOKUP(B64,media_cost_cl,IF(ss_cat="large",4,5)))) -> 20 | L64: 1 | M64: =$B$49&" - "&$B$62&" - "&B64 -> Post-Treatment Filters - Media - Sand | N64: 1 | O64: 1 | P64: 1 | Q64: 1 | R64: 1 | S64: 1 | T64: 1 | U64: 1 | V64: 1 | W64: 1 | X64: 107.3006065
A65: 2.3.3 | B65: Garnet/illmenite | C65: =garnet -> 0 | D65: lbs | E65: NA | G65: NA | I65: =IF(garnet=0,"NA",VLOOKUP(B65,media_cost_cl,3,FALSE)) -> NA | J65: =IF(garnet=0,"--",IF(I65="contact vendor","--",C65*I65)) -> -- | K65: =IF(I65="NA","N/A",IF(garnet=0,"N/A",VLOOKUP(B65,media_cost_cl,IF(ss_cat="large",4,5)))) -> N/A | M65: =$B$49&" - "&$B$62&" - "&B65 -> Post-Treatment Filters - Media - Garnet/illmenite | N65: 1 | O65: 1 | P65: 1 | Q65: 1 | R65: 1 | S65: 1 | T65: 1 | U65: 1 | V65: 1 | W65: 0 | X65: 0
A66: 2.3.4 | B66: GAC | C66: =filt_GAC -> 0 | D66: lbs | E66: NA | G66: NA | I66: =IF(filt_GAC=0,"NA",IF(curve=1,filt_gac_eq,VLOOKUP(C66,gac_cost_cl,3))) -> NA | J66: =IF(filt_GAC=0,"--",IF(I66="contact vendor","--",C66*I66)) -> -- | K66: =IF(I66="NA","N/A",IF(filt_GAC=0,"N/A",VLOOKUP(filt_GAC/GAC_density,gac_cost_cl,IF(ss_cat="large",4,5)))) -> N/A | M66: =$B$49&" - "&$B$62&" - "&B66 -> Post-Treatment Filters - Media - GAC | N66: 1 | O66: 1 | P66: 1 | Q66: 1 | R66: 1 | S66: 1 | T66: 1 | U66: 1 | V66: 1 | W66: 0 | X66: 0
A67: 3 | B67: Tanks | W67: 0 | X67: 0
A68: 3.1 | B68: Backwash Tanks | W68: 0 | X68: 0
A69: 3.1.1 | B69: Steel | C69: =back_tanks -> 0 | D69: units | E69: =IF(C69=0,"NA",back_tank_vol) -> NA | F69: =IF(C69=0,"","gal") ->  | G69: =IF(C69=0,"NA",IF(curve=1,back_tank_vol,VLOOKUP(back_tank_vol,st_bwt_cost_cl,2))) -> NA | H69: =IF(C69=0,"","gal") ->  | I69: =IF(C69=0,"NA",IF(curve=1,st_bwt_eq,VLOOKUP(back_tank_vol,st_bwt_cost_cl,3))) -> NA | J69: =IF(OR(C69=0,I69="contact vendor"),"--",C69*I69) -> -- | K69: =IF(C69=0,"NA",VLOOKUP(back_tank_vol,st_bwt_cost_cl,IF(ss_cat="large",4,5))) -> NA | M69: =$B$67&" - "&$B$68&" - "&B69 -> Tanks - Backwash Tanks - Steel | N69: 3 | O69: 3 | P69: 1 | Q69: 3 | R69: 3 | S69: 1 | T69: 3 | U69: 3 | V69: 1 | W69: 0 | X69: 0
A70: 3.1.1 | B70: Fiberglass | C70: =back_tanks -> 0 | D70: units | E70: =IF(C70=0,"NA",back_tank_vol) -> NA | F70: =IF(C70=0,"","gal") ->  | G70: =IF(C70=0,"NA",IF(curve=1,back_tank_vol,VLOOKUP(back_tank_vol,fg_bwt_cost_cl,2))) -> NA | H70: =IF(C70=0,"","gal") ->  | I70: =IF(C70=0,"NA",IF(curve=1,fg_bwt_eq,VLOOKUP(back_tank_vol,fg_bwt_cost_cl,3))) -> NA | J70: =IF(OR(C70=0,I70="contact vendor"),"--",C70*I70) -> -- | K70: =IF(C70=0,"NA",VLOOKUP(back_tank_vol,fg_bwt_cost_cl,IF(ss_cat="large",4,5))) -> NA | M70: =$B$67&" - "&$B$68&" - "&B70 -> Tanks - Backwash Tanks - Fiberglass | N70: 2 | O70: 1 | P70: 2 | Q70: 2 | R70: 1 | S70: 2 | T70: 2 | U70: 1 | V70: 2 | W70: 0 | X70: 0
A71: 3.1.1 | B71: Plastic | C71: =back_tanks -> 0 | D71: units | E71: =IF(C71=0,"NA",back_tank_vol) -> NA | F71: =IF(C71=0,"","gal") ->  | G71: =IF(C71=0,"NA",IF(curve=1,back_tank_vol,VLOOKUP(back_tank_vol,hdpe_bwt_cost_cl,2))) -> NA | H71: =IF(C71=0,"","gal") ->  | I71: =IF(C71=0,"NA",IF(curve=1,hdpe_bwt_eq,VLOOKUP(back_tank_vol,hdpe_bwt_cost_cl,3))) -> NA | J71: =IF(OR(C71=0,I71="contact vendor"),"--",C71*I71) -> -- | K71: =IF(C71=0,"NA",VLOOKUP(back_tank_vol,hdpe_bwt_cost_cl,IF(ss_cat="large",4,5))) -> NA | M71: =$B$67&" - "&$B$68&" - "&B71 -> Tanks - Backwash Tanks - Plastic | N71: 1 | O71: 2 | P71: 3 | Q71: 1 | R71: 2 | S71: 3 | T71: 1 | U71: 2 | V71: 3 | W71: 0 | X71: 0
A72: 3.2 | B72: Electron Donor Storage Tanks | W72: 0 | X72: 0
A73: 3.2.1 | B73: Plastic/XLPE | C73: =e_donor_tanks -> 1 | D73: units | E73: =IF(C73=0,"NA",e_donor_tank_vol) -> 11 | F73: =IF(C73=0,"","gal") -> gal | G73: =IF(C73=0,"NA",IF(curve=1,e_donor_tank_vol,VLOOKUP(e_donor_tank_vol,pl_cst_cost_cl,2))) -> 11 | H73: =IF(C73=0,"","gal") -> gal | I73: =IF(C73=0,"NA",IF(curve=1,pl_e_donor_st_eq,VLOOKUP(e_donor_tank_vol,pl_cst_cost_cl,3))) -> 723.2386958 | J73: =IF(OR(C73=0,I73="contact vendor"),"--",C73*I73) -> 723.2386958 | K73: =IF(C73=0,"NA",VLOOKUP(e_donor_tank_vol,pl_cst_cost_cl,IF(ss_cat="large",4,5))) -> 7 | L73: 1 | M73: =$B$67&" - "&$B$72&" - "&B73 -> Tanks - Electron Donor Storage Tanks - Plastic/XLPE | N73: 1 | O73: 2 | P73: 3 | Q73: 1 | R73: 2 | S73: 3 | T73: 1 | U73: 2 | V73: 3 | W73: 1 | X73: 103.3198137
A74: 3.2.1 | B74: Fiberglass | C74: =e_donor_tanks -> 1 | D74: units | E74: =IF(C74=0,"NA",e_donor_tank_vol) -> 11 | F74: =IF(C74=0,"","gal") -> gal | G74: =IF(C74=0,"NA",IF(curve=1,e_donor_tank_vol,VLOOKUP(e_donor_tank_vol,fg_cst_cost_cl,2))) -> 11 | H74: =IF(C74=0,"","gal") -> gal | I74: =IF(C74=0,"NA",IF(curve=1,fg_e_donor_st_eq,VLOOKUP(e_donor_tank_vol,fg_cst_cost_cl,3))) -> 972.9593478 | J74: =IF(OR(C74=0,I74="contact vendor"),"--",C74*I74) -> 972.9593478 | K74: =IF(C74=0,"NA",VLOOKUP(e_donor_tank_vol,fg_cst_cost_cl,IF(ss_cat="large",4,5))) -> 7 | L74: 0 | M74: =$B$67&" - "&$B$72&" - "&B74 -> Tanks - Electron Donor Storage Tanks - Fiberglass | N74: 2 | O74: 1 | P74: 2 | Q74: 2 | R74: 1 | S74: 2 | T74: 2 | U74: 1 | V74: 2 | W74: 0 | X74: 0
A75: 3.2.1 | B75: Stainless Steel | C75: =e_donor_tanks -> 1 | D75: units | E75: =IF(C75=0,"NA",e_donor_tank_vol) -> 11 | F75: =IF(C75=0,"","gal") -> gal | G75: =IF(C75=0,"NA",IF(curve=1,e_donor_tank_vol,VLOOKUP(e_donor_tank_vol,ss_cst_cost_cl,2))) -> 11 | H75: =IF(C75=0,"","gal") -> gal | I75: =IF(C75=0,"NA",IF(curve=1,ss_e_donor_st_eq,VLOOKUP(e_donor_tank_vol,ss_cst_cost_cl,3))) -> 327.7581084 | J75: =IF(OR(C75=0,I75="contact vendor"),"--",C75*I75) -> 327.7581084 | K75: =IF(C75=0,"NA",VLOOKUP(e_donor_tank_vol,ss_cst_cost_cl,IF(ss_cat="large",4,5))) -> 30 | L75: 0 | M75: =$B$67&" - "&$B$72&" - "&B75 -> Tanks - Electron Donor Storage Tanks - Stainless Steel | N75: 3 | O75: 3 | P75: 1 | Q75: 3 | R75: 3 | S75: 1 | T75: 3 | U75: 3 | V75: 1 | W75: 0 | X75: 0
A76: 3.2.2 | B76: Secondary Containment - Concrete Curbing | C76: =IF(OR(include_sec_cont=0,e_donor_tanks=0),0,e_donor_st_curb_concrete) -> 1 | D76: cy | E76: NA | G76: NA | I76: =IF(C76=0,"NA",VLOOKUP(0,conc_basin_cost_cl,3)) -> 739.6055887 | J76: =IF(C76=0,"--",IF(I76="contact vendor","--",C76*I76)) -> 739.6055887 | K76: =IF(C76=0,"NA",VLOOKUP(0,conc_basin_cost_cl,IF(ss_cat="large",4,5))) -> 37 | L76: 1 | M76: =$B$67&" - "&$B$72&" - "&B76 -> Tanks - Electron Donor Storage Tanks - Secondary Containment - Concrete Curbing | N76: 1 | O76: 1 | P76: 1 | Q76: 1 | R76: 1 | S76: 1 | T76: 1 | U76: 1 | V76: 1 | W76: =IF(ISERROR(K76*L76),0,IF(K76<1,0,L76)) -> 1 | X76: =IF(W76,J76/K76,0) -> 19.98934024
A77: 3.2.3 | B77: Secondary Containment - Chemical Resistant Coating | C77: =IF(OR(include_sec_cont=0,e_donor_tanks=0),0,e_donor_st_coating_gal) -> 1 | D77: gal | E77: NA | G77: NA | I77: =IF(C77=0,"NA",VLOOKUP(0,conc_coating_cost_cl,3)) -> 389.13 | J77: =IF(C77=0,"--",IF(I77="contact vendor","--",C77*I77)) -> 389.13 | K77: =IF(C77=0,"NA",VLOOKUP(0,conc_coating_cost_cl,IF(ss_cat="large",4,5))) -> 10 | L77: 1 | M77: =$B$67&" - "&$B$72&" - "&B77 -> Tanks - Electron Donor Storage Tanks - Secondary Containment - Chemical Resistant Coating | N77: 1 | O77: 1 | P77: 1 | Q77: 1 | R77: 1 | S77: 1 | T77: 1 | U77: 1 | V77: 1 | W77: =IF(ISERROR(K77*L77),0,IF(K77<1,0,L77)) -> 1 | X77: =IF(W77,J77/K77,0) -> 38.913
A78: 3.3 | B78: Ammonium Chloride Storage Tanks | W78: 0 | X78: 0
A79: 3.3.1 | B79: Plastic/XLPE | C79: =NH4Cl_tanks -> 0 | D79: units | E79: =IF(C79=0,"NA",NH4Cl_tank_vol) -> NA | F79: =IF(C79=0,"","gal") ->  | G79: =IF(C79=0,"NA",IF(curve=1,NH4Cl_tank_vol,VLOOKUP(NH4Cl_tank_vol,pl_cst_cost_cl,2))) -> NA | H79: =IF(C79=0,"","gal") ->  | I79: =IF(C79=0,"NA",IF(curve=1,pl_NH4Cl_st_eq,VLOOKUP(NH4Cl_tank_vol,pl_cst_cost_cl,3))) -> NA | J79: =IF(OR(C79=0,I79="contact vendor"),"--",C79*I79) -> -- | K79: =IF(C79=0,"NA",VLOOKUP(NH4Cl_tank_vol,pl_cst_cost_cl,IF(ss_cat="large",4,5))) -> NA | M79: =$B$67&" - "&$B$78&" - "&B79 -> Tanks - Ammonium Chloride Storage Tanks - Plastic/XLPE | N79: 1 | O79: 2 | P79: 3 | Q79: 1 | R79: 2 | S79: 3 | T79: 1 | U79: 2 | V79: 3 | W79: 0 | X79: 0
A80: 3.3.1 | B80: Fiberglass | C80: =NH4Cl_tanks -> 0 | D80: units | E80: =IF(C80=0,"NA",NH4Cl_tank_vol) -> NA | F80: =IF(C80=0,"","gal") ->  | G80: =IF(C80=0,"NA",IF(curve=1,NH4Cl_tank_vol,VLOOKUP(NH4Cl_tank_vol,fg_cst_cost_cl,2))) -> NA | H80: =IF(C80=0,"","gal") ->  | I80: =IF(C80=0,"NA",IF(curve=1,fg_NH4Cl_st_eq,VLOOKUP(NH4Cl_tank_vol,fg_cst_cost_cl,3))) -> NA | J80: =IF(OR(C80=0,I80="contact vendor"),"--",C80*I80) -> -- | K80: =IF(C80=0,"NA",VLOOKUP(NH4Cl_tank_vol,fg_cst_cost_cl,IF(ss_cat="large",4,5))) -> NA | M80: =$B$67&" - "&$B$78&" - "&B80 -> Tanks - Ammonium Chloride Storage Tanks - Fiberglass | N80: 2 | O80: 1 | P80: 2 | Q80: 2 | R80: 1 | S80: 2 | T80: 2 | U80: 1 | V80: 2 | W80: 0 | X80: 0
A81: 3.3.1 | B81: Stainless Steel | C81: =NH4Cl_tanks -> 0 | D81: units | E81: =IF(C81=0,"NA",NH4Cl_tank_vol) -> NA | F81: =IF(C81=0,"","gal") ->  | G81: =IF(C81=0,"NA",IF(curve=1,NH4Cl_tank_vol,VLOOKUP(NH4Cl_tank_vol,ss_cst_cost_cl,2))) -> NA | H81: =IF(C81=0,"","gal") ->  | I81: =IF(C81=0,"NA",IF(curve=1,ss_NH4Cl_st_eq,VLOOKUP(NH4Cl_tank_vol,ss_cst_cost_cl,3))) -> NA | J81: =IF(OR(C81=0,I81="contact vendor"),"--",C81*I81) -> -- | K81: =IF(C81=0,"NA",VLOOKUP(NH4Cl_tank_vol,ss_cst_cost_cl,IF(ss_cat="large",4,5))) -> NA | M81: =$B$67&" - "&$B$78&" - "&B81 -> Tanks - Ammonium Chloride Storage Tanks - Stainless Steel | N81: 3 | O81: 3 | P81: 1 | Q81: 3 | R81: 3 | S81: 1 | T81: 3 | U81: 3 | V81: 1 | W81: 0 | X81: 0
A82: 3.3.2 | B82: Secondary Containment - Concrete Curbing | C82: =IF(OR(include_sec_cont=0,NH4Cl_tanks=0),0,NH4Cl_st_curb_concrete) -> 0 | D82: cy | E82: NA | G82: NA | I82: =IF(C82=0,"NA",VLOOKUP(0,conc_basin_cost_cl,3)) -> NA | J82: =IF(C82=0,"--",IF(I82="contact vendor","--",C82*I82)) -> -- | K82: =IF(C82=0,"NA",VLOOKUP(0,conc_basin_cost_cl,IF(ss_cat="large",4,5))) -> NA | M82: =$B$67&" - "&$B$78&" - "&B82 -> Tanks - Ammonium Chloride Storage Tanks - Secondary Containment - Concrete Curbing | N82: 1 | O82: 1 | P82: 1 | Q82: 1 | R82: 1 | S82: 1 | T82: 1 | U82: 1 | V82: 1 | W82: 0 | X82: 0
A83: 3.3.3 | B83: Secondary Containment - Chemical Resistant Coating | C83: =IF(OR(include_sec_cont=0,NH4Cl_tanks=0),0,NH4Cl_st_coating_gal) -> 0 | D83: gal | E83: NA | G83: NA | I83: =IF(C83=0,"NA",VLOOKUP(0,conc_coating_cost_cl,3)) -> NA | J83: =IF(C83=0,"--",IF(I83="contact vendor","--",C83*I83)) -> -- | K83: =IF(C83=0,"NA",VLOOKUP(0,conc_coating_cost_cl,IF(ss_cat="large",4,5))) -> NA | M83: =$B$67&" - "&$B$78&" - "&B83 -> Tanks - Ammonium Chloride Storage Tanks - Secondary Containment - Chemical Resistant Coating | N83: 1 | O83: 1 | P83: 1 | Q83: 1 | R83: 1 | S83: 1 | T83: 1 | U83: 1 | V83: 1 | W83: 0 | X83: 0
A84: 3.4 | B84: Phosphoric Acid Storage Tanks | W84: 0 | X84: 0
A85: 3.4.1 | B85: Plastic/XLPE | C85: =H3PO4_tanks -> 1 | D85: units | E85: =IF(C85=0,"NA",H3PO4_tank_vol) -> 1 | F85: =IF(C85=0,"","gal") -> gal | G85: =IF(C85=0,"NA",IF(curve=1,H3PO4_tank_vol,VLOOKUP(H3PO4_tank_vol,pl_cst_cost_cl,2))) -> 1 | H85: =IF(C85=0,"","gal") -> gal | I85: =IF(C85=0,"NA",IF(curve=1,pl_H3PO4_st_eq,VLOOKUP(H3PO4_tank_vol,pl_cst_cost_cl,3))) -> 711.9652216 | J85: =IF(OR(C85=0,I85="contact vendor"),"--",C85*I85) -> 711.9652216 | K85: =IF(C85=0,"NA",VLOOKUP(H3PO4_tank_vol,pl_cst_cost_cl,IF(ss_cat="large",4,5))) -> 7 | L85: 1 | M85: =$B$67&" - "&$B$84&" - "&B85 -> Tanks - Phosphoric Acid Storage Tanks - Plastic/XLPE | N85: 1 | O85: 2 | P85: 2 | Q85: 1 | R85: 2 | S85: 2 | T85: 1 | U85: 2 | V85: 2 | W85: 1 | X85: 101.7093174
A86: 3.4.1 | B86: Fiberglass | C86: =H3PO4_tanks -> 1 | D86: units | E86: =IF(C86=0,"NA",H3PO4_tank_vol) -> 1 | F86: =IF(C86=0,"","gal") -> gal | G86: =IF(C86=0,"NA",IF(curve=1,H3PO4_tank_vol,VLOOKUP(H3PO4_tank_vol,fg_cst_cost_cl,2))) -> 1 | H86: =IF(C86=0,"","gal") -> gal | I86: =IF(C86=0,"NA",IF(curve=1,fg_H3PO4_st_eq,VLOOKUP(H3PO4_day_vol,fg_cst_cost_cl,3))) -> 259.3553294 | J86: =IF(OR(C86=0,I86="contact vendor"),"--",C86*I86) -> 259.3553294 | K86: =IF(C86=0,"NA",VLOOKUP(H3PO4_tank_vol,fg_cst_cost_cl,IF(ss_cat="large",4,5))) -> 7 | L86: 0 | M86: =$B$67&" - "&$B$84&" - "&B86 -> Tanks - Phosphoric Acid Storage Tanks - Fiberglass | N86: 2 | O86: 1 | P86: 1 | Q86: 2 | R86: 1 | S86: 1 | T86: 2 | U86: 1 | V86: 1 | W86: 0 | X86: 0
A87: 3.4.2 | B87: Secondary Containment - Concrete Curbing | C87: =IF(OR(include_sec_cont=0,H3PO4_tanks=0),0,H3PO4_st_curb_concrete) -> 1 | D87: cy | E87: NA | G87: NA | I87: =IF(C87=0,"NA",VLOOKUP(0,conc_basin_cost_cl,3)) -> 739.6055887 | J87: =IF(C87=0,"--",IF(I87="contact vendor","--",C87*I87)) -> 739.6055887 | K87: =IF(C87=0,"NA",VLOOKUP(0,conc_basin_cost_cl,IF(ss_cat="large",4,5))) -> 37 | L87: 1 | M87: =$B$67&" - "&$B$84&" - "&B87 -> Tanks - Phosphoric Acid Storage Tanks - Secondary Containment - Concrete Curbing | N87: 1 | O87: 1 | P87: 1 | Q87: 1 | R87: 1 | S87: 1 | T87: 1 | U87: 1 | V87: 1 | W87: =IF(ISERROR(K87*L87),0,IF(K87<1,0,L87)) -> 1 | X87: =IF(W87,J87/K87,0) -> 19.98934024
A88: 3.4.3 | B88: Secondary Containment - Chemical Resistant Coating | C88: =IF(OR(include_sec_cont=0,H3PO4_tanks=0),0,H3PO4_st_coating_gal) -> 1 | D88: gal | E88: NA | G88: NA | I88: =IF(C88=0,"NA",VLOOKUP(0,conc_coating_cost_cl,3)) -> 389.13 | J88: =IF(C88=0,"--",IF(I88="contact vendor","--",C88*I88)) -> 389.13 | K88: =IF(C88=0,"NA",VLOOKUP(0,conc_coating_cost_cl,IF(ss_cat="large",4,5))) -> 10 | L88: 1 | M88: Tanks - Phosphoric Acid Storage Tanks - Secondary Containment - Chemical Resistant Coating | N88: 1 | O88: 1 | P88: 1 | Q88: 1 | R88: 1 | S88: 1 | T88: 1 | U88: 1 | V88: 1 | W88: =IF(ISERROR(K88*L88),0,IF(K88<1,0,L88)) -> 1 | X88: =IF(W88,J88/K88,0) -> 38.913
A89: 3.5 | B89: Electron Donor Day Tanks | W89: 0 | X89: 0
A90: 3.5.1 | B90: Plastic/XLPE | C90: =e_donor_day_tanks -> 1 | D90: units | E90: =IF(C90=0,"NA",e_donor_day_tank_vol) -> 7 | F90: =IF(C90=0,"","gal") -> gal | G90: =IF(C90=0,"NA",IF(curve=1,e_donor_day_tank_vol,VLOOKUP(e_donor_day_tank_vol,pl_cst_cost_cl,2))) -> 7 | H90: =IF(C90=0,"","gal") -> gal | I90: =IF(C90=0,"NA",IF(curve=1,pl_e_donor_day_eq,VLOOKUP(e_donor_day_tank_vol,pl_cst_cost_cl,3))) -> 718.7247499 | J90: =IF(OR(C90=0,I90="contact vendor"),"--",C90*I90) -> 718.7247499 | K90: =IF(C90=0,"NA",VLOOKUP(e_donor_day_tank_vol,pl_cst_cost_cl,IF(ss_cat="large",4,5))) -> 7 | L90: 1 | M90: =$B$67&" - "&$B$89&" - "&B90 -> Tanks - Electron Donor Day Tanks - Plastic/XLPE | N90: 1 | O90: 2 | P90: 3 | Q90: 1 | R90: 2 | S90: 3 | T90: 1 | U90: 2 | V90: 3 | W90: 1 | X90: 102.6749643
A91: 3.5.1 | B91: Fiberglass | C91: =e_donor_day_tanks -> 1 | D91: units | E91: =IF(C91=0,"NA",e_donor_day_tank_vol) -> 7 | F91: =IF(C91=0,"","gal") -> gal | G91: =IF(C91=0,"NA",IF(curve=1,e_donor_day_tank_vol,VLOOKUP(e_donor_day_tank_vol,fg_cst_cost_cl,2))) -> 7 | H91: =IF(C91=0,"","gal") -> gal | I91: =IF(C91=0,"NA",IF(curve=1,fg_e_donor_day_eq,VLOOKUP(e_donor_day_tank_vol,fg_cst_cost_cl,3))) -> 758.3373182 | J91: =IF(OR(C91=0,I91="contact vendor"),"--",C91*I91) -> 758.3373182 | K91: =IF(C91=0,"NA",VLOOKUP(e_donor_day_tank_vol,fg_cst_cost_cl,IF(ss_cat="large",4,5))) -> 7 | L91: 0 | M91: =$B$67&" - "&$B$89&" - "&B91 -> Tanks - Electron Donor Day Tanks - Fiberglass | N91: 2 | O91: 1 | P91: 2 | Q91: 2 | R91: 1 | S91: 2 | T91: 2 | U91: 1 | V91: 2 | W91: 0 | X91: 0
A92: 3.5.1 | B92: Stainless Steel | C92: =e_donor_day_tanks -> 1 | D92: units | E92: =IF(C92=0,"NA",e_donor_day_tank_vol) -> 7 | F92: =IF(C92=0,"","gal") -> gal | G92: =IF(C92=0,"NA",IF(curve=1,e_donor_day_tank_vol,VLOOKUP(e_donor_day_tank_vol,ss_cst_cost_cl,2))) -> 7 | H92: =IF(C92=0,"","gal") -> gal | I92: =IF(C92=0,"NA",IF(curve=1,ss_e_donor_day_eq,VLOOKUP(e_donor_day_tank_vol,ss_cst_cost_cl,3))) -> 235.7169297 | J92: =IF(OR(C92=0,I92="contact vendor"),"--",C92*I92) -> 235.7169297 | K92: =IF(C92=0,"NA",VLOOKUP(e_donor_day_tank_vol,ss_cst_cost_cl,IF(ss_cat="large",4,5))) -> 30 | L92: 0 | M92: =$B$67&" - "&$B$89&" - "&B92 -> Tanks - Electron Donor Day Tanks - Stainless Steel | N92: 3 | O92: 3 | P92: 1 | Q92: 3 | R92: 3 | S92: 1 | T92: 3 | U92: 3 | V92: 1 | W92: 0 | X92: 0
A93: 3.5.2 | B93: Secondary Containment - Concrete Curbing | C93: =IF(OR(include_sec_cont=0,e_donor_day_tanks=0),0,e_donor_dt_curb_concrete) -> 1 | D93: cy | E93: NA | G93: NA | I93: =IF(C93=0,"NA",VLOOKUP(0,conc_basin_cost_cl,3)) -> 739.6055887 | J93: =IF(C93=0,"--",IF(I93="contact vendor","--",C93*I93)) -> 739.6055887 | K93: =IF(C93=0,"NA",VLOOKUP(0,conc_basin_cost_cl,IF(ss_cat="large",4,5))) -> 37 | L93: 1 | M93: =$B$67&" - "&$B$89&" - "&B93 -> Tanks - Electron Donor Day Tanks - Secondary Containment - Concrete Curbing | N93: 1 | O93: 1 | P93: 1 | Q93: 1 | R93: 1 | S93: 1 | T93: 1 | U93: 1 | V93: 1 | W93: =IF(ISERROR(K93*L93),0,IF(K93<1,0,L93)) -> 1 | X93: =IF(W93,J93/K93,0) -> 19.98934024
A94: 3.5.3 | B94: Secondary Containment - Chemical Resistant Coating | C94: =IF(OR(include_sec_cont=0,e_donor_day_tanks=0),0,e_donor_dt_coating_gal) -> 1 | D94: gal | E94: NA | G94: NA | I94: =IF(C94=0,"NA",VLOOKUP(0,conc_coating_cost_cl,3)) -> 389.13 | J94: =IF(C94=0,"--",IF(I94="contact vendor","--",C94*I94)) -> 389.13 | K94: =IF(C94=0,"NA",VLOOKUP(0,conc_coating_cost_cl,IF(ss_cat="large",4,5))) -> 10 | L94: 1 | M94: =$B$67&" - "&$B$89&" - "&B94 -> Tanks - Electron Donor Day Tanks - Secondary Containment - Chemical Resistant Coating | N94: 1 | O94: 1 | P94: 1 | Q94: 1 | R94: 1 | S94: 1 | T94: 1 | U94: 1 | V94: 1 | W94: =IF(ISERROR(K94*L94),0,IF(K94<1,0,L94)) -> 1 | X94: =IF(W94,J94/K94,0) -> 38.913
A95: 3.6 | B95: Ammonium Chloride Day Tanks | W95: 0 | X95: 0
A96: 3.6.1 | B96: Plastic/XLPE | C96: =NH4Cl_day_tanks -> 0 | D96: units | E96: =IF(C96=0,"NA",NH4Cl_day_tank_vol) -> NA | F96: =IF(C96=0,"","gal") ->  | G96: =IF(C96=0,"NA",IF(curve=1,NH4Cl_day_tank_vol,VLOOKUP(NH4Cl_day_tank_vol,pl_cst_cost_cl,2))) -> NA | H96: =IF(C96=0,"","gal") ->  | I96: =IF(C96=0,"NA",IF(curve=1,pl_NH4Cl_day_eq,VLOOKUP(NH4Cl_day_tank_vol,pl_cst_cost_cl,3))) -> NA | J96: =IF(OR(C96=0,I96="contact vendor"),"--",C96*I96) -> -- | K96: =IF(C96=0,"NA",VLOOKUP(NH4Cl_day_tank_vol,pl_cst_cost_cl,IF(ss_cat="large",4,5))) -> NA | M96: =$B$67&" - "&$B$95&" - "&B96 -> Tanks - Ammonium Chloride Day Tanks - Plastic/XLPE | N96: 1 | O96: 2 | P96: 3 | Q96: 1 | R96: 2 | S96: 3 | T96: 1 | U96: 2 | V96: 3 | W96: 0 | X96: 0
A97: 3.6.1 | B97: Fiberglass | C97: =NH4Cl_day_tanks -> 0 | D97: units | E97: =IF(C97=0,"NA",NH4Cl_day_tank_vol) -> NA | F97: =IF(C97=0,"","gal") ->  | G97: =IF(C97=0,"NA",IF(curve=1,NH4Cl_day_tank_vol,VLOOKUP(NH4Cl_day_tank_vol,fg_cst_cost_cl,2))) -> NA | H97: =IF(C97=0,"","gal") ->  | I97: =IF(C97=0,"NA",IF(curve=1,fg_NH4Cl_day_eq,VLOOKUP(NH4Cl_day_tank_vol,fg_cst_cost_cl,3))) -> NA | J97: =IF(OR(C97=0,I97="contact vendor"),"--",C97*I97) -> -- | K97: =IF(C97=0,"NA",VLOOKUP(NH4Cl_day_tank_vol,fg_cst_cost_cl,IF(ss_cat="large",4,5))) -> NA | M97: =$B$67&" - "&$B$95&" - "&B97 -> Tanks - Ammonium Chloride Day Tanks - Fiberglass | N97: 2 | O97: 1 | P97: 2 | Q97: 2 | R97: 1 | S97: 2 | T97: 2 | U97: 1 | V97: 2 | W97: 0 | X97: 0
A98: 3.6.1 | B98: Stainless Steel | C98: =NH4Cl_day_tanks -> 0 | D98: units | E98: =IF(C98=0,"NA",NH4Cl_day_tank_vol) -> NA | F98: =IF(C98=0,"","gal") ->  | G98: =IF(C98=0,"NA",IF(curve=1,NH4Cl_day_tank_vol,VLOOKUP(NH4Cl_day_tank_vol,ss_cst_cost_cl,2))) -> NA | H98: =IF(C98=0,"","gal") ->  | I98: =IF(C98=0,"NA",IF(curve=1,ss_NH4Cl_day_eq,VLOOKUP(NH4Cl_day_tank_vol,ss_cst_cost_cl,3))) -> NA | J98: =IF(OR(C98=0,I98="contact vendor"),"--",C98*I98) -> -- | K98: =IF(C98=0,"NA",VLOOKUP(NH4Cl_day_tank_vol,ss_cst_cost_cl,IF(ss_cat="large",4,5))) -> NA | M98: =$B$67&" - "&$B$95&" - "&B98 -> Tanks - Ammonium Chloride Day Tanks - Stainless Steel | N98: 3 | O98: 3 | P98: 1 | Q98: 3 | R98: 3 | S98: 1 | T98: 3 | U98: 3 | V98: 1 | W98: 0 | X98: 0
A99: 3.6.2 | B99: Secondary Containment - Concrete Curbing | C99: =IF(OR(include_sec_cont=0,NH4Cl_day_tanks=0),0,NH4Cl_dt_curb_concrete) -> 0 | D99: cy | E99: NA | G99: NA | I99: =IF(C99=0,"NA",VLOOKUP(0,conc_basin_cost_cl,3)) -> NA | J99: =IF(C99=0,"--",IF(I99="contact vendor","--",C99*I99)) -> -- | K99: =IF(C99=0,"NA",VLOOKUP(0,conc_basin_cost_cl,IF(ss_cat="large",4,5))) -> NA | M99: =$B$67&" - "&$B$95&" - "&B99 -> Tanks - Ammonium Chloride Day Tanks - Secondary Containment - Concrete Curbing | N99: 1 | O99: 1 | P99: 1 | Q99: 1 | R99: 1 | S99: 1 | T99: 1 | U99: 1 | V99: 1 | W99: =IF(ISERROR(K99*L99),0,IF(K99<1,0,L99)) -> 0 | X99: =IF(W99,J99/K99,0) -> 0
A100: 3.6.3 | B100: Secondary Containment - Chemical Resistant Coating | C100: =IF(OR(include_sec_cont=0,NH4Cl_day_tanks=0),0,NH4Cl_dt_coating_gal) -> 0 | D100: gal | E100: NA | G100: NA | I100: =IF(C100=0,"NA",VLOOKUP(0,conc_coating_cost_cl,3)) -> NA | J100: =IF(C100=0,"--",IF(I100="contact vendor","--",C100*I100)) -> -- | K100: =IF(C100=0,"NA",VLOOKUP(0,conc_coating_cost_cl,IF(ss_cat="large",4,5))) -> NA | M100: =$B$67&" - "&$B$95&" - "&B100 -> Tanks - Ammonium Chloride Day Tanks - Secondary Containment - Chemical Resistant Coating | N100: 1 | O100: 1 | P100: 1 | Q100: 1 | R100: 1 | S100: 1 | T100: 1 | U100: 1 | V100: 1 | W100: =IF(ISERROR(K100*L100),0,IF(K100<1,0,L100)) -> 0 | X100: =IF(W100,J100/K100,0) -> 0
A101: 3.7 | B101: Phosphoric Acid Day Tanks | W101: 0 | X101: 0
A102: 3.7.1 | B102: Plastic/XLPE | C102: =H3PO4_day_tanks -> 0 | D102: units | E102: =IF(C102=0,"NA",H3PO4_day_tank_vol) -> NA | F102: =IF(C102=0,"","gal") ->  | G102: =IF(C102=0,"NA",IF(curve=1,H3PO4_day_tank_vol,VLOOKUP(H3PO4_day_tank_vol,pl_cst_cost_cl,2))) -> NA | H102: =IF(C102=0,"","gal") ->  | I102: =IF(C102=0,"NA",IF(curve=1,pl_H3PO4_day_eq,VLOOKUP(H3PO4_day_tank_vol,pl_cst_cost_cl,3))) -> NA | J102: =IF(OR(C102=0,I102="contact vendor"),"--",C102*I102) -> -- | K102: =IF(C102=0,"NA",VLOOKUP(H3PO4_day_tank_vol,pl_cst_cost_cl,IF(ss_cat="large",4,5))) -> NA | M102: =$B$67&" - "&$B$101&" - "&B102 -> Tanks - Phosphoric Acid Day Tanks - Plastic/XLPE | N102: 1 | O102: 2 | P102: 2 | Q102: 1 | R102: 2 | S102: 2 | T102: 1 | U102: 2 | V102: 2 | W102: 0 | X102: 0
A103: 3.7.1 | B103: Fiberglass | C103: =H3PO4_day_tanks -> 0 | D103: units | E103: =IF(C103=0,"NA",H3PO4_day_tank_vol) -> NA | F103: =IF(C103=0,"","gal") ->  | G103: =IF(C103=0,"NA",IF(curve=1,H3PO4_tank_vol,VLOOKUP(H3PO4_tank_vol,fg_cst_cost_cl,2))) -> NA | H103: =IF(C103=0,"","gal") ->  | I103: =IF(C103=0,"NA",IF(curve=1,fg_H3PO4_day_eq,VLOOKUP(H3PO4_day_tank_vol,fg_cst_cost_cl,3))) -> NA | J103: =IF(OR(C103=0,I103="contact vendor"),"--",C103*I103) -> -- | K103: =IF(C103=0,"NA",VLOOKUP(H3PO4_day_tank_vol,fg_cst_cost_cl,IF(ss_cat="large",4,5))) -> NA | M103: =$B$67&" - "&$B$101&" - "&B103 -> Tanks - Phosphoric Acid Day Tanks - Fiberglass | N103: 2 | O103: 1 | P103: 1 | Q103: 2 | R103: 1 | S103: 1 | T103: 2 | U103: 1 | V103: 1 | W103: 0 | X103: 0
A104: 3.7.2 | B104: Secondary Containment - Concrete Curbing | C104: =IF(OR(include_sec_cont=0,H3PO4_day_tanks=0),0,H3PO4_dt_curb_concrete) -> 0 | D104: cy | E104: NA | G104: NA | I104: =IF(C104=0,"NA",VLOOKUP(0,conc_basin_cost_cl,3)) -> NA | J104: =IF(C104=0,"--",IF(I104="contact vendor","--",C104*I104)) -> -- | K104: =IF(C104=0,"NA",VLOOKUP(0,conc_basin_cost_cl,IF(ss_cat="large",4,5))) -> NA | M104: =$B$67&" - "&$B$101&" - "&B104 -> Tanks - Phosphoric Acid Day Tanks - Secondary Containment - Concrete Curbing | N104: 1 | O104: 1 | P104: 1 | Q104: 1 | R104: 1 | S104: 1 | T104: 1 | U104: 1 | V104: 1 | W104: =IF(ISERROR(K104*L104),0,IF(K104<1,0,L104)) -> 0 | X104: =IF(W104,J104/K104,0) -> 0
A105: 3.7.3 | B105: Secondary Containment - Chemical Resistant Coating | C105: =IF(OR(include_sec_cont=0,H3PO4_day_tanks=0),0,H3PO4_dt_coating_gal) -> 0 | D105: gal | E105: NA | G105: NA | I105: =IF(C105=0,"NA",VLOOKUP(0,conc_coating_cost_cl,3)) -> NA | J105: =IF(C105=0,"--",IF(I105="contact vendor","--",C105*I105)) -> -- | K105: =IF(C105=0,"NA",VLOOKUP(0,conc_coating_cost_cl,IF(ss_cat="large",4,5))) -> NA | M105: =$B$67&" - "&$B$101&" - "&B105 -> Tanks - Phosphoric Acid Day Tanks - Secondary Containment - Chemical Resistant Coating | N105: 1 | O105: 1 | P105: 1 | Q105: 1 | R105: 1 | S105: 1 | T105: 1 | U105: 1 | V105: 1 | W105: =IF(ISERROR(K105*L105),0,IF(K105<1,0,L105)) -> 0 | X105: =IF(W105,J105/K105,0) -> 0
A106: 3.8 | B106: Residuals Holding Tanks/Basins | W106: 0 | X106: 0
A107: 3.8.1 | B107: Concrete Basins (includes Excavation, Backfill, and Compaction) | C107: =hbasins -> 1 | D107: units | E107: =IF(hbasins=0,"NA",hbasin_vol) -> 1616 | F107: =IF(C107=0,"","gal") -> gal | G107: =IF(hbasins=0,"NA",hbasin_vol) -> 1616 | H107: =IF(C107=0,"","gal") -> gal | I107: =IF(hbasins=0,"NA",J107/hbasins) -> 14178.85765 | J107: =IF(hbasins=0,"--",hconc_vol*VLOOKUP(0,conc_basin_cost_cl,3)+hexcavation_vol*VLOOKUP(0,excavate_cost_cl,3)+hbackfill_vol*VLOOKUP(0,backfill_cost_cl,3)+hrailing*VLOOKUP("aluminum railing",metal_cost_cl,3)) -> 14178.85765 | K107: =IF(hbasins=0,"NA",VLOOKUP(0,conc_basin_cost_cl,IF(ss_cat="large",4,5))) -> 37 | L107: 0 | M107: =$B$67&" - "&$B$106&" - "&B107 -> Tanks - Residuals Holding Tanks/Basins - Concrete Basins (includes Excavation, Backfill, and Compaction) | N107: 3 | O107: 3 | P107: 2 | Q107: 3 | R107: 3 | S107: 2 | T107: 3 | U107: 3 | V107: 2 | W107: 0 | X107: 0
A108: 3.8.1 | B108: Steel Tanks | C108: =htanks -> 1 | D108: units | E108: =IF(C108=0,"NA",htank_vol) -> 758 | F108: =IF(C108=0,"","gal") -> gal | G108: =IF(htanks=0,"NA",IF(curve=1,htank_vol,VLOOKUP(htank_vol,st_bwt_cost_cl,2))) -> 758 | H108: =IF(C108=0,"","gal") -> gal | I108: =IF(htanks=0,0,IF(curve=1,st_ht_eq,VLOOKUP(htank_vol,st_bwt_cost_cl,3))) -> 8588.767191 | J108: =IF(I108="contact vendor","--",C108*I108) -> 8588.767191 | K108: =IF(htanks=0,"NA",VLOOKUP(htank_vol,st_bwt_cost_cl,IF(ss_cat="large",4,5))) -> 30 | L108: 0 | M108: =$B$67&" - "&$B$106&" - "&B108 -> Tanks - Residuals Holding Tanks/Basins - Steel Tanks | N108: 4 | O108: 4 | P108: 1 | Q108: 4 | R108: 4 | S108: 1 | T108: 4 | U108: 4 | V108: 1 | W108: 0 | X108: 0
A109: 3.8.1 | B109: Fiberglass Tanks | C109: =htanks -> 1 | D109: units | E109: =IF(C109=0,"NA",htank_vol) -> 758 | F109: =IF(C109=0,"","gal") -> gal | G109: =IF(htanks=0,"NA",IF(curve=1,htank_vol,VLOOKUP(htank_vol,fg_bwt_cost_cl,2))) -> 758 | H109: =IF(C109=0,"","gal") -> gal | I109: =IF(htanks=0,0,IF(curve=1,fg_ht_eq,VLOOKUP(htank_vol,fg_bwt_cost_cl,3))) -> 10920.23333 | J109: =IF(I109="contact vendor","--",C109*I109) -> 10920.23333 | K109: =IF(htanks=0,"NA",VLOOKUP(htank_vol,fg_bwt_cost_cl,IF(ss_cat="large",4,5))) -> 20 | L109: 0 | M109: =$B$67&" - "&$B$106&" - "&B109 -> Tanks - Residuals Holding Tanks/Basins - Fiberglass Tanks | N109: 2 | O109: 1 | P109: 3 | Q109: 2 | R109: 1 | S109: 3 | T109: 2 | U109: 1 | V109: 3 | W109: 0 | X109: 0
A110: 3.8.1 | B110: Plastic/XLPE Tanks | C110: =htanks -> 1 | D110: units | E110: =IF(C110=0,"NA",htank_vol) -> 758 | F110: =IF(C110=0,"","gal") -> gal | G110: =IF(htanks=0,"NA",IF(curve=1,htank_vol,VLOOKUP(htank_vol,hdpe_bwt_cost_cl,2))) -> 758 | H110: =IF(C110=0,"","gal") -> gal | I110: =IF(htanks=0,0,IF(curve=1,hdpe_ht_eq,VLOOKUP(htank_vol,hdpe_bwt_cost_cl,3))) -> 1999.536092 | J110: =IF(I110="contact vendor","--",C110*I110) -> 1999.536092 | K110: =IF(htanks=0,"NA",VLOOKUP(htank_vol,hdpe_bwt_cost_cl,IF(ss_cat="large",4,5))) -> 20 | L110: 1 | M110: =$B$67&" - "&$B$106&" - "&B110 -> Tanks - Residuals Holding Tanks/Basins - Plastic/XLPE Tanks | N110: 1 | O110: 2 | P110: 4 | Q110: 1 | R110: 2 | S110: 4 | T110: 1 | U110: 2 | V110: 4 | W110: 1 | X110: 99.97680459
A111: 3.9 | B111: Hydrogen Peroxide Storage Tanks | W111: 0 | X111: 0
A112: 3.9.1 | B112: Plastic/XLPE | C112: =H2O2_tanks -> 0 | D112: units | E112: =IF(C112=0,"NA",H2O2_tank_vol) -> NA | F112: =IF(C112=0,"","gal") ->  | G112: =IF(C112=0,"NA",IF(curve=1,H2O2_tank_vol,VLOOKUP(H2O2_tank_vol,pl_cst_cost_cl,2))) -> NA | H112: =IF(C112=0,"","gal") ->  | I112: =IF(C112=0,"NA",IF(curve=1,pl_H2O2_st_eq,VLOOKUP(H2O2_tank_vol,pl_cst_cost_cl,3))) -> NA | J112: =IF(OR(C112=0,I112="contact vendor"),"--",C112*I112) -> -- | K112: =IF(C112=0,"NA",VLOOKUP(H2O2_tank_vol,pl_cst_cost_cl,IF(ss_cat="large",4,5))) -> NA | M112: =$B$67&" - "&$B$111&" - "&B112 -> Tanks - Hydrogen Peroxide Storage Tanks - Plastic/XLPE | N112: 1 | O112: 2 | P112: 2 | Q112: 1 | R112: 2 | S112: 2 | T112: 2 | U112: 2 | V112: 2 | W112: 0 | X112: 0
A113: 3.9.1 | B113: Stainless Steel | C113: =H2O2_tanks -> 0 | D113: units | E113: =IF(C113=0,"NA",H2O2_tank_vol) -> NA | F113: =IF(C113=0,"","gal") ->  | G113: =IF(C113=0,"NA",IF(curve=1,H2O2_tank_vol,VLOOKUP(H2O2_tank_vol,ss_cst_cost_cl,2))) -> NA | H113: =IF(C113=0,"","gal") ->  | I113: =IF(C113=0,"NA",IF(curve=1,ss_H2O2_st_eq,VLOOKUP(H2O2_tank_vol,ss_cst_cost_cl,3))) -> NA | J113: =IF(OR(C113=0,I113="contact vendor"),"--",C113*I113) -> -- | K113: =IF(C113=0,"NA",VLOOKUP(H2O2_tank_vol,ss_cst_cost_cl,IF(ss_cat="large",4,5))) -> NA | M113: =$B$67&" - "&$B$111&" - "&B113 -> Tanks - Hydrogen Peroxide Storage Tanks - Stainless Steel | N113: 2 | O113: 1 | P113: 1 | Q113: 2 | R113: 1 | S113: 1 | T113: 1 | U113: 1 | V113: 1 | W113: =IF(ISERROR(K113*L113),0,IF(K113<1,0,L113)) -> 0 | X113: =IF(W113,J113/K113,0) -> 0
A114: 3.9.2 | B114: Secondary Containment - Concrete Curbing | C114: =IF(OR(include_sec_cont=0,H2O2_tanks=0),0,H2O2_st_curb_concrete) -> 0 | D114: cy | E114: NA | G114: NA | I114: =IF(C114=0,"NA",VLOOKUP(0,conc_basin_cost_cl,3)) -> NA | J114: =IF(C114=0,"--",IF(I114="contact vendor","--",C114*I114)) -> -- | K114: =IF(C114=0,"NA",VLOOKUP(0,conc_basin_cost_cl,IF(ss_cat="large",4,5))) -> NA | M114: =$B$67&" - "&$B$111&" - "&B114 -> Tanks - Hydrogen Peroxide Storage Tanks - Secondary Containment - Concrete Curbing | N114: 1 | O114: 1 | P114: 1 | Q114: 1 | R114: 1 | S114: 1 | T114: 1 | U114: 1 | V114: 1 | W114: 0 | X114: 0
A115: 3.9.3 | B115: Secondary Containment - Chemical Resistant Coating | C115: =IF(OR(include_sec_cont=0,H2O2_tanks=0),0,H2O2_st_coating_gal) -> 0 | D115: gal | E115: NA | G115: NA | I115: =IF(C115=0,"NA",VLOOKUP(0,conc_coating_cost_cl,3)) -> NA | J115: =IF(C115=0,"--",IF(I115="contact vendor","--",C115*I115)) -> -- | K115: =IF(C115=0,"NA",VLOOKUP(0,conc_coating_cost_cl,IF(ss_cat="large",4,5))) -> NA | M115: =$B$67&" - "&$B$111&" - "&B115 -> Tanks - Hydrogen Peroxide Storage Tanks - Secondary Containment - Chemical Resistant Coating | N115: 1 | O115: 1 | P115: 1 | Q115: 1 | R115: 1 | S115: 1 | T115: 1 | U115: 1 | V115: 1 | W115: 0 | X115: 0
A116: 3.10 | B116: Hydrogen Peroxide Day Tanks | W116: 0 | X116: 0
A117: 3.10.1 | B117: Plastic/XLPE | C117: =H2O2_day_tanks -> 0 | D117: units | E117: =IF(C117=0,"NA",H2O2_day_tank_vol) -> NA | F117: =IF(C117=0,"","gal") ->  | G117: =IF(C117=0,"NA",IF(curve=1,H2O2_day_tank_vol,VLOOKUP(H2O2_day_tank_vol,pl_cst_cost_cl,2))) -> NA | H117: =IF(C117=0,"","gal") ->  | I117: =IF(C117=0,"NA",IF(curve=1,pl_H2O2_day_eq,VLOOKUP(H2O2_day_tank_vol,pl_cst_cost_cl,3))) -> NA | J117: =IF(OR(C117=0,I117="contact vendor"),"--",C117*I117) -> -- | K117: =IF(C117=0,"NA",VLOOKUP(H2O2_day_tank_vol,pl_cst_cost_cl,IF(ss_cat="large",4,5))) -> NA | M117: =$B$67&" - "&$B$116&" - "&B117 -> Tanks - Hydrogen Peroxide Day Tanks - Plastic/XLPE | N117: 1 | O117: 2 | P117: 2 | Q117: 1 | R117: 2 | S117: 2 | T117: 2 | U117: 2 | V117: 2 | W117: 0 | X117: 0
A118: 3.10.1 | B118: Stainless Steel | C118: =H2O2_day_tanks -> 0 | D118: units | E118: =IF(C118=0,"NA",H2O2_day_tank_vol) -> NA | F118: =IF(C118=0,"","gal") ->  | G118: =IF(C118=0,"NA",IF(curve=1,H2O2_day_tank_vol,VLOOKUP(H2O2_day_tank_vol,ss_cst_cost_cl,2))) -> NA | H118: =IF(C118=0,"","gal") ->  | I118: =IF(C118=0,"NA",IF(curve=1,ss_H2O2_day_eq,VLOOKUP(H2O2_day_tank_vol,ss_cst_cost_cl,3))) -> NA | J118: =IF(OR(C118=0,I118="contact vendor"),"--",C118*I118) -> -- | K118: =IF(C118=0,"NA",VLOOKUP(H2O2_day_tank_vol,ss_cst_cost_cl,IF(ss_cat="large",4,5))) -> NA | M118: =$B$67&" - "&$B$116&" - "&B118 -> Tanks - Hydrogen Peroxide Day Tanks - Stainless Steel | N118: 2 | O118: 1 | P118: 1 | Q118: 2 | R118: 1 | S118: 1 | T118: 1 | U118: 1 | V118: 1 | W118: 0 | X118: 0
A119: 3.10.2 | B119: Secondary Containment - Concrete Curbing | C119: =IF(OR(include_sec_cont=0,H2O2_day_tanks=0),0,H2O2_dt_curb_concrete) -> 0 | D119: cy | E119: NA | G119: NA | I119: =IF(C119=0,"NA",VLOOKUP(0,conc_basin_cost_cl,3)) -> NA | J119: =IF(C119=0,"--",IF(I119="contact vendor","--",C119*I119)) -> -- | K119: =IF(C119=0,"NA",VLOOKUP(0,conc_basin_cost_cl,IF(ss_cat="large",4,5))) -> NA | M119: =$B$67&" - "&$B$116&" - "&B119 -> Tanks - Hydrogen Peroxide Day Tanks - Secondary Containment - Concrete Curbing | N119: 1 | O119: 1 | P119: 1 | Q119: 1 | R119: 1 | S119: 1 | T119: 1 | U119: 1 | V119: 1 | W119: 0 | X119: 0
A120: 3.10.3 | B120: Secondary Containment - Chemical Resistant Coating | C120: =IF(OR(include_sec_cont=0,H2O2_day_tanks=0),0,H2O2_dt_coating_gal) -> 0 | D120: gal | E120: NA | G120: NA | I120: =IF(C120=0,"NA",VLOOKUP(0,conc_coating_cost_cl,3)) -> NA | J120: =IF(C120=0,"--",IF(I120="contact vendor","--",C120*I120)) -> -- | K120: =IF(C120=0,"NA",VLOOKUP(0,conc_coating_cost_cl,IF(ss_cat="large",4,5))) -> NA | M120: =$B$67&" - "&$B$116&" - "&B120 -> Tanks - Hydrogen Peroxide Day Tanks - Secondary Containment - Chemical Resistant Coating | N120: 1 | O120: 1 | P120: 1 | Q120: 1 | R120: 1 | S120: 1 | T120: 1 | U120: 1 | V120: 1 | W120: 0 | X120: 0
A121: 3.11 | B121: Aeration Tanks | W121: 0 | X121: 0
A122: 3.11.1 | B122: Steel | C122: =aeration_tanks -> 1 | D122: units | E122: =IF(C122=0,"NA",aeration_tank_vol) -> 22.28163993 | F122: =IF(C122=0,"","gal") -> gal | G122: =IF(C122=0,"NA",IF(curve=1,aeration_tank_vol,VLOOKUP(aeration_tank_vol,st_bwt_cost_cl,2))) -> 22.28163993 | H122: =IF(C122=0,"","gal") -> gal | I122: =IF(C122=0,"NA",IF(curve=1,st_aeration_eq,VLOOKUP(aeration_tank_vol,st_bwt_cost_cl,3))) -> 1464.946933 | J122: =IF(OR(C122=0,I122="contact vendor"),"--",C122*I122) -> 1464.946933 | K122: =IF(C122=0,"NA",VLOOKUP(aeration_tank_vol,st_bwt_cost_cl,IF(ss_cat="large",4,5))) -> 30 | L122: 0 | M122: =$B$67&" - "&$B$121&" - "&B122 -> Tanks - Aeration Tanks - Steel | N122: 3 | O122: 3 | P122: 1 | Q122: 3 | R122: 3 | S122: 1 | T122: 3 | U122: 3 | V122: 1 | W122: 0 | X122: 0
A123: 3.11.1 | B123: Fiberglass | C123: =aeration_tanks -> 1 | D123: units | E123: =IF(C123=0,"NA",aeration_tank_vol) -> 22.28163993 | F123: =IF(C123=0,"","gal") -> gal | G123: =IF(C123=0,"NA",IF(curve=1,aeration_tank_vol,VLOOKUP(aeration_tank_vol,fg_bwt_cost_cl,2))) -> 22.28163993 | H123: =IF(C123=0,"","gal") -> gal | I123: =IF(C123=0,"NA",IF(curve=1,fg_aeration_eq,VLOOKUP(aeration_tank_vol,fg_bwt_cost_cl,3))) -> 1056.538836 | J123: =IF(OR(C123=0,I123="contact vendor"),"--",C123*I123) -> 1056.538836 | K123: =IF(C123=0,"NA",VLOOKUP(aeration_tank_vol,fg_bwt_cost_cl,IF(ss_cat="large",4,5))) -> 20 | L123: 0 | M123: =$B$67&" - "&$B$121&" - "&B123 -> Tanks - Aeration Tanks - Fiberglass | N123: 2 | O123: 1 | P123: 2 | Q123: 2 | R123: 1 | S123: 2 | T123: 2 | U123: 1 | V123: 2 | W123: 0 | X123: 0
A124: 3.11.1 | B124: Plastic/XLPE | C124: =aeration_tanks -> 1 | D124: units | E124: =IF(C124=0,"NA",aeration_tank_vol) -> 22.28163993 | F124: =IF(C124=0,"","gal") -> gal | G124: =IF(C124=0,"NA",IF(curve=1,aeration_tank_vol,VLOOKUP(aeration_tank_vol,hdpe_bwt_cost_cl,2))) -> 22.28163993 | H124: =IF(C124=0,"","gal") -> gal | I124: =IF(C124=0,"NA",IF(curve=1,hdpe_aeration_eq,VLOOKUP(aeration_tank_vol,hdpe_bwt_cost_cl,3))) -> 480.9428002 | J124: =IF(OR(C124=0,I124="contact vendor"),"--",C124*I124) -> 480.9428002 | K124: =IF(C124=0,"NA",VLOOKUP(aeration_tank_vol,hdpe_bwt_cost_cl,IF(ss_cat="large",4,5))) -> 20 | L124: 1 | M124: =$B$67&" - "&$B$121&" - "&B124 -> Tanks - Aeration Tanks - Plastic/XLPE | N124: 1 | O124: 2 | P124: 3 | Q124: 1 | R124: 2 | S124: 3 | T124: 1 | U124: 2 | V124: 3 | W124: 1 | X124: 24.04714001
A125: 3.11.2 | B125: Diffusers | C125: =total_diffusers -> 1 | D125: units | E125: =diffuser_size -> 1.354166667 | F125: cfm | G125: =IF(curve=1,diffuser_size,VLOOKUP(diffuser_size,diffuser_cost_cl,2)) -> 1.354166667 | H125: cfm | I125: =IF(C125=0,"NA",IF(curve=1,diffuser_eq,VLOOKUP(diffuser_size,diffuser_cost_cl,3))) -> 39.0824332 | J125: =IF(OR(C125=0,I125="contact vendor"),"--",C125*I125) -> 39.0824332 | K125: =IF(C125=0,"NA",VLOOKUP(diffuser_size,diffuser_cost_cl,IF(ss_cat="large",4,5))) -> 10 | L125: 1 | M125: =$B$67&" - "&$B$121&" - "&B125 -> Tanks - Aeration Tanks - Diffusers | N125: 1 | O125: 1 | P125: 1 | Q125: 1 | R125: 1 | S125: 1 | T125: 1 | U125: 1 | V125: 1 | W125: 1 | X125: 3.90824332
A126: 3.12 | B126: Ferric Chloride Storage Tanks | W126: 0 | X126: 0
A127: 3.12.1 | B127: Plastic/XLPE | C127: =coag_tanks -> 1 | D127: units | E127: =IF(C127=0,"NA",coag_tank_vol) -> 4 | F127: =IF(C127=0,"","gal") -> gal | G127: =IF(C127=0,"NA",IF(curve=1,coag_tank_vol,VLOOKUP(coag_tank_vol,pl_cst_cost_cl,2))) -> 4 | H127: =IF(C127=0,"","gal") -> gal | I127: =IF(C127=0,"NA",IF(curve=1,pl_coag_st_eq,VLOOKUP(coag_tank_vol,pl_cst_cost_cl,3))) -> 715.3432772 | J127: =IF(OR(C127=0,I127="contact vendor"),"--",C127*I127) -> 715.3432772 | K127: =IF(C127=0,"NA",VLOOKUP(coag_tank_vol,pl_cst_cost_cl,IF(ss_cat="large",4,5))) -> 7 | L127: 1 | M127: =$B$67&" - "&$B$126&" - "&B127 -> Tanks - Ferric Chloride Storage Tanks - Plastic/XLPE | N127: 1 | O127: 2 | P127: 2 | Q127: 1 | R127: 2 | S127: 2 | T127: 1 | U127: 2 | V127: 2 | W127: 1 | X127: =IF(W127,J127/K127,0) -> 102.1918967
A128: 3.12.1 | B128: Fiberglass | C128: =coag_tanks -> 1 | D128: units | E128: =IF(C128=0,"NA",coag_tank_vol) -> 4 | F128: =IF(C128=0,"","gal") -> gal | G128: =IF(C128=0,"NA",IF(curve=1,coag_tank_vol,VLOOKUP(coag_tank_vol,fg_cst_cost_cl,2))) -> 4 | H128: =IF(C128=0,"","gal") -> gal | I128: =IF(C128=0,"NA",IF(curve=1,fg_coag_st_eq,VLOOKUP(coag_day_vol,fg_cst_cost_cl,3))) -> 557.0022438 | J128: =IF(OR(C128=0,I128="contact vendor"),"--",C128*I128) -> 557.0022438 | K128: =IF(C128=0,"NA",VLOOKUP(coag_tank_vol,fg_cst_cost_cl,IF(ss_cat="large",4,5))) -> 7 | L128: 0 | M128: =$B$67&" - "&$B$126&" - "&B128 -> Tanks - Ferric Chloride Storage Tanks - Fiberglass | N128: 2 | O128: 1 | P128: 1 | Q128: 2 | R128: 1 | S128: 1 | T128: 2 | U128: 1 | V128: 1 | W128: 0 | X128: 0
A129: 3.12.2 | B129: Secondary Containment - Concrete Curbing | C129: =IF(OR(include_sec_cont=0,coag_tanks=0),0,coag_curb_concrete) -> 1 | D129: cy | E129: NA | G129: NA | I129: =IF(C129=0,"NA",VLOOKUP(0,conc_basin_cost_cl,3)) -> 739.6055887 | J129: =IF(C129=0,"--",IF(I129="contact vendor","--",C129*I129)) -> 739.6055887 | K129: =IF(C129=0,"NA",VLOOKUP(0,conc_basin_cost_cl,IF(ss_cat="large",4,5))) -> 37 | L129: 1 | M129: Tanks - Ferric Chloride Storage Tanks - Secondary Containment - Concrete Curbing | N129: 1 | O129: 1 | P129: 1 | Q129: 1 | R129: 1 | S129: 1 | T129: 1 | U129: 1 | V129: 1 | W129: =IF(ISERROR(K129*L129),0,IF(K129<1,0,L129)) -> 1 | X129: =IF(W129,J129/K129,0) -> 19.98934024
A130: 3.12.3 | B130: Secondary Containment - Chemical Resistant Coating | C130: =IF(OR(include_sec_cont=0,coag_tanks=0),0,coag_coating_gal) -> 1 | D130: gal | E130: NA | G130: NA | I130: =IF(C130=0,"NA",VLOOKUP(0,conc_coating_cost_cl,3)) -> 389.13 | J130: =IF(C130=0,"--",IF(I130="contact vendor","--",C130*I130)) -> 389.13 | K130: =IF(C130=0,"NA",VLOOKUP(0,conc_coating_cost_cl,IF(ss_cat="large",4,5))) -> 10 | L130: 1 | M130: Tanks - Ferric Chloride Storage Tanks - Secondary Containment - Chemical Resistant Coating | N130: 1 | O130: 1 | P130: 1 | Q130: 1 | R130: 1 | S130: 1 | T130: 1 | U130: 1 | V130: 1 | W130: =IF(ISERROR(K130*L130),0,IF(K130<1,0,L130)) -> 1 | X130: =IF(W130,J130/K130,0) -> 38.913
A131: 3.13 | B131: Ferric Chloride Day Tanks | W131: =IF(ISERROR(K131*L131),0,IF(K131<1,0,L131)) -> 0 | X131: =IF(W131,J131/K131,0) -> 0
A132: 3.13.1 | B132: Plastic/XLPE | C132: =coag_day_tanks -> 0 | D132: units | E132: =IF(C132=0,"NA",coag_day_tank_vol) -> NA | F132: =IF(C132=0,"","gal") ->  | G132: =IF(C132=0,"NA",IF(curve=1,coag_day_tank_vol,VLOOKUP(coag_day_tank_vol,pl_cst_cost_cl,2))) -> NA | H132: =IF(C132=0,"","gal") ->  | I132: =IF(C132=0,"NA",IF(curve=1,pl_coag_day_eq,VLOOKUP(coag_day_tank_vol,pl_cst_cost_cl,3))) -> NA | J132: =IF(OR(C132=0,I132="contact vendor"),"--",C132*I132) -> -- | K132: =IF(C132=0,"NA",VLOOKUP(coag_day_tank_vol,pl_cst_cost_cl,IF(ss_cat="large",4,5))) -> NA | M132: =$B$67&" - "&$B$131&" - "&B132 -> Tanks - Ferric Chloride Day Tanks - Plastic/XLPE | N132: 1 | O132: 2 | P132: 2 | Q132: 1 | R132: 2 | S132: 2 | T132: 1 | U132: 2 | V132: 2 | W132: 0 | X132: =IF(W132,J132/K132,0) -> 0
A133: 3.13.1 | B133: Fiberglass | C133: =coag_day_tanks -> 0 | D133: units | E133: =IF(C133=0,"NA",coag_day_tank_vol) -> NA | F133: =IF(C133=0,"","gal") ->  | G133: =IF(C133=0,"NA",IF(curve=1,coag_day_tank_vol,VLOOKUP(coag_day_tank_vol,fg_cst_cost_cl,2))) -> NA | H133: =IF(C133=0,"","gal") ->  | I133: =IF(C133=0,"NA",IF(curve=1,fg_coag_day_eq,VLOOKUP(coag_day_tank_vol,fg_cst_cost_cl,3))) -> NA | J133: =IF(OR(C133=0,I133="contact vendor"),"--",C133*I133) -> -- | K133: =IF(C133=0,"NA",VLOOKUP(coag_day_tank_vol,fg_cst_cost_cl,IF(ss_cat="large",4,5))) -> NA | M133: =$B$67&" - "&$B$131&" - "&B133 -> Tanks - Ferric Chloride Day Tanks - Fiberglass | N133: 2 | O133: 1 | P133: 1 | Q133: 2 | R133: 1 | S133: 1 | T133: 2 | U133: 1 | V133: 1 | W133: 0 | X133: =IF(W133,J133/K133,0) -> 0
A134: 3.13.2 | B134: Secondary Containment - Concrete Curbing | C134: =IF(OR(include_sec_cont=0,coag_tanks=0),0,coag_dt_curb_concrete) -> 0 | D134: cy | E134: NA | G134: NA | I134: =IF(C134=0,"NA",VLOOKUP(0,conc_basin_cost_cl,3)) -> NA | J134: =IF(C134=0,"--",IF(I134="contact vendor","--",C134*I134)) -> -- | K134: =IF(C134=0,"NA",VLOOKUP(0,conc_basin_cost_cl,IF(ss_cat="large",4,5))) -> NA | M134: Tanks - Ferric Chloride Day Tanks - Secondary Containment - Concrete Curbing | N134: 1 | O134: 1 | P134: 1 | Q134: 1 | R134: 1 | S134: 1 | T134: 1 | U134: 1 | V134: 1 | W134: =IF(ISERROR(K134*L134),0,IF(K134<1,0,L134)) -> 0 | X134: =IF(W134,J134/K134,0) -> 0
A135: 3.13.3 | B135: Secondary Containment - Chemical Resistant Coating | C135: =IF(OR(include_sec_cont=0,coag_tanks=0),0,coag_dt_coating_gal) -> 0 | D135: gal | E135: NA | G135: NA | I135: =IF(C135=0,"NA",VLOOKUP(0,conc_coating_cost_cl,3)) -> NA | J135: =IF(C135=0,"--",IF(I135="contact vendor","--",C135*I135)) -> -- | K135: =IF(C135=0,"NA",VLOOKUP(0,conc_coating_cost_cl,IF(ss_cat="large",4,5))) -> NA | M135: Tanks - Ferric Chloride Day Tanks - Secondary Containment - Chemical Resistant Coating | N135: 1 | O135: 1 | P135: 1 | Q135: 1 | R135: 1 | S135: 1 | T135: 1 | U135: 1 | V135: 1 | W135: =IF(ISERROR(K135*L135),0,IF(K135<1,0,L135)) -> 0 | X135: =IF(W135,J135/K135,0) -> 0
A136: 3.14 | B136: Polymer Storage Tanks | W136: 0 | X136: 0
A137: 3.14.1 | B137: Plastic/XLPE | C137: =polymer_tanks -> 1 | D137: units | E137: =IF(C137=0,"NA",polymer_tank_vol) -> 2 | F137: =IF(C137=0,"","gal") -> gal | G137: =IF(C137=0,"NA",IF(curve=1,polymer_tank_vol,VLOOKUP(polymer_tank_vol,pl_cst_cost_cl,2))) -> 2 | H137: =IF(C137=0,"","gal") -> gal | I137: =IF(C137=0,"NA",IF(curve=1,pl_polymer_st_eq,VLOOKUP(polymer_tank_vol,pl_cst_cost_cl,3))) -> 713.0908604 | J137: =IF(OR(C137=0,I137="contact vendor"),"--",C137*I137) -> 713.0908604 | K137: =IF(C137=0,"NA",VLOOKUP(polymer_tank_vol,pl_cst_cost_cl,IF(ss_cat="large",4,5))) -> 7 | L137: 1 | M137: =$B$67&" - "&$B$136&" - "&B137 -> Tanks - Polymer Storage Tanks - Plastic/XLPE | N137: 1 | O137: 2 | P137: 3 | Q137: 1 | R137: 2 | S137: 3 | T137: 1 | U137: 2 | V137: 3 | W137: 1 | X137: 101.8701229
A138: 3.14.1 | B138: Fiberglass | C138: =polymer_tanks -> 1 | D138: units | E138: =IF(C138=0,"NA",polymer_tank_vol) -> 2 | F138: =IF(C138=0,"","gal") -> gal | G138: =IF(C138=0,"NA",IF(curve=1,polymer_tank_vol,VLOOKUP(polymer_tank_vol,fg_cst_cost_cl,2))) -> 2 | H138: =IF(C138=0,"","gal") -> gal | I138: =IF(C138=0,"NA",IF(curve=1,fg_polymer_st_eq,VLOOKUP(polymer_tank_vol,fg_cst_cost_cl,3))) -> 380.080913 | J138: =IF(OR(C138=0,I138="contact vendor"),"--",C138*I138) -> 380.080913 | K138: =IF(C138=0,"NA",VLOOKUP(polymer_tank_vol,fg_cst_cost_cl,IF(ss_cat="large",4,5))) -> 7 | L138: 0 | M138: =$B$67&" - "&$B$136&" - "&B138 -> Tanks - Polymer Storage Tanks - Fiberglass | N138: 2 | O138: 1 | P138: 2 | Q138: 2 | R138: 1 | S138: 2 | T138: 2 | U138: 1 | V138: 2 | W138: 0 | X138: 0
A139: 3.14.1 | B139: Stainless Steel | C139: =polymer_tanks -> 1 | D139: units | E139: =IF(C139=0,"NA",polymer_tank_vol) -> 2 | F139: =IF(C139=0,"","gal") -> gal | G139: =IF(C139=0,"NA",IF(curve=1,polymer_tank_vol,VLOOKUP(polymer_tank_vol,ss_cst_cost_cl,2))) -> 2 | H139: =IF(C139=0,"","gal") -> gal | I139: =IF(C139=0,"NA",IF(curve=1,ss_polymer_st_eq,VLOOKUP(polymer_tank_vol,ss_cst_cost_cl,3))) -> 94.53402221 | J139: =IF(OR(C139=0,I139="contact vendor"),"--",C139*I139) -> 94.53402221 | K139: =IF(C139=0,"NA",VLOOKUP(polymer_tank_vol,ss_cst_cost_cl,IF(ss_cat="large",4,5))) -> 30 | L139: 0 | M139: =$B$67&" - "&$B$136&" - "&B139 -> Tanks - Polymer Storage Tanks - Stainless Steel | N139: 3 | O139: 3 | P139: 1 | Q139: 3 | R139: 3 | S139: 1 | T139: 3 | U139: 3 | V139: 1 | W139: 0 | X139: 0
A140: 3.15 | B140: Coagulant Mix Tank | W140: 0 | X140: 0
A141: 3.15.1 | B141: Steel | C141: =coag_mix_tank -> 1 | D141: units | E141: =IF(C141=0,"NA",coag_mix_tank_size) -> 20.83333333 | F141: =IF(C141=0,"","gal") -> gal | G141: =IF(htanks=0,"NA",IF(curve=1,coag_mix_tank_size,VLOOKUP(coag_mix_tank_size,st_bwt_cost_cl,2))) -> 20.83333333 | H141: =IF(C141=0,"","gal") -> gal | I141: =IF(C141=0,0,IF(curve=1,st_coag_eq,VLOOKUP(coag_mix_tank_size,st_bwt_cost_cl,3))) -> 1416.396557 | J141: =IF(I141="contact vendor","--",C141*I141) -> 1416.396557 | K141: =IF(C141=0,"NA",VLOOKUP(coag_mix_tank_size,st_bwt_cost_cl,IF(ss_cat="large",4,5))) -> 30 | L141: 0 | M141: =$B$67&" - "&$B$140&" - "&B141 -> Tanks - Coagulant Mix Tank - Steel | N141: 3 | O141: 3 | P141: 1 | Q141: 3 | R141: 3 | S141: 1 | T141: 3 | U141: 3 | V141: 1 | W141: 0 | X141: 0
A142: 3.15.1 | B142: Fiberglass | C142: =coag_mix_tank -> 1 | D142: units | E142: =IF(C142=0,"NA",coag_mix_tank_size) -> 20.83333333 | F142: =IF(C142=0,"","gal") -> gal | G142: =IF(htanks=0,"NA",IF(curve=1,coag_mix_tank_size,VLOOKUP(coag_mix_tank_size,fg_bwt_cost_cl,2))) -> 20.83333333 | H142: =IF(C142=0,"","gal") -> gal | I142: =IF(C142=0,0,IF(curve=1,fg_coag_eq,VLOOKUP(coag_mix_tank_size,fg_bwt_cost_cl,3))) -> 1010.546146 | J142: =IF(I142="contact vendor","--",C142*I142) -> 1010.546146 | K142: =IF(C142=0,"NA",VLOOKUP(coag_mix_tank_size,fg_bwt_cost_cl,IF(ss_cat="large",4,5))) -> 20 | L142: 0 | M142: =$B$67&" - "&$B$140&" - "&B142 -> Tanks - Coagulant Mix Tank - Fiberglass | N142: 2 | O142: 1 | P142: 2 | Q142: 2 | R142: 1 | S142: 2 | T142: 2 | U142: 1 | V142: 2 | W142: 0 | X142: 0
A143: 3.15.1 | B143: Plastic/XLPE | C143: =coag_mix_tank -> 1 | D143: units | E143: =IF(C143=0,"NA",coag_mix_tank_size) -> 20.83333333 | F143: =IF(C143=0,"","gal") -> gal | G143: =IF(htanks=0,"NA",IF(curve=1,coag_mix_tank_size,VLOOKUP(coag_mix_tank_size,hdpe_bwt_cost_cl,2))) -> 20.83333333 | H143: =IF(C143=0,"","gal") -> gal | I143: =IF(C143=0,0,IF(curve=1,hdpe_coag_eq,VLOOKUP(coag_mix_tank_size,hdpe_bwt_cost_cl,3))) -> 477.9080214 | J143: =IF(I143="contact vendor","--",C143*I143) -> 477.9080214 | K143: =IF(C143=0,"NA",VLOOKUP(coag_mix_tank_size,hdpe_bwt_cost_cl,IF(ss_cat="large",4,5))) -> 20 | L143: 1 | M143: =$B$67&" - "&$B$140&" - "&B143 -> Tanks - Coagulant Mix Tank - Plastic/XLPE | N143: 1 | O143: 2 | P143: 3 | Q143: 1 | R143: 2 | S143: 3 | T143: 1 | U143: 2 | V143: 3 | W143: 1 | X143: 23.89540107
A144: 4 | B144: Piping | W144: 0 | X144: 0
A145: 4.1 | B145: Backwash Piping | W145: 0 | X145: 0
A146: 4.1.1 | B146: CPVC | C146: =back_pipe_length -> 50 | D146: lf | E146: =back_pipe_diam -> 2.5 | F146: in. diam | G146: =IF(curve=1,back_pipe_diam,VLOOKUP(back_pipe_diam,cpvc_pipe_cost_cl,2)) -> 2.5 | H146: in. diam | I146: =IF(curve=1,cpvc_pipe_eq_back,VLOOKUP(back_pipe_diam,cpvc_pipe_cost_cl,3)) -> 12.98002094 | J146: =IF(I146="contact vendor","--",C146*I146) -> 649.0010469 | K146: =VLOOKUP(back_pipe_diam,cpvc_pipe_cost_cl,IF(ss_cat="large",4,5)) -> 17 | L146: 0 | M146: =$B$144&" - "&$B$145&" - "&B146 -> Piping - Backwash Piping - CPVC | N146: 2 | O146: 1 | P146: 3 | Q146: 2 | R146: 1 | S146: 3 | T146: 2 | U146: 1 | V146: 3 | W146: 0 | X146: 0
A147: 4.1.1 | B147: PVC | C147: =back_pipe_length -> 50 | D147: lf | E147: =back_pipe_diam -> 2.5 | F147: in. diam | G147: =IF(curve=1,back_pipe_diam,VLOOKUP(back_pipe_diam,pvc_pipe_cost_cl,2)) -> 2.5 | H147: in. diam | I147: =IF(curve=1,pvc_pipe_eq_back,VLOOKUP(back_pipe_diam,pvc_pipe_cost_cl,3)) -> 4.037081629 | J147: =IF(I147="contact vendor","--",C147*I147) -> 201.8540814 | K147: =VLOOKUP(back_pipe_diam,pvc_pipe_cost_cl,IF(ss_cat="large",4,5)) -> 17 | L147: 1 | M147: =$B$144&" - "&$B$145&" - "&B147 -> Piping - Backwash Piping - PVC | N147: 1 | O147: 2 | P147: 4 | Q147: 1 | R147: 2 | S147: 4 | T147: 1 | U147: 2 | V147: 4 | W147: 1 | X147: 11.8737695
A148: 4.1.1 | B148: Stainless Steel | C148: =back_pipe_length -> 50 | D148: lf | E148: =back_pipe_diam -> 2.5 | F148: in. diam | G148: =IF(curve=1,back_pipe_diam,VLOOKUP(back_pipe_diam,ss_pipe_cost_cl,2)) -> 2.5 | H148: in. diam | I148: =IF(curve=1,ss_pipe_eq_back,VLOOKUP(back_pipe_diam,ss_pipe_cost_cl,3)) -> 119.4606423 | J148: =IF(I148="contact vendor","--",C148*I148) -> 5973.032117 | K148: =VLOOKUP(back_pipe_diam,ss_pipe_cost_cl,IF(ss_cat="large",4,5)) -> 40 | L148: 0 | M148: =$B$144&" - "&$B$145&" - "&B148 -> Piping - Backwash Piping - Stainless Steel | N148: 4 | O148: 4 | P148: 1 | Q148: 4 | R148: 4 | S148: 1 | T148: 4 | U148: 4 | V148: 1 | W148: 0 | X148: 0
A149: 4.1.1 | B149: Steel | C149: =back_pipe_length -> 50 | D149: lf | E149: =back_pipe_diam -> 2.5 | F149: in. diam | G149: =IF(curve=1,back_pipe_diam,VLOOKUP(back_pipe_diam,st_pipe_cost_cl,2)) -> 2.5 | H149: in. diam | I149: =IF(curve=1,st_pipe_eq_back,VLOOKUP(back_pipe_diam,st_pipe_cost_cl,3)) -> 48.42281629 | J149: =IF(I149="contact vendor","--",C149*I149) -> 2421.140815 | K149: =VLOOKUP(back_pipe_diam,st_pipe_cost_cl,IF(ss_cat="large",4,5)) -> 33 | L149: 0 | M149: =$B$144&" - "&$B$145&" - "&B149 -> Piping - Backwash Piping - Steel | N149: 3 | O149: 3 | P149: 2 | Q149: 3 | R149: 3 | S149: 2 | T149: 3 | U149: 3 | V149: 2 | W149: 0 | X149: 0
A150: 4.2 | B150: Electron Donor Piping | W150: 0 | X150: 0
A151: 4.2.1 | B151: CPVC | C151: =e_donor_pipe_length -> 20 | D151: lf | E151: =IF(C151=0,"NA",e_donor_pipe_diam) -> 0.5 | F151: =IF(C151=0,"","in diam") -> in diam | G151: =IF(C151=0,"NA",IF(curve=1,e_donor_pipe_diam,VLOOKUP(e_donor_pipe_diam,cpvc_pipe_cost_cl,2))) -> 0.5 | H151: in. diam | I151: =IF(C151=0,"NA",IF(curve=1,cpvc_pipe_eq_e_donor,VLOOKUP(e_donor_pipe_diam,cpvc_pipe_cost_cl,3))) -> 2.593344082 | J151: =IF(OR(C151=0,I151="contact vendor"),"--",C151*I151) -> 51.86688165 | K151: =IF(C151=0,"NA",VLOOKUP(e_donor_pipe_diam,cpvc_pipe_cost_cl,IF(ss_cat="large",4,5))) -> 17 | L151: 0 | M151: =$B$144&" - "&$B$150&" - "&B151 -> Piping - Electron Donor Piping - CPVC | N151: 2 | O151: 1 | P151: 3 | Q151: 2 | R151: 1 | S151: 3 | T151: 2 | U151: 1 | V151: 3 | W151: 0 | X151: 0
A152: 4.2.1 | B152: PVC | C152: =e_donor_pipe_length -> 20 | D152: lf | E152: =IF(C152=0,"NA",e_donor_pipe_diam) -> 0.5 | F152: =IF(C152=0,"","in diam") -> in diam | G152: =IF(C152=0,"NA",IF(curve=1,e_donor_pipe_diam,VLOOKUP(e_donor_pipe_diam,pvc_pipe_cost_cl,2))) -> 0.5 | H152: in. diam | I152: =IF(C152=0,"NA",IF(curve=1,pvc_pipe_eq_e_donor,VLOOKUP(e_donor_pipe_diam,pvc_pipe_cost_cl,3))) -> 1.852484879 | J152: =IF(OR(C152=0,I152="contact vendor"),"--",C152*I152) -> 37.04969758 | K152: =IF(C152=0,"NA",VLOOKUP(e_donor_pipe_diam,pvc_pipe_cost_cl,IF(ss_cat="large",4,5))) -> 17 | L152: 1 | M152: =$B$144&" - "&$B$150&" - "&B152 -> Piping - Electron Donor Piping - PVC | N152: 1 | O152: 2 | P152: 4 | Q152: 1 | R152: 2 | S152: 4 | T152: 1 | U152: 2 | V152: 4 | W152: 1 | X152: 2.179393975
A153: 4.2.1 | B153: Stainless Steel | C153: =e_donor_pipe_length -> 20 | D153: lf | E153: =IF(C153=0,"NA",e_donor_pipe_diam) -> 0.5 | F153: =IF(C153=0,"","in diam") -> in diam | G153: =IF(C153=0,"NA",IF(curve=1,e_donor_pipe_diam,VLOOKUP(e_donor_pipe_diam,ss_pipe_cost_cl,2))) -> 0.5 | H153: in. diam | I153: =IF(C153=0,"NA",IF(curve=1,ss_pipe_eq_e_donor,VLOOKUP(e_donor_pipe_diam,ss_pipe_cost_cl,3))) -> 16.35807022 | J153: =IF(OR(C153=0,I153="contact vendor"),"--",C153*I153) -> 327.1614043 | K153: =IF(C153=0,"NA",VLOOKUP(e_donor_pipe_diam,ss_pipe_cost_cl,IF(ss_cat="large",4,5))) -> 40 | L153: 0 | M153: =$B$144&" - "&$B$150&" - "&B153 -> Piping - Electron Donor Piping - Stainless Steel | N153: 4 | O153: 4 | P153: 1 | Q153: 4 | R153: 4 | S153: 1 | T153: 4 | U153: 4 | V153: 1 | W153: 0 | X153: 0
A154: 4.2.1 | B154: Steel | C154: =e_donor_pipe_length -> 20 | D154: lf | E154: =IF(C154=0,"NA",e_donor_pipe_diam) -> 0.5 | F154: =IF(C154=0,"","in diam") -> in diam | G154: =IF(C154=0,"NA",IF(curve=1,e_donor_pipe_diam,VLOOKUP(e_donor_pipe_diam,st_pipe_cost_cl,2))) -> 0.5 | H154: in. diam | I154: =IF(C154=0,"NA",IF(curve=1,st_pipe_eq_e_donor,VLOOKUP(e_donor_pipe_diam,st_pipe_cost_cl,3))) -> 10.94778309 | J154: =IF(OR(C154=0,I154="contact vendor"),"--",C154*I154) -> 218.9556619 | K154: =IF(C154=0,"NA",VLOOKUP(e_donor_pipe_diam,st_pipe_cost_cl,IF(ss_cat="large",4,5))) -> 33 | L154: 0 | M154: =$B$144&" - "&$B$150&" - "&B154 -> Piping - Electron Donor Piping - Steel | N154: 3 | O154: 3 | P154: 2 | Q154: 3 | R154: 3 | S154: 2 | T154: 3 | U154: 3 | V154: 2 | W154: 0 | X154: 0
A155: 4.3 | B155: Ammonium Chloride Piping | W155: 0 | X155: 0
A156: 4.3.1 | B156: CPVC | C156: =NH4Cl_pipe_length -> 0 | D156: lf | E156: =IF(C156=0,"NA",NH4Cl_pipe_diam) -> NA | F156: =IF(C156=0,"","in diam") ->  | G156: =IF(C156=0,"NA",IF(curve=1,NH4Cl_pipe_diam,VLOOKUP(NH4Cl_pipe_diam,cpvc_pipe_cost_cl,2))) -> NA | H156: =IF(C156=0,"","in diam") ->  | I156: =IF(C156=0,"NA",IF(curve=1,cpvc_pipe_eq_NH4Cl,VLOOKUP(NH4Cl_pipe_diam,cpvc_pipe_cost_cl,3))) -> NA | J156: =IF(OR(C156=0,I156="contact vendor"),"--",C156*I156) -> -- | K156: =IF(C156=0,"NA",VLOOKUP(NH4Cl_pipe_diam,cpvc_pipe_cost_cl,IF(ss_cat="large",4,5))) -> NA | M156: =$B$144&" - "&$B$155&" - "&B156 -> Piping - Ammonium Chloride Piping - CPVC | N156: 2 | O156: 1 | P156: 3 | Q156: 2 | R156: 1 | S156: 3 | T156: 2 | U156: 1 | V156: 3 | W156: 0 | X156: 0
A157: 4.3.1 | B157: PVC | C157: =NH4Cl_pipe_length -> 0 | D157: lf | E157: =IF(C157=0,"NA",NH4Cl_pipe_diam) -> NA | F157: =IF(C157=0,"","in diam") ->  | G157: =IF(C157=0,"NA",IF(curve=1,NH4Cl_pipe_diam,VLOOKUP(NH4Cl_pipe_diam,pvc_pipe_cost_cl,2))) -> NA | H157: =IF(C157=0,"","in diam") ->  | I157: =IF(C157=0,"NA",IF(curve=1,pvc_pipe_eq_NH4Cl,VLOOKUP(NH4Cl_pipe_diam,pvc_pipe_cost_cl,3))) -> NA | J157: =IF(OR(C157=0,I157="contact vendor"),"--",C157*I157) -> -- | K157: =IF(C157=0,"NA",VLOOKUP(NH4Cl_pipe_diam,pvc_pipe_cost_cl,IF(ss_cat="large",4,5))) -> NA | M157: =$B$144&" - "&$B$155&" - "&B157 -> Piping - Ammonium Chloride Piping - PVC | N157: 1 | O157: 2 | P157: 4 | Q157: 1 | R157: 2 | S157: 4 | T157: 1 | U157: 2 | V157: 4 | W157: 0 | X157: 0
A158: 4.3.1 | B158: Stainless Steel | C158: =NH4Cl_pipe_length -> 0 | D158: lf | E158: =IF(C158=0,"NA",NH4Cl_pipe_diam) -> NA | F158: =IF(C158=0,"","in diam") ->  | G158: =IF(C158=0,"NA",IF(curve=1,NH4Cl_pipe_diam,VLOOKUP(NH4Cl_pipe_diam,ss_pipe_cost_cl,2))) -> NA | I158: =IF(C158=0,"NA",IF(curve=1,ss_pipe_eq_NH4Cl,VLOOKUP(NH4Cl_pipe_diam,ss_pipe_cost_cl,3))) -> NA | J158: =IF(OR(C158=0,I158="contact vendor"),"--",C158*I158) -> -- | K158: =IF(C158=0,"NA",VLOOKUP(NH4Cl_pipe_diam,ss_pipe_cost_cl,IF(ss_cat="large",4,5))) -> NA | M158: =$B$144&" - "&$B$155&" - "&B158 -> Piping - Ammonium Chloride Piping - Stainless Steel | N158: 4 | O158: 4 | P158: 1 | Q158: 4 | R158: 4 | S158: 1 | T158: 4 | U158: 4 | V158: 1 | W158: 0 | X158: 0
A159: 4.3.1 | B159: Steel | C159: =NH4Cl_pipe_length -> 0 | D159: lf | E159: =IF(C159=0,"NA",NH4Cl_pipe_diam) -> NA | F159: =IF(C159=0,"","in diam") ->  | G159: =IF(C159=0,"NA",IF(curve=1,NH4Cl_pipe_diam,VLOOKUP(NH4Cl_pipe_diam,st_pipe_cost_cl,2))) -> NA | I159: =IF(C159=0,"NA",IF(curve=1,st_pipe_eq_NH4Cl,VLOOKUP(NH4Cl_pipe_diam,st_pipe_cost_cl,3))) -> NA | J159: =IF(OR(C159=0,I159="contact vendor"),"--",C159*I159) -> -- | K159: =IF(C159=0,"NA",VLOOKUP(NH4Cl_pipe_diam,st_pipe_cost_cl,IF(ss_cat="large",4,5))) -> NA | M159: =$B$144&" - "&$B$155&" - "&B159 -> Piping - Ammonium Chloride Piping - Steel | N159: 3 | O159: 3 | P159: 2 | Q159: 3 | R159: 3 | S159: 2 | T159: 3 | U159: 3 | V159: 2 | W159: 0 | X159: 0
A160: 4.4 | B160: Phosphoric Acid Piping | W160: 0 | X160: 0
A161: 4.4.1 | B161: CPVC | C161: =H3PO4_pipe_length -> 20 | D161: lf | E161: =IF(C161=0,"NA",H3PO4_pipe_diam) -> 0.5 | F161: =IF(C161=0,"","in diam") -> in diam | G161: =IF(C161=0,"NA",IF(curve=1,H3PO4_pipe_diam,VLOOKUP(H3PO4_pipe_diam,cpvc_pipe_cost_cl,2))) -> 0.5 | H161: in diam | I161: =IF(C161=0,"NA",IF(curve=1,cpvc_pipe_eq_H3PO4,VLOOKUP(H3PO4_pipe_diam,cpvc_pipe_cost_cl,3))) -> 2.593344082 | J161: =IF(OR(C161=0,I161="contact vendor"),"--",C161*I161) -> 51.86688165 | K161: =IF(C161=0,"NA",VLOOKUP(H3PO4_pipe_diam,cpvc_pipe_cost_cl,IF(ss_cat="large",4,5))) -> 17 | L161: 0 | M161: =$B$144&" - "&$B$160&" - "&B161 -> Piping - Phosphoric Acid Piping - CPVC | N161: 2 | O161: 1 | P161: 3 | Q161: 2 | R161: 1 | S161: 3 | T161: 2 | U161: 1 | V161: 3 | W161: 0 | X161: 0
A162: 4.4.1 | B162: PVC | C162: =H3PO4_pipe_length -> 20 | D162: lf | E162: =IF(C162=0,"NA",H3PO4_pipe_diam) -> 0.5 | F162: =IF(C162=0,"","in diam") -> in diam | G162: =IF(C162=0,"NA",IF(curve=1,H3PO4_pipe_diam,VLOOKUP(H3PO4_pipe_diam,pvc_pipe_cost_cl,2))) -> 0.5 | H162: in diam | I162: =IF(C162=0,"NA",IF(curve=1,pvc_pipe_eq_H3PO4,VLOOKUP(H3PO4_pipe_diam,pvc_pipe_cost_cl,3))) -> 1.852484879 | J162: =IF(OR(C162=0,I162="contact vendor"),"--",C162*I162) -> 37.04969758 | K162: =IF(C162=0,"NA",VLOOKUP(H3PO4_pipe_diam,pvc_pipe_cost_cl,IF(ss_cat="large",4,5))) -> 17 | L162: 1 | M162: =$B$144&" - "&$B$160&" - "&B162 -> Piping - Phosphoric Acid Piping - PVC | N162: 1 | O162: 2 | P162: 4 | Q162: 1 | R162: 2 | S162: 4 | T162: 1 | U162: 2 | V162: 4 | W162: 1 | X162: 2.179393975
A163: 4.4.1 | B163: Stainless Steel | C163: =H3PO4_pipe_length -> 20 | D163: lf | E163: =IF(C163=0,"NA",H3PO4_pipe_diam) -> 0.5 | F163: =IF(C163=0,"","in diam") -> in diam | G163: =IF(C163=0,"NA",IF(curve=1,H3PO4_pipe_diam,VLOOKUP(H3PO4_pipe_diam,ss_pipe_cost_cl,2))) -> 0.5 | H163: in diam | I163: =IF(C163=0,"NA",IF(curve=1,ss_pipe_eq_H3PO4,VLOOKUP(H3PO4_pipe_diam,ss_pipe_cost_cl,3))) -> 16.35807022 | J163: =IF(OR(C163=0,I163="contact vendor"),"--",C163*I163) -> 327.1614043 | K163: =IF(C163=0,"NA",VLOOKUP(H3PO4_pipe_diam,ss_pipe_cost_cl,IF(ss_cat="large",4,5))) -> 40 | L163: 0 | M163: =$B$144&" - "&$B$160&" - "&B163 -> Piping - Phosphoric Acid Piping - Stainless Steel | N163: 4 | O163: 4 | P163: 1 | Q163: 4 | R163: 4 | S163: 1 | T163: 4 | U163: 4 | V163: 1 | W163: 0 | X163: 0
A164: 4.4.1 | B164: Steel | C164: =H3PO4_pipe_length -> 20 | D164: lf | E164: =IF(C164=0,"NA",H3PO4_pipe_diam) -> 0.5 | F164: =IF(C164=0,"","in diam") -> in diam | G164: =IF(C164=0,"NA",IF(curve=1,H3PO4_pipe_diam,VLOOKUP(H3PO4_pipe_diam,st_pipe_cost_cl,2))) -> 0.5 | H164: in diam | I164: =IF(C164=0,"NA",IF(curve=1,st_pipe_eq_H3PO4,VLOOKUP(H3PO4_pipe_diam,st_pipe_cost_cl,3))) -> 10.94778309 | J164: =IF(OR(C164=0,I164="contact vendor"),"--",C164*I164) -> 218.9556619 | K164: =IF(C164=0,"NA",VLOOKUP(H3PO4_pipe_diam,st_pipe_cost_cl,IF(ss_cat="large",4,5))) -> 33 | L164: 0 | M164: =$B$144&" - "&$B$160&" - "&B164 -> Piping - Phosphoric Acid Piping - Steel | N164: 3 | O164: 3 | P164: 2 | Q164: 3 | R164: 3 | S164: 2 | T164: 3 | U164: 3 | V164: 2 | W164: 0 | X164: 0
A165: 4.5 | B165: Process Piping | W165: 0 | X165: 0
A166: 4.5.1 | B166: Ductile Iron | C166: =proc_pipe_length -> 40 | D166: lf | E166: =proc_pipe_diam -> 1.5 | F166: in. diam | G166: =IF(curve=1,proc_pipe_diam,VLOOKUP(proc_pipe_diam,di_pipe_cost_cl,2)) -> 1.5 | H166: in. diam | I166: =IF(curve=1,di_pipe_eq_proc,VLOOKUP(proc_pipe_diam,di_pipe_cost_cl,3)) -> contact vendor | J166: =IF(I166="contact vendor","--",C166*I166) -> -- | K166: =VLOOKUP(proc_pipe_diam,di_pipe_cost_cl,IF(ss_cat="large",4,5)) -> 35 | L166: 0 | M166: =$B$144&" - "&$B$165&" "&" - "&B166 -> Piping - Process Piping - Ductile Iron | N166: 3 | O166: 3 | P166: 3 | Q166: 3 | R166: 3 | S166: 3 | T166: 3 | U166: 3 | V166: 3 | W166: 0 | X166: 0
A167: 4.5.1 | B167: CPVC | C167: =proc_pipe_length -> 40 | D167: lf | E167: =proc_pipe_diam -> 1.5 | F167: in. diam | G167: =IF(curve=1,proc_pipe_diam,VLOOKUP(proc_pipe_diam,cpvc_pipe_cost_cl,2)) -> 1.5 | H167: in. diam | I167: =IF(curve=1,cpvc_pipe_eq_proc,VLOOKUP(proc_pipe_diam,cpvc_pipe_cost_cl,3)) -> 7.013311728 | J167: =IF(I167="contact vendor","--",C167*I167) -> 280.5324691 | K167: =VLOOKUP(proc_pipe_diam,cpvc_pipe_cost_cl,IF(ss_cat="large",4,5)) -> 17 | L167: 0 | M167: =$B$144&" - "&$B$165&" "&" - "&B167 -> Piping - Process Piping - CPVC | N167: 2 | O167: 1 | P167: 4 | Q167: 2 | R167: 1 | S167: 4 | T167: 2 | U167: 1 | V167: 4 | W167: 0 | X167: 0
A168: 4.5.1 | B168: PVC | C168: =proc_pipe_length -> 40 | D168: lf | E168: =proc_pipe_diam -> 1.5 | F168: in. diam | G168: =IF(curve=1,proc_pipe_diam,VLOOKUP(proc_pipe_diam,pvc_pipe_cost_cl,2)) -> 1.5 | H168: in. diam | I168: =IF(curve=1,pvc_pipe_eq_proc,VLOOKUP(proc_pipe_diam,pvc_pipe_cost_cl,3)) -> 2.847676267 | J168: =IF(I168="contact vendor","--",C168*I168) -> 113.9070507 | K168: =VLOOKUP(proc_pipe_diam,pvc_pipe_cost_cl,IF(ss_cat="large",4,5)) -> 17 | L168: 1 | M168: =$B$144&" - "&$B$165&" "&" - "&B168 -> Piping - Process Piping - PVC | N168: 1 | O168: 2 | P168: 5 | Q168: 1 | R168: 2 | S168: 5 | T168: 1 | U168: 2 | V168: 5 | W168: 1 | X168: 6.700414745
A169: 4.5.1 | B169: Stainless Steel | C169: =proc_pipe_length -> 40 | D169: lf | E169: =proc_pipe_diam -> 1.5 | F169: in. diam | G169: =IF(curve=1,proc_pipe_diam,VLOOKUP(proc_pipe_diam,ss_pipe_cost_cl,2)) -> 1.5 | H169: in. diam | I169: =IF(curve=1,ss_pipe_eq_proc,VLOOKUP(proc_pipe_diam,ss_pipe_cost_cl,3)) -> 70.2752489 | J169: =IF(I169="contact vendor","--",C169*I169) -> 2811.009956 | K169: =VLOOKUP(proc_pipe_diam,ss_pipe_cost_cl,IF(ss_cat="large",4,5)) -> 40 | L169: 0 | M169: =$B$144&" - "&$B$165&" "&" - "&B169 -> Piping - Process Piping - Stainless Steel | N169: 5 | O169: 5 | P169: 1 | Q169: 5 | R169: 5 | S169: 1 | T169: 5 | U169: 5 | V169: 1 | W169: 0 | X169: 0
A170: 4.5.1 | B170: Steel | C170: =proc_pipe_length -> 40 | D170: lf | E170: =proc_pipe_diam -> 1.5 | F170: in. diam | G170: =IF(curve=1,proc_pipe_diam,VLOOKUP(proc_pipe_diam,st_pipe_cost_cl,2)) -> 1.5 | H170: in. diam | I170: =IF(curve=1,st_pipe_eq_proc,VLOOKUP(proc_pipe_diam,st_pipe_cost_cl,3)) -> 30.20656151 | J170: =IF(I170="contact vendor","--",C170*I170) -> 1208.26246 | K170: =VLOOKUP(proc_pipe_diam,st_pipe_cost_cl,IF(ss_cat="large",4,5)) -> 33 | L170: 0 | M170: =$B$144&" - "&$B$165&" "&" - "&B170 -> Piping - Process Piping - Steel | N170: 4 | O170: 4 | P170: 2 | Q170: 4 | R170: 4 | S170: 2 | T170: 4 | U170: 4 | V170: 2 | W170: 0 | X170: 0
A171: 4.6 | B171: Bypass Piping | W171: 0 | X171: 0
A172: 4.6.1 | B172: CPVC | C172: =bp_pipe_length -> 0 | D172: lf | E172: =IF(bp_pct>0,bp_pipe_diam,"NA") -> NA | F172: =IF(bp_pct=0," ","in. diam") ->  | G172: =IF(bp_pct=0,"NA",IF(curve=1,bp_pipe_diam,VLOOKUP(bp_pipe_diam,cpvc_pipe_cost_cl,2))) -> NA | H172: =IF(bp_pct=0," ","in. diam") ->  | I172: =IF(bp_pct=0,"NA",IF(curve=1,cpvc_pipe_eq_bp,VLOOKUP(bp_pipe_diam,cpvc_pipe_cost_cl,3))) -> NA | J172: =IF(bp_pct=0,0,IF(I172="contact vendor","--",C172*I172)) -> 0 | K172: =IF(bp_pct=0,"NA",VLOOKUP(bp_pipe_diam,cpvc_pipe_cost_cl,IF(ss_cat="large",4,5))) -> NA | M172: =$B$144&" - "&$B$171&" "&" - "&B172 -> Piping - Bypass Piping - CPVC | N172: 2 | O172: 1 | P172: 3 | Q172: 2 | R172: 1 | S172: 3 | T172: 2 | U172: 1 | V172: 3 | W172: 0 | X172: 0
A173: 4.6.1 | B173: PVC | C173: =bp_pipe_length -> 0 | D173: lf | E173: =IF(bp_pct>0,bp_pipe_diam,"NA") -> NA | F173: =IF(bp_pct=0," ","in. diam") ->  | G173: =IF(bp_pct=0,"NA",IF(curve=1,bp_pipe_diam,VLOOKUP(bp_pipe_diam,pvc_pipe_cost_cl,2))) -> NA | H173: =IF(bp_pct=0," ","in. diam") ->  | I173: =IF(bp_pct=0,"NA",IF(curve=1,pvc_pipe_eq_bp,VLOOKUP(bp_pipe_diam,pvc_pipe_cost_cl,3))) -> NA | J173: =IF(bp_pct=0,0,IF(I173="contact vendor","--",C173*I173)) -> 0 | K173: =IF(bp_pct=0,"NA",VLOOKUP(bp_pipe_diam,pvc_pipe_cost_cl,IF(ss_cat="large",4,5))) -> NA | M173: =$B$144&" - "&$B$171&" "&" - "&B173 -> Piping - Bypass Piping - PVC | N173: 1 | O173: 2 | P173: 4 | Q173: 1 | R173: 2 | S173: 4 | T173: 1 | U173: 2 | V173: 4 | W173: 0 | X173: 0
A174: 4.6.1 | B174: Stainless Steel | C174: =bp_pipe_length -> 0 | D174: lf | E174: =IF(bp_pct>0,bp_pipe_diam,"NA") -> NA | F174: =IF(bp_pct=0," ","in. diam") ->  | G174: =IF(bp_pct=0,"NA",IF(curve=1,bp_pipe_diam,VLOOKUP(bp_pipe_diam,ss_pipe_cost_cl,2))) -> NA | H174: =IF(bp_pct=0," ","in. diam") ->  | I174: =IF(bp_pct=0,"NA",IF(curve=1,ss_pipe_eq_bp,VLOOKUP(bp_pipe_diam,ss_pipe_cost_cl,3))) -> NA | J174: =IF(bp_pct=0,0,IF(I174="contact vendor","--",C174*I174)) -> 0 | K174: =IF(bp_pct=0,"NA",VLOOKUP(bp_pipe_diam,ss_pipe_cost_cl,IF(ss_cat="large",4,5))) -> NA | M174: =$B$144&" - "&$B$171&" "&" - "&B174 -> Piping - Bypass Piping - Stainless Steel | N174: 4 | O174: 4 | P174: 1 | Q174: 4 | R174: 4 | S174: 1 | T174: 4 | U174: 4 | V174: 1 | W174: 0 | X174: 0
A175: 4.6.1 | B175: Steel | C175: =bp_pipe_length -> 0 | D175: lf | E175: =IF(bp_pct>0,bp_pipe_diam,"NA") -> NA | F175: =IF(bp_pct=0," ","in. diam") ->  | G175: =IF(bp_pct=0,"NA",IF(curve=1,bp_pipe_diam,VLOOKUP(bp_pipe_diam,st_pipe_cost_cl,2))) -> NA | H175: =IF(bp_pct=0," ","in. diam") ->  | I175: =IF(bp_pct=0,"NA",IF(curve=1,st_pipe_eq_bp,VLOOKUP(bp_pipe_diam,st_pipe_cost_cl,3))) -> NA | J175: =IF(bp_pct=0,0,IF(I175="contact vendor","--",C175*I175)) -> 0 | K175: =IF(bp_pct=0,"NA",VLOOKUP(bp_pipe_diam,st_pipe_cost_cl,IF(ss_cat="large",4,5))) -> NA | M175: =$B$144&" - "&$B$171&" "&" - "&B175 -> Piping - Bypass Piping - Steel | N175: 3 | O175: 3 | P175: 2 | Q175: 3 | R175: 3 | S175: 2 | T175: 3 | U175: 3 | V175: 2 | W175: 0 | X175: 0
A176: 4.7 | B176: Influent and Treated Water Piping | W176: 0 | X176: 0
A177: 4.7.1 | B177: Ductile Iron | C177: =in_out_pipe_length -> 40 | D177: lf | E177: =in_out_pipe_diam -> 1.5 | F177: in. diam | G177: =IF(curve=1,in_out_pipe_diam,VLOOKUP(in_out_pipe_diam,di_pipe_cost_cl,2)) -> 1.5 | H177: in. diam | I177: =IF(curve=1,di_pipe_eq_in_out,VLOOKUP(in_out_pipe_diam,di_pipe_cost_cl,3)) -> contact vendor | J177: =IF(I177="contact vendor","--",C177*I177) -> -- | K177: =VLOOKUP(in_out_pipe_diam,di_pipe_cost_cl,IF(ss_cat="large",4,5)) -> 35 | L177: 0 | M177: =$B$144&" - "&$B$176&" "&" - "&B177 -> Piping - Influent and Treated Water Piping - Ductile Iron | N177: 3 | O177: 3 | P177: 3 | Q177: 3 | R177: 3 | S177: 3 | T177: 3 | U177: 3 | V177: 3 | W177: 0 | X177: 0
A178: 4.7.1 | B178: CPVC | C178: =in_out_pipe_length -> 40 | D178: lf | E178: =in_out_pipe_diam -> 1.5 | F178: in. diam | G178: =IF(curve=1,in_out_pipe_diam,VLOOKUP(in_out_pipe_diam,cpvc_pipe_cost_cl,2)) -> 1.5 | H178: in. diam | I178: =IF(curve=1,cpvc_pipe_eq_in_out,VLOOKUP(in_out_pipe_diam,cpvc_pipe_cost_cl,3)) -> 7.013311728 | J178: =IF(I178="contact vendor","--",C178*I178) -> 280.5324691 | K178: =VLOOKUP(in_out_pipe_diam,cpvc_pipe_cost_cl,IF(ss_cat="large",4,5)) -> 17 | L178: 0 | M178: =$B$144&" - "&$B$176&" "&" - "&B178 -> Piping - Influent and Treated Water Piping - CPVC | N178: 2 | O178: 1 | P178: 4 | Q178: 2 | R178: 1 | S178: 4 | T178: 2 | U178: 1 | V178: 4 | W178: 0 | X178: 0
A179: 4.7.1 | B179: PVC | C179: =in_out_pipe_length -> 40 | D179: lf | E179: =in_out_pipe_diam -> 1.5 | F179: in. diam | G179: =IF(curve=1,in_out_pipe_diam,VLOOKUP(in_out_pipe_diam,pvc_pipe_cost_cl,2)) -> 1.5 | H179: in. diam | I179: =IF(curve=1,pvc_pipe_eq_in_out,VLOOKUP(in_out_pipe_diam,pvc_pipe_cost_cl,3)) -> 2.847676267 | J179: =IF(I179="contact vendor","--",C179*I179) -> 113.9070507 | K179: =VLOOKUP(in_out_pipe_diam,pvc_pipe_cost_cl,IF(ss_cat="large",4,5)) -> 17 | L179: 1 | M179: =$B$144&" - "&$B$176&" "&" - "&B179 -> Piping - Influent and Treated Water Piping - PVC | N179: 1 | O179: 2 | P179: 5 | Q179: 1 | R179: 2 | S179: 5 | T179: 1 | U179: 2 | V179: 5 | W179: 1 | X179: 6.700414745
A180: 4.7.1 | B180: Stainless Steel | C180: =in_out_pipe_length -> 40 | D180: lf | E180: =in_out_pipe_diam -> 1.5 | F180: in. diam | G180: =IF(curve=1,in_out_pipe_diam,VLOOKUP(in_out_pipe_diam,ss_pipe_cost_cl,2)) -> 1.5 | H180: in. diam | I180: =IF(curve=1,ss_pipe_eq_in_out,VLOOKUP(in_out_pipe_diam,ss_pipe_cost_cl,3)) -> 70.2752489 | J180: =IF(I180="contact vendor","--",C180*I180) -> 2811.009956 | K180: =VLOOKUP(in_out_pipe_diam,ss_pipe_cost_cl,IF(ss_cat="large",4,5)) -> 40 | L180: 0 | M180: =$B$144&" - "&$B$176&" "&" - "&B180 -> Piping - Influent and Treated Water Piping - Stainless Steel | N180: 5 | O180: 5 | P180: 1 | Q180: 5 | R180: 5 | S180: 1 | T180: 5 | U180: 5 | V180: 1 | W180: 0 | X180: 0
A181: 4.7.1 | B181: Steel | C181: =in_out_pipe_length -> 40 | D181: lf | E181: =in_out_pipe_diam -> 1.5 | F181: in. diam | G181: =IF(curve=1,in_out_pipe_diam,VLOOKUP(in_out_pipe_diam,st_pipe_cost_cl,2)) -> 1.5 | H181: in. diam | I181: =IF(curve=1,st_pipe_eq_in_out,VLOOKUP(in_out_pipe_diam,st_pipe_cost_cl,3)) -> 30.20656151 | J181: =IF(I181="contact vendor","--",C181*I181) -> 1208.26246 | K181: =VLOOKUP(in_out_pipe_diam,st_pipe_cost_cl,IF(ss_cat="large",4,5)) -> 33 | L181: 0 | M181: =$B$144&" - "&$B$176&" "&" - "&B181 -> Piping - Influent and Treated Water Piping - Steel | N181: 4 | O181: 4 | P181: 2 | Q181: 4 | R181: 4 | S181: 2 | T181: 4 | U181: 4 | V181: 2 | W181: 0 | X181: 0
A182: 4.8 | B182: Residuals Piping | W182: 0 | X182: 0
A183: 4.8.1 | B183: CPVC | C183: =res_pipe_length -> 60 | D183: lf | E183: =res_pipe_diam -> 1 | F183: in. diam | G183: =IF(curve=1,res_pipe_diam,VLOOKUP(res_pipe_diam,cpvc_pipe_cost_cl,2)) -> 1 | H183: in. diam | I183: =IF(curve=1,cpvc_pipe_eq_res,VLOOKUP(res_pipe_diam,cpvc_pipe_cost_cl,3)) -> 4.612425428 | J183: =IF(I183="contact vendor","--",C183*I183) -> 276.7455257 | K183: =VLOOKUP(res_pipe_diam,cpvc_pipe_cost_cl,IF(ss_cat="large",4,5)) -> 17 | L183: 0 | M183: =$B$144&" - "&$B$182&" "&" - "&B183 -> Piping - Residuals Piping - CPVC | N183: 2 | O183: 1 | P183: 3 | Q183: 2 | R183: 1 | S183: 3 | T183: 2 | U183: 1 | V183: 3 | W183: 0 | X183: 0
A184: 4.8.1 | B184: PVC | C184: =res_pipe_length -> 60 | D184: lf | E184: =res_pipe_diam -> 1 | F184: in. diam | G184: =IF(curve=1,res_pipe_diam,VLOOKUP(res_pipe_diam,pvc_pipe_cost_cl,2)) -> 1 | H184: in. diam | I184: =IF(curve=1,pvc_pipe_eq_res,VLOOKUP(res_pipe_diam,pvc_pipe_cost_cl,3)) -> 2.325803826 | J184: =IF(I184="contact vendor","--",C184*I184) -> 139.5482296 | K184: =VLOOKUP(res_pipe_diam,pvc_pipe_cost_cl,IF(ss_cat="large",4,5)) -> 17 | L184: 1 | M184: =$B$144&" - "&$B$182&" "&" - "&B184 -> Piping - Residuals Piping - PVC | N184: 1 | O184: 2 | P184: 4 | Q184: 1 | R184: 2 | S184: 4 | T184: 1 | U184: 2 | V184: 4 | W184: 1 | X184: 8.208719386
A185: 4.8.1 | B185: Stainless Steel | C185: =res_pipe_length -> 60 | D185: lf | E185: =res_pipe_diam -> 1 | F185: in. diam | G185: =IF(curve=1,res_pipe_diam,VLOOKUP(res_pipe_diam,ss_pipe_cost_cl,2)) -> 1 | H185: in. diam | I185: =IF(curve=1,ss_pipe_eq_res,VLOOKUP(res_pipe_diam,ss_pipe_cost_cl,3)) -> 43.92635213 | J185: =IF(I185="contact vendor","--",C185*I185) -> 2635.581128 | K185: =VLOOKUP(res_pipe_diam,ss_pipe_cost_cl,IF(ss_cat="large",4,5)) -> 40 | L185: 0 | M185: Piping - Residuals Piping - Stainless Steel | N185: 4 | O185: 4 | P185: 1 | Q185: 4 | R185: 4 | S185: 1 | T185: 4 | U185: 4 | V185: 1 | W185: 0 | X185: 0
A186: 4.8.1 | B186: Steel | C186: =res_pipe_length -> 60 | D186: lf | E186: =res_pipe_diam -> 1 | F186: in. diam | G186: =IF(curve=1,res_pipe_diam,VLOOKUP(res_pipe_diam,st_pipe_cost_cl,2)) -> 1 | H186: in. diam | I186: =IF(curve=1,st_pipe_eq_res,VLOOKUP(res_pipe_diam,st_pipe_cost_cl,3)) -> 20.76941738 | J186: =IF(I186="contact vendor","--",C186*I186) -> 1246.165043 | K186: =VLOOKUP(res_pipe_diam,st_pipe_cost_cl,IF(ss_cat="large",4,5)) -> 33 | L186: 0 | M186: Piping - Residuals Piping - Steel | N186: 3 | O186: 3 | P186: 2 | Q186: 3 | R186: 3 | S186: 2 | T186: 3 | U186: 3 | V186: 2 | W186: 0 | X186: 0
A187: 4.8.2 | B187: Excavation | C187: =res_trench_vol -> 0 | D187: cy | E187: NA | G187: NA | I187: =IF(C187=0,"NA",VLOOKUP(0,excavate_cost_cl,3)) -> NA | J187: =IF(OR(I187="contact vendor",C187=0),"--",C187*I187) -> -- | K187: =IF(C187=0,"NA",SUMPRODUCT(L183:L186,K183:K186)) -> NA | M187: Piping - Residuals Piping - Excavation | N187: 1 | O187: 1 | P187: 1 | Q187: 1 | R187: 1 | S187: 1 | T187: 1 | U187: 1 | V187: 1 | W187: 0 | X187: 0
A188: 4.8.3 | B188: Bedding | C188: =res_pipe_bedding_vol -> 0 | D188: cy | E188: NA | G188: NA | I188: =IF(C188=0,"NA",VLOOKUP(0,bedding_cost_cl,3)) -> NA | J188: =IF(OR(I188="contact vendor",C188=0),"--",C188*I188) -> -- | K188: =IF(C188=0,"NA",SUMPRODUCT(L183:L186,K183:K186)) -> NA | M188: Piping - Residuals Piping - Bedding | N188: 1 | O188: 1 | P188: 1 | Q188: 1 | R188: 1 | S188: 1 | T188: 1 | U188: 1 | V188: 1 | W188: 0 | X188: 0
A189: 4.8.4 | B189: Backfill and Compaction | C189: =res_trench_vol -> 0 | D189: cy | E189: NA | G189: NA | I189: =IF(C189=0,"NA",VLOOKUP(0,backfill_cost_cl,3)) -> NA | J189: =IF(OR(I189="contact vendor",C189=0),"--",C189*I189) -> -- | K189: =IF(C189=0,"NA",SUMPRODUCT(L183:L186,K183:K186)) -> NA | M189: Piping - Residuals Piping - Backfill and Compaction | N189: 1 | O189: 1 | P189: 1 | Q189: 1 | R189: 1 | S189: 1 | T189: 1 | U189: 1 | V189: 1 | W189: 0 | X189: 0
A190: 4.8.5 | B190: Thrust Blocks | C190: =res_block_vol -> 0 | D190: cy | E190: NA | G190: NA | I190: =IF(C190=0,"NA",VLOOKUP(0,conc_basin_cost_cl,3)) -> NA | J190: =IF(OR(I190="contact vendor",C190=0),"--",C190*I190) -> -- | K190: =IF(C190=0,"NA",SUMPRODUCT(L183:L186,K183:K186)) -> NA | M190: Piping - Residuals Piping - Thrust Blocks | N190: 1 | O190: 1 | P190: 1 | Q190: 1 | R190: 1 | S190: 1 | T190: 1 | U190: 1 | V190: 1 | W190: 0 | X190: 0
A191: 4.9 | B191: Fluidized Bed Recycle Piping | W191: =IF(ISERROR(K191*L191),0,IF(K191<1,0,L191)) -> 0 | X191: =IF(W191,J191/K191,0) -> 0
A192: 4.9.1 | B192: CPVC | C192: =recycle_pipe_length -> 0 | D192: lf | E192: =IF(C192>0,recycle_pipe_diam,"NA") -> NA | F192: =IF(C192=0," ","in. diam") ->  | G192: =IF(C192=0,"NA",IF(curve=1,recycle_pipe_diam,VLOOKUP(recycle_pipe_diam,cpvc_pipe_cost_cl,2))) -> NA | H192: =IF(C192=0," ","in. diam") ->  | I192: =IF(C192=0,"NA",IF(curve=1,cpvc_pipe_eq_rec,VLOOKUP(recycle_pipe_diam,cpvc_pipe_cost_cl,3))) -> NA | J192: =IF(C192=0,0,IF(I192="contact vendor","--",C192*I192)) -> 0 | K192: =IF(C192=0,"NA",VLOOKUP(recycle_pipe_diam,cpvc_pipe_cost_cl,IF(ss_cat="large",4,5))) -> NA | M192: =$B$144&" - "&$B$191&" "&" - "&B192 -> Piping - Fluidized Bed Recycle Piping - CPVC | N192: 2 | O192: 1 | P192: 3 | Q192: 2 | R192: 1 | S192: 3 | T192: 2 | U192: 1 | V192: 3 | W192: 0 | X192: 0
A193: 4.9.1 | B193: PVC | C193: =recycle_pipe_length -> 0 | D193: lf | E193: =IF(C193>0,recycle_pipe_diam,"NA") -> NA | F193: =IF(C193=0," ","in. diam") ->  | G193: =IF(C193=0,"NA",IF(curve=1,recycle_pipe_diam,VLOOKUP(recycle_pipe_diam,pvc_pipe_cost_cl,2))) -> NA | H193: =IF(C193=0," ","in. diam") ->  | I193: =IF(C193=0,"NA",IF(curve=1,pvc_pipe_eq_rec,VLOOKUP(recycle_pipe_diam,pvc_pipe_cost_cl,3))) -> NA | J193: =IF(C193=0,0,IF(I193="contact vendor","--",C193*I193)) -> 0 | K193: =IF(C193=0,"NA",VLOOKUP(recycle_pipe_diam,pvc_pipe_cost_cl,IF(ss_cat="large",4,5))) -> NA | M193: =$B$144&" - "&$B$191&" "&" - "&B193 -> Piping - Fluidized Bed Recycle Piping - PVC | N193: 1 | O193: 2 | P193: 4 | Q193: 1 | R193: 2 | S193: 4 | T193: 1 | U193: 2 | V193: 4 | W193: 0 | X193: 0
A194: 4.9.1 | B194: Stainless Steel | C194: =recycle_pipe_length -> 0 | D194: lf | E194: =IF(C194>0,recycle_pipe_diam,"NA") -> NA | F194: =IF(C194=0," ","in. diam") ->  | G194: =IF(C194=0,"NA",IF(curve=1,recycle_pipe_diam,VLOOKUP(recycle_pipe_diam,ss_pipe_cost_cl,2))) -> NA | H194: =IF(C194=0," ","in. diam") ->  | I194: =IF(C194=0,"NA",IF(curve=1,ss_pipe_eq_rec,VLOOKUP(recycle_pipe_diam,ss_pipe_cost_cl,3))) -> NA | J194: =IF(C194=0,0,IF(I194="contact vendor","--",C194*I194)) -> 0 | K194: =IF(C194=0,"NA",VLOOKUP(recycle_pipe_diam,ss_pipe_cost_cl,IF(ss_cat="large",4,5))) -> NA | M194: =$B$144&" - "&$B$191&" "&" - "&B194 -> Piping - Fluidized Bed Recycle Piping - Stainless Steel | N194: 4 | O194: 4 | P194: 1 | Q194: 4 | R194: 4 | S194: 1 | T194: 4 | U194: 4 | V194: 1 | W194: 0 | X194: 0
A195: 4.9.1 | B195: Steel | C195: =recycle_pipe_length -> 0 | D195: lf | E195: =IF(C195>0,recycle_pipe_diam,"NA") -> NA | F195: =IF(C195=0," ","in. diam") ->  | G195: =IF(C195=0,"NA",IF(curve=1,recycle_pipe_diam,VLOOKUP(recycle_pipe_diam,st_pipe_cost_cl,2))) -> NA | H195: =IF(C195=0," ","in. diam") ->  | I195: =IF(C195=0,"NA",IF(curve=1,st_pipe_eq_rec,VLOOKUP(recycle_pipe_diam,st_pipe_cost_cl,3))) -> NA | J195: =IF(C195=0,0,IF(I195="contact vendor","--",C195*I195)) -> 0 | K195: =IF(C195=0,"NA",VLOOKUP(recycle_pipe_diam,st_pipe_cost_cl,IF(ss_cat="large",4,5))) -> NA | M195: =$B$144&" - "&$B$191&" "&" - "&B195 -> Piping - Fluidized Bed Recycle Piping - Steel | N195: 3 | O195: 3 | P195: 2 | Q195: 3 | R195: 3 | S195: 2 | T195: 3 | U195: 3 | V195: 2 | W195: 0 | X195: 0
A196: 4.1 | B196: Dilute Hydrogen Peroxide Piping | W196: 0 | X196: 0
A197: 4.10.1 | B197: CPVC | C197: =H202_pipe_length -> 0 | D197: lf | E197: =IF(C197=0,"NA",H202_pipe_diam) -> NA | F197: =IF(C197=0,"","in diam") ->  | G197: =IF(C197=0,"NA",IF(curve=1,H202_pipe_diam,VLOOKUP(H202_pipe_diam,cpvc_pipe_cost_cl,2))) -> NA | H197: =IF(C197=0,"","in diam") ->  | I197: =IF(C197=0,"NA",IF(curve=1,cpvc_pipe_eq_H2O2,VLOOKUP(H202_pipe_diam,cpvc_pipe_cost_cl,3))) -> NA | J197: =IF(OR(C197=0,I197="contact vendor"),"--",C197*I197) -> -- | K197: =IF(C197=0,"NA",VLOOKUP(H202_pipe_diam,cpvc_pipe_cost_cl,IF(ss_cat="large",4,5))) -> NA | M197: =$B$144&" - "&$B$196&" - "&B197 -> Piping - Dilute Hydrogen Peroxide Piping - CPVC | N197: 2 | O197: 1 | P197: 3 | Q197: 2 | R197: 1 | S197: 3 | T197: 2 | U197: 1 | V197: 3 | W197: 0 | X197: 0
A198: 4.10.1 | B198: PVC | C198: =H202_pipe_length -> 0 | D198: lf | E198: =IF(C198=0,"NA",H202_pipe_diam) -> NA | F198: =IF(C198=0,"","in diam") ->  | G198: =IF(C198=0,"NA",IF(curve=1,H202_pipe_diam,VLOOKUP(H202_pipe_diam,pvc_pipe_cost_cl,2))) -> NA | H198: =IF(C198=0,"","in diam") ->  | I198: =IF(C198=0,"NA",IF(curve=1,pvc_pipe_eq_H2O2,VLOOKUP(H202_pipe_diam,pvc_pipe_cost_cl,3))) -> NA | J198: =IF(OR(C198=0,I198="contact vendor"),"--",C198*I198) -> -- | K198: =IF(C198=0,"NA",VLOOKUP(H202_pipe_diam,pvc_pipe_cost_cl,IF(ss_cat="large",4,5))) -> NA | M198: =$B$144&" - "&$B$196&" - "&B198 -> Piping - Dilute Hydrogen Peroxide Piping - PVC | N198: 1 | O198: 2 | P198: 4 | Q198: 1 | R198: 2 | S198: 4 | T198: 1 | U198: 2 | V198: 4 | W198: 0 | X198: 0
A199: 4.10.1 | B199: Stainless Steel | C199: =H202_pipe_length -> 0 | D199: lf | E199: =IF(C199=0,"NA",H202_pipe_diam) -> NA | F199: =IF(C199=0,"","in diam") ->  | G199: =IF(C199=0,"NA",IF(curve=1,H202_pipe_diam,VLOOKUP(H202_pipe_diam,ss_pipe_cost_cl,2))) -> NA | H199: =IF(C199=0,"","in diam") ->  | I199: =IF(C199=0,"NA",IF(curve=1,ss_pipe_eq_H2O2,VLOOKUP(H202_pipe_diam,ss_pipe_cost_cl,3))) -> NA | J199: =IF(OR(C199=0,I199="contact vendor"),"--",C199*I199) -> -- | K199: =IF(C199=0,"NA",VLOOKUP(H202_pipe_diam,ss_pipe_cost_cl,IF(ss_cat="large",4,5))) -> NA | M199: =$B$144&" - "&$B$196&" - "&B199 -> Piping - Dilute Hydrogen Peroxide Piping - Stainless Steel | N199: 4 | O199: 4 | P199: 1 | Q199: 4 | R199: 4 | S199: 1 | T199: 4 | U199: 4 | V199: 1 | W199: 0 | X199: 0
A200: 4.10.1 | B200: Steel | C200: =H202_pipe_length -> 0 | D200: lf | E200: =IF(C200=0,"NA",H202_pipe_diam) -> NA | F200: =IF(C200=0,"","in diam") ->  | G200: =IF(C200=0,"NA",IF(curve=1,H202_pipe_diam,VLOOKUP(H202_pipe_diam,st_pipe_cost_cl,2))) -> NA | H200: =IF(C200=0,"","in diam") ->  | I200: =IF(C200=0,"NA",IF(curve=1,st_pipe_eq_H2O2,VLOOKUP(H202_pipe_diam,st_pipe_cost_cl,3))) -> NA | J200: =IF(OR(C200=0,I200="contact vendor"),"--",C200*I200) -> -- | K200: =IF(C200=0,"NA",VLOOKUP(H202_pipe_diam,st_pipe_cost_cl,IF(ss_cat="large",4,5))) -> NA | M200: =$B$144&" - "&$B$196&" - "&B200 -> Piping - Dilute Hydrogen Peroxide Piping - Steel | N200: 3 | O200: 3 | P200: 2 | Q200: 3 | R200: 3 | S200: 2 | T200: 3 | U200: 3 | V200: 2 | W200: 0 | X200: 0
A201: 4.11 | B201: Ferric Chloride Piping | W201: =IF(ISERROR(K201*L201),0,IF(K201<1,0,L201)) -> 0 | X201: =IF(W201,J201/K201,0) -> 0
... 437 more rows

Sheet Critical Design Assumptions
A1: Default Critical Design Assumptions
A2: Users may change any of the cells in the Value column; cells in gold are most important and may vary based on contaminant treated and site-specific conditions
A4: Assumption | B4: Range Name | C4: Value | D4: Units | E4: Guidance
A5: Cost estimating method | B5: curve | C5: 1 | D5: <-- enter 1 to use cost equations, leave blank to use lookup tables for component costs | E5: Keeping this assumption with a value of 1 is strongly recommended; the cost equations method is more appropriate for national cost estimating and will be more accurate for nearly all user-specified designs
A7: Treatment Flow
A8: Percent of Total Flow that is Bypassed | B8: bp_pct | C8: 0 | E8: Typically, bypass flow ranges between 0% and 50% of inflow. Enter zero to remove bypass piping and components. 0% is default consistent with the type of cost curves that EPA will need for its national cost simulation model.
A9: Minimum average flow as percentage of design | B9: min_avg_flow | C9: 0.1 | E9: The minimum ratio of average flow to design flow. If the ratio falls below this value, it will trigger a warning on the INPUT sheet. If this value is zero, no minimum is enforced.
A11: Bioreactor Design (both system types)
A12: Number of redundant bioreactorvessels for small systems with only one vessel | B12: NRD_small_1 | C12: 1 | D12: units | E12: If a design includes only one operating vessel, there should be at least one additional vessel
A13: Number of redundant bioreactor vessels for small systems with multiple vessels | B13: NRD_small | C13: 0 | D13: units | E13: Small systems can operate at reduced capacity while one vessel is down for backwash, if there are multiple vessels
A14: Add a redundant bioreactor per x parallel lines for fixed bed pressure vessel designs | B14: redund_freq | C14: 8 | D14: number of parallel lines/redundant unit
A15: Add a redundant bioreactor per x parallel lines for fluidized bed designs | B15: redund_freq_fluid | C15: 8 | D15: number of parallel lines/redundant unit
A16: Loading rate minimum | B16: load_min | C16: 1 | D16: gpm/square ft | E16: Harding ESE, 2001
A17: Loading rate maximum | B17: load_max | C17: 10 | D17: gpm/square ft | E17: Harding ESE, 2001
A18: GAC bulk density | B18: GAC_density | C18: 30 | D18: lbs/cubic ft | E18: Bulk density, not particle density. GAC density range of 22-30 lb/cubic ft; lignite GAC approximately 22 and bituminous GAC approximately 28 lb/cubic ft (Randal J. Braker, General Manager, Duck River Utility Commission)
A20: Pressure Vessel Design
A21: Maximum vessel height (circular vessels) | B21: max_height | C21: 24 | D21: feet
A22: Maximum vessel diameter | B22: max_diam_override | C22: 14 | D22: feet | E22: Maximum vessel diameter will be chosen from a table of conventional sizes for commercial vessels, unless entered here. Systems have used vessels up to 14' diam and height in practice (AWWA Inorganic Contaminants Workshop 2006)
A23: Maximum vessel length (longitudinal vessels) | B23: max_length | C23: 53 | D23: feet | E23: Limitation on transportation is 53 feet in length
A24: Free board above media at full expansion (fixed bed designs) | B24: free_board | C24: 1 | D24: feet
A25: Underdrain space for horizontal vessels | B25: horiz_underdrain | C25: 1.5 | D25: feet | E25: 1.5 feet is a conservative value for a 10' tank. Bob Dvorin, 5/16/05.
A26: Vessel thickness of wall | B26: Vessel_thickness | C26: 0 | D26: feet | E26: Set to zero because vendor designs and quotes are usually expressed in inside diameter. Increase if user desires to input outside diameter.
A27: Ratio of length to diameter for horizontal vessels | B27: length_diam_ratio | C27: 2.5 | E27: Used only for autosize procedure
A28: Minimum bed depth for autosize | B28: min_bed_depth | C28: 2 | D28: feet
A29: Maximum bed depth for autosize | B29: max_bed_depth | C29: 12 | D29: feet
A30: Target Bed Depth (Designs < 1MGD) | B30: target_bed_depth_under | C30: 4 | D30: feet | E30: Used only for autosize procedure
A31: Target Bed Depth (Designs > 1 MGD) | B31: target_bed_depth_over | C31: 5 | D31: feet | E31: Used only for autosize procedure
A32: Target Fluidized Bed Depth (Designs < 1MGD) | B32: target_bed_depth_under_fluid | C32: 5 | D32: feet | E32: Used only for autosize procedure
A33: Target Fluidized Bed Depth (Designs > 1 MGD) | B33: target_bed_depth_over_fluid | C33: 10 | D33: feet | E33: Used only for autosize procedure
A34: Biomass Seperator Air Scour Volume for fluidized beds | B34: biomass_air_scour | C34: 0.3 | D34: CFH/gpm | E34: 15 CFH air for 50 gpm water treated (U.S. DoD, 2009)
A35: Volume Tolerance, vertical vessels <1 mgd | B35: vol_tol_vert_small | C35: 0.5 | E35: Used to check size compatibility of specified volume with required volume
A36: Volume Tolerance, vertical vessels >1 mgd | B36: vol_tol_vert_med | C36: 0.4
A37: Volume Tolerance, horizontal vessels | B37: vol_tol_horiz | C37: 0.4
A38: Recycle % for fluidized beds | B38: recycle_fluid | C38: 0.5 | E38: Guidance: Typical recycle rates are 30-80%
A39: Bed expansion during backwash | B39: bed_expansion | C39: 0.5
A40: Media Expansion when fluidized | B40: bed_expansion_fluidized | C40: 0.7
A41: Freeboard above fully expanded media (Design < 1MGD) | B41: freeboard_fluidized_small | C41: 4 | D41: ft | E41: Guidance: 3 to 5 ft
A42: Freeboard above fully expanded media (Design > 1MGD) | B42: freeboard_fluidized | C42: 7 | D42: ft | E42: Guidance: 6 to 8 ft
A44: Gravity Basin Design
A45: Number of redundant bioreactor basins for medium systems | B45: NRD_basins_medium | C45: 1 | D45: units
A46: Number of redundant bioreactor basins for large systems | B46: NRD_basins_large | C46: 2 | D46: units
A47: Basin freeboard above filter media at full expansion | B47: basin_freeboard | C47: 2 | D47: ft
A48: Maximum bed depth (gravity) | B48: max_depth | C48: 10 | D48: ft | E48: Guidance: Typical gravity bed depths are 3-10 feet
A49: Minimum bed depth (gravity) | B49: min_depth | C49: 3 | D49: ft | E49: Guidance: Typical gravity bed depths are 3-10 feet
A50: Maximum basin width | B50: max_width | C50: 30 | D50: ft
A51: Minimum basin width | B51: min_width | C51: 3 | D51: ft
A52: Maximum basin length | B52: max_length_g | C52: 30 | D52: ft
A53: Minimum basin length | B53: min_length_g | C53: 3 | D53: ft
A54: Target Bed Depth (Gravity Designs < 1MGD) | B54: target_bed_depth_under_g | C54: 5 | D54: feet | E54: Used only for autosize procedure
A55: Target Bed Depth (Gravity Designs > 1 MGD) | B55: target_bed_depth_over_g | C55: 5 | D55: feet | E55: Used only for autosize procedure
A56: Number of stair risers for storage basins | B56: risers | C56: 15 | D56: risers | E56: This assumption used only if concrete basins are used.
A57: Concrete thickness for storage basins | B57: conc_thick | C57: 1 | D57: ft | E57: This assumption used only if concrete basins are used.
A58: Overexcavation for storage basins | B58: overexcavate | C58: 4 | D58: ft | E58: 2 feet each side in each dimension. This assumption used only if concrete basins are used.
A60: Post-Treatment Design
A61: Aeration Tank Residence Time | B61: hrt_aeration | C61: 8 | D61: min | E61: US DoD 2009
A62: Aeration Rate | B62: rate_aeration | C62: 6.5 | D62: scfm/100gpm | E62: US DoD 2009
A63: Hydrogen Peroxide Dose | B63: H2O2_dose | C63: 6 | D63: mg/L | E63: 4-8 mg/L (US DoD, 2008)
A64: Percent grade of H2O2 | B64: H2O2_grade | C64: 0.5
A65: Specific gravity of H2O2 at the indicated grade | B65: H2O2_sg | C65: 1.19 | E65: FMC Corporation, MSDS for 40-60% H2O2, http://www.h2o2.com/intro/FMC_MSDS_40_to_60.pdf
A66: Diluted concentration to be fed | B66: H2O2_dilute_conc | C66: 0.05 | E66: Hydrogen peroxide is added to water as a dilute solution (MWH, Water Treatment: Principles and Design, second edition, page 552 and Table 8-4).
A67: Number of static mixers for H2O2 addition | B67: n_mixers | C67: 1 | D67: units
A68: EBCT for Filtration | B68: ebct_filt | C68: 10 | D68: min | E68: (US DoD, 2008)
A69: Bed Depth for Filtration < 0.1 MGD | B69: bed_depth_filt_small | C69: 5 | D69: ft
A70: Bed Depth for Filtration 0.1 MGD-10 MGD | B70: bed_depth_filt | C70: 7 | D70: ft | E70: (US DoD, 2008)
A71: Bed Depth for Filtration > 10 MGD | B71: bed_depth_filt_large | C71: 9 | D71: ft
A72: Filter loading rate minimum | B72: load_min_filt | C72: 1 | D72: gpm/square ft | E72: used in autosize routine
A73: Filter loading rate maximum | B73: load_max_filt | C73: 10 | D73: gpm/square ft | E73: used in autosize routine
A74: Number of redundant polishing filters for small systems with only one vessel | B74: filt_NRD_small_1 | C74: 1 | D74: units | E74: If a design includes only one operatingfilter, there should be at least one additional vessel
A75: Number of redundant polishing filters for small systems with multiple vessels | B75: filt_NRD_small | C75: 0 | D75: units | E75: Small systems can operate at reduced capacity while one filter is down for backwash, if there are multiple filters
A76: Number of redundant polishing filters for medium systems | B76: filt_NRD_basins_medium | C76: 1 | D76: units
A77: Number of redundant polishing filters for large systems | B77: filt_NRD_basins_large | C77: 2 | D77: units
A78: Bed expansion during backwash | B78: filt_bed_expansion | C78: 0.5
A79: Basin freeboard above filter media at full expansion | B79: filt_freeboard | C79: 2 | D79: ft
A80: Fraction of media anthracite | B80: anthracite_fraction | C80: 0.67 | E80: =IF(SUM(C80:C83)<>1,"WARNING: Total of fractions for each media type must sum to 1","Media fractions OK") -> Media fractions OK
A81: Fraction of media sand | B81: sand_fraction | C81: 0.33 | E81: =IF(AND(COUNTIF(C80:C83,".0")=0,COUNTIF(C80:C83,".0")>3),"Number of different media used should be between 1 and 3.","Number of media used is OK.") -> Number of media used is OK.
A82: Fraction of media garnet/ilmenite | B82: garnet_fraction | C82: 0 | E82: =IF(COUNTIF(C80:C83,".0")=1,"Single",IF(COUNTIF(C80:C83,".0")=2,"Dual",IF(COUNTIF(C80:C83,".0")=3,"Triple","Error with "))) -> Dual
A83: Fraction of media GAC | B83: GAC_fraction | C83: 0
A84: Anthracite density | B84: anthracite_density | C84: 50 | D84: lb/cubic ft
A85: Garnet density | B85: garnet_density | C85: 140 | D85: lb/cubic ft | E85: Clack Corporation information bulletin
A86: Coagulant dosage prior to post-treatment filtration | B86: coag_dose_filt | C86: 10 | D86: mg/L | E86: Coagulant is presumed to be ferric chloride
A87: Coagulant solution density | B87: coag_density_filt | C87: 11.85 | D87: lb/gal | E87: Coagulant is presumed to be ferric chloride
A88: Coagulant solution concentration | B88: coag_pct_filt | C88: 0.4 | E88: Coagulant is presumed to be ferric chloride
A89: Coagulant mix time prior to filtration | B89: coag_mix_time | C89: 60 | D89: seconds | E89: American Water Works Association and American Society of Civil Engineers. Water Treatment Plant Design. Third Edition. New York: McGraw Hill, 1998. Pp 92. Detention times of 10-60 s; see also Viessman and Hammer, 1993, and others
A90: Coagulant mix tank mixer horsepower | B90: mix_hp_per | C90: 0.25 | D90: hp per 1,000 gallons
A91: Minimum coagulant tank mixer horsepower | B91: min_mix_hp | C91: =1/3 -> 0.3333333333 | D91: hp
A93: Pumping
A94: Safety factor for pumps | B94: pump_safety_factor | C94: 0.25
A95: Redundant booster pumps | B95: NRD_pumps | C95: 0 | D95: pumps | E95: Multiple pump approach eliminates need for redundant pumps.
A96: Redundant backwash pumps | B96: NRD_back_pumps | C96: 1 | D96: pump
A97: Redundant recycle pumps | B97: NRD_recycle_pumps | C97: 1 | D97: pump
A98: Number of redundant chemical metering pumps | B98: NRD_cm_pump | C98: 1 | D98: pumps
A99: Minimum chemical feed pump size | B99: min_chem_flow | C99: 0.13 | D99: gph | E99: Metering pumps will be designed to meet this minimum
A101: Electron Donor/Nutrient Properties
A102: Acetic Acid density | B102: CH3NOOH_dens | C102: 8.42 | D102: lbs/gal | E102: Specific gravity of 1.049 for 100% acetic acid translates to 1.009 for 20% acetic acid
A103: Acetic Acid solution strength | B103: CH3NOOH_strength | C103: 0.2 | D103: as acetic acid
A104: Ethanol density | B104: ethanol_dens | C104: 6.58 | D104: lbs/gal | E104: 0.789 g/cm3
A105: Ammonium Chloride density | B105: NH4CL_dens | C105: 11.813 | D105: lbs/gal | E105: Assumes mixing a 29.4% solution from 99 grade crystals, which would be stable down to 0 degrees C and thus not require heat tracing and insulation
A106: Phosphoric Acid solution percent | B106: H3PO4_pct | C106: 0.75 | E106: Prices are available for 36% and 75% solutions
A108: Backwash
A109: Bioreactor water backwash rate | B109: h2oflush_backwash_rate | C109: 8 | D109: gpm/square ft | E109: Guidance: Typical bioreactor backwash rates are between 6-10 gpm/square ft
A110: Bioreactor backwash time | B110: backwash_time | C110: 10 | D110: minutes
A111: Filter water backwash rate | B111: filter_h2oflush_backwash_rate | C111: 15 | D111: gpm/square ft
A112: Filter backwash time | B112: filter_backwash_time | C112: 7 | D112: minutes
A113: Media attrition during bioreactor backwash | B113: media_loss_rate | C113: 0.1 | D113: per year | E113: Normal media attrition rate is in the range of 3-10 % per year, usually balanced by adding media to the bioreactor
A114: Media attrition during post-treatment filter backwash | B114: filter_media_loss_rate | C114: 0.1 | D114: per year | E114: Normal media attrition rate is in the range of 3-10 % per year, usually balanced by adding media to the filter
A115: Media attrition during biomass removal air scour | B115: fluid_media_loss_rate | C115: 0.05 | D115: per year
A116: Air scour volume | B116: air_scour_vol | C116: 4 | D116: CFM/square ft
A117: Air scour time | B117: air_scour_time | C117: 5 | D117: minutes
A118: Redundant blowers | B118: NRD_blowers | C118: 1 | D118: units
A120: Chemical Storage
A121: Days of chemical storage for H2O2 | B121: H2O2_days | C121: 7 | D121: days | E121: Reduce chemical storage time for H2O2 since it is unstable.
A122: Days of chemical storage for all other chemicals | B122: chem_storage | C122: 30 | D122: days | E122: US DoD, 2009
A123: Include a separate day tank if daily volume is x or greater | B123: day_tank_needed | C123: 5 | D123: gal
A124: Include mixers for chemical tanks | B124: include_cmix | C124: 0 | D124: <--- enter 1 for yes, 0 for no
A125: Chemical tank mixer horsepower | B125: cmix_hp_per | C125: 0.25 | D125: hp per 1000 gal
A126: Minimum chemical tank mixer horsepower | B126: min_cmix_hp | C126: =1/3 -> 0.3333333333 | D126: hp
A128: Secondary Containment Requirements
A129: Include secondary containment | B129: include_sec_cont | C129: 1 | D129: <--- enter 1 for yes, 0 for no
A130: Volume required as a percentage of the largest tank | B130: sec_cont_pct_of_largest | C130: 1.1
A131: Volume required as a percentage of total storage | B131: sec_cont_pct_of_total | C131: 0.1
A132: Additional freeboard | B132: sec_cont_freeboard | C132: 6 | D132: inches | E132: Additional freeboard is typically required to contain precipitation when storage is outside; we also include freeboard indoors to ensure a minimum reasonable curb height
A133: Maximum curb thickness | B133: sec_cont_max_thick | C133: 1 | D133: foot | E133: Calculations assume thickness equal to height, up to this maximum
A134: Chemical resistant coating coverage | B134: sec_cont_coating_cvg | C134: 125 | D134: square feet/gallon
A136: Pipe Length Multipliers
A137: Influent and treated water pipe length multiplier | B137: in_out_pipe_mult | C137: 2 | D137: times facility length
A138: Process pipe length multiplier | B138: proc_pipe_mult | C138: 2 | D138: times facility length
A139: Bypass pipe length multiplier | B139: bp_pipe_mult | C139: 2.5 | D139: times facility length
A140: Backwash pipe length multiplier | B140: back_pipe_mult | C140: 2.5 | D140: times facility length
A141: Recycle pipe length multiplier | B141: recycle_pipe_mult | C141: 1 | D141: times facility length
A142: Chemical pipe length multiplier | B142: chem_pipe_mult | C142: 1 | D142: times facility length
A144: Valves and Instrumentation
A145: See the Valve Table at the bottom of this page for additional assumptions relating to valves
A146: Number of manual valves on influent and treated water line | B146: tot_man_valves | C146: 2 | D146: valves | E146: For emergency shut off
A147: Number of manual valves on process line per vessel | B147: proc_man_vessel | C147: 1 | D147: valve/vessel | E147: For filter to waste
A149: Number of check valves on backwash line if no backwash pumps | B149: back_chv_no_back | C149: 1 | D149: valves
A150: Number of check valves on backwash line per backwash pump | B150: back_chv_pump | C150: 1 | D150: valves/pump
A151: Number of check valves on chemcial line per chemical pump | B151: chem_chv_pump | C151: 2 | D151: valves/pump
A152: Number of check valves on influent line | B152: tot_in_chv | C152: 1 | D152: valves
A153: Number of check valves on nutrient feed line | B153: tot_nutrient_chv | C153: 1 | D153: valves | E153: Prevents biomass gorwth in nutirent line
A154: Number of check valves on ferric chloride line per metering pump | B154: coag_chv_pump | C154: 1 | D154: valves/pump | E154: Applies only with coagulant addition to post-treatment filtration or ferric addition to residuals
A155: Number of check valves on polymer line per metering pump | B155: polymer_chv_pump | C155: 1 | D155: valves/pump | E155: Applies only with polymer addition to residuals
A156: Number of check valves on bypass line | B156: tot_bp_chv | C156: 1 | D156: valves
A158: Flow meters for influent and treated water line | B158: tot_fm_in | C158: 1 | D158: units | E158: Flow meter assemblies include pressure gauges
A159: Flow meters for process line per vessel | B159: fm_proc | C159: 0 | D159: units/vessel
A160: Flow meters for backwash line | B160: tot_fm_back | C160: 1 | D160: units | E160: At backwash discharge outlet
A161: Level switch/ alarm to PLC | B161: level_switch | C161: 0 | D161: units/vessel
A162: Level switch/ alarm to PLC for small systems | B162: level_switch_small | C162: 0 | D162: units/vessel
A163: Level switch/alarms per bioreactoror | B163: level_switch_g | C163: 1 | D163: units/basin
A164: Level switch/alarms per bioreactoror for small systems | B164: level_switch_small_g | C164: 0 | D164: units/basin
A165: High/Low alarm for backwash tank | B165: alarm_back | C165: 1 | D165: units/vessel
A166: High/Low alarms for chemical tank | B166: alarm_chem | C166: 1 | D166: units/vessel
A167: ORP sensor | B167: ORP_sensor | C167: 2 | D167: units | E167: One at Influent, one for treated water
A168: pH meters | B168: pH_controls | C168: 0 | D168: units
A169: Temperature meters | B169: temp_meters | C169: 2 | D169: units | E169: One for influent line, one for treated water line
A170: Temperature meters for small systems | B170: temp_meters_small | C170: 2 | D170: units | E170: One for influent line, one for treated water line
A171: Turbidity meters per vessel | B171: turb_tank | C171: 1 | D171: units/vessel | E171: One for treated water line
A172: Turbitity meters per gravity bioreactoror | B172: turb_tank_g | C172: 1 | D172: units/basin
A173: Turbitity meters per filter | B173: turb_tank_filt | C173: 1 | D173: units/basin | E173: One for treated water line
A174: Additional turbididy meters | B174: add_turb | C174: 0 | D174: units
A175: Head loss sensors per vessel | B175: head_tank | C175: 1 | D175: units/vessel
A176: Online Perchlorate/Nitrate Analyzers (perchlorate treatment) | B176: ClO4_analyzer | C176: 1 | D176: units
A177: Online Nitrate Analyzers (nitrate treatment only) | B177: N_analyzer | C177: 1 | D177: units
A178: Online Dissolved Oxygen Analyzer | B178: DO_analyzer | C178: 1 | D178: units
A179: Sampling ports per vessel | B179: ports_tank | C179: 1 | D179: units/vessel
A180: Sampling ports for blended treated water | B180: ports_bp | C180: 1 | D180: units
A181: Additional sampling ports | B181: add_ports | C181: 3 | D181: units | E181: One for influent line, one for treated water line, one on residual side of backwash line
A182: Number of electrical enclosures | B182: elec_encl | C182: 0 | D182: units | E182: Required only for technologies with significant electric-powered equipment outside a building
A184: System Controls
A185: See the I/O Port Table at the bottom of this page for additional assumptions relating to system controls
A186: Controllers are used only under full automation
A187: To change the degree of automation, change the number of controllers to zero for the appropriate items.
A188: Drive controllers per booster pump | B188: S_booster_pump | C188: 1
A189: Drive controllers per backwash pump and air scour blower | B189: S_back_pump | C189: 1
A190: Drive controllers per recycle pump | B190: S_recycle_pump | C190: 1
A191: Drive controllers per eductor | B191: S_eductor | C191: 0
A192: Drive controllers per residuals pump | B192: S_res_pump | C192: 1
A193: Drive controllers per mixer | B193: S_mixer | C193: 1
A194: Drive controllers per chemical metering pump | B194: S_cm_pump | C194: 1
A196: Number of CPUs | B196: plc_cpu | C196: 2 | D196: unit | E196: One CPU is needed to run the local and expansion bases and modules (max 8192 I/O); using two to provide redundancy
A197: Ethernet modules | B197: plc_ethernet | C197: 2 | D197: unit | E197: One ethernet module is needed; using two to provide redundancy
A198: Operator interfaces | B198: plc_interface | C198: 2 | D198: unit | E198: Two to provide redundancy in the event of SCADA node failure
A199: UPSs | B199: ups | C199: 1 | D199: unit | E199: UPS protects the PLC system from undesired outages and surges that can adversely affect the performance of the PLC unit
A200: Computer workstations per x operators | B200: workstation_ratio | C200: 1 | D200: operator/workstation | E200: Minimum will always be one, but larger systems will have multiple workstations to control the system
A201: Number of shifts | B201: shifts_day | C201: 3 | D201: shifts/day | E201: Used to determine number of workstations
A202: Printers per x computer workstations | B202: printer_ratio | C202: 4 | D202: workstations/printer | E202: Minimum will always be one, but larger systems will have multiple printers
A204: Structure/Floorplan
A205: Maximum access space per vessel or tank for custom designed systems | B205: max_space_vessels_cust | C205: 6 | D205: feet | E205: This is the MAXIMUM; space between vessels and tanks defaults to vessel or tank diameter, up to this maximum. Maximum provides space for sandblasting and painting for large vessels (5-8 feet per Richard E. Hubel, Peter Keenan, American Water Works Service Company).
A206: Maximum access space per vessel or tank for pre-engineered systems | B206: max_space_vessels_pre | C206: 1 | D206: feet | E206: Pre-engineered packages are skid-mounted with minimal access space
A207: Access space per pump for custom designed systems | B207: space_pumps_cust | C207: 4 | D207: feet | E207: Provide a minimum of 3 ft (1 m) of clear space around each item of equipment (American Water Works Association and American Society of Civil Engineers. Water Treatment Plant Design. Third Edition. New York: McGraw Hill, 1998. Pp. 695).
A208: Access space per pump for pre-engineered packages | B208: space_pumps_pre | C208: 0 | D208: feet | E208: Pumps on skid for pre-engineered packages, no additional access space
A209: Non fire Buffer for buildings | B209: non_fire_buffer | C209: 10 | D209: feet
A210: Fire Buffer for Buildings | B210: fire_buffer | C210: 40 | D210: feet
A211: Top and bottom dished vessel sections height and access space | B211: Top_bottom_Vessel_space | C211: 6 | D211: feet | E211: This is used to determine the building height for purposes of heating and cooling cost.
A212: Office space per employee | B212: space_office | C212: 100 | D212: square ft
A213: Office space per employee | B213: space_office_small | C213: 0 | D213: square ft | E213: Small systems do not require office space
A214: Concrete pad thickness | B214: pad_thick | C214: =6/12 -> 0.5 | D214: feet
A215: Concrete pad thickness for small systems | B215: pad_thick_small | C215: =4/12 -> 0.3333333333 | D215: feet
A216: Clearance space beneath the ceiling | B216: ceiling_clearance | C216: 3 | D216: feet | E216: Minimum space between the tops of storage tanks and the ceiling
A217: Additional building after… | B217: add_2nd_building | C217: 10000 | D217: sf
A219: Residuals Discharge
... 124 more rows

Sheet O&M Assumptions
A1: Default O&M Assumptions
A2: Users may change any of the cells in the Value column
A4: Assumption | B4: Range Name | C4: Value | D4: Units | E4: Guidance
A5: Pumping
A6: Pump head for booster pumps | B6: booster_pump_head | C6: 25 | D6: psi | E6: Von Huben, Harry. Operator's Companion, 4th Edition. USABluebook, 2000. Pp. 17 25 psi creates a head of 60 feet
A7: Recycle pump head | B7: recycle_pump_head | C7: 25 | D7: psi
A8: Backwash pump head | B8: back_pump_head | C8: 25 | D8: psi
A9: Residuals pump head | B9: res_pump_psi | C9: 25 | D9: psi
A10: Booster Pump efficiency | B10: booster_pump_efficiency | C10: 0.75
A11: Recycle Pump efficiency | B11: recycle_pump_efficiency | C11: 0.75
A12: Cost for parts & maintenance for pumps and blowers | B12: booster_pump_maintenance | C12: 0.01 | D12: of installed cost | E12: For calculating cost of actual maintenance materials; not to be confused with depreciation. Initial proposed estimate of 5% seems high (Richard E. Hubel, Peter Keenan, American Water Works Service Company, Inc)
A13: Additional blower head above water level | B13: add_blow_head | C13: 10 | D13: inches
A14: Blower efficiency | B14: blower_effcy | C14: 0.7
A16: Labor and Materials
A17: Mangerial LOE as a percent of average technical labor | B17: Manager_percent | C17: 0.1 | D17: fraction
A18: Administrative LOE as a percent of average technical labor | B18: Clerical_percent | C18: 0.1 | D18: fraction
A19: Labor hours per week for contact basins | B19: Weekly_labor | C19: 1 | D19: hr/week/basin | E19: Gravity systems only
A20: Annual contactor materials cost as a percent of capital | B20: Materials_pct | C20: 0.01 | E20: Gravity systems only
A22: Operating LOE assumptions
A23: Minutes per instrument per day | B23: uloe_inst | C23: 5 | D23: min/day | E23: For manual systems only
A24: Recording operating paramenters for automated systems | B24: uloe_inst_auto | C24: 5 | D24: min/day | E24: For semiautomated and automated systems
A25: Minutes per pump per day | B25: uloe_pump | C25: 5 | D25: min/day | E25: For manual and semiautomated systems
A26: Minutes per valve per week | B26: uloe_valve | C26: 5 | D26: min/week | E26: For manual and semiautomated systems
A27: Minutes per backwash for automated systems | B27: uloe_autoback | C27: 1 | D27: min/event | E27: Manual and semiautomated systems use actual backwash time
A28: Minutes per 100 sf per day | B28: uloe_fp | C28: 1 | D28: min/100 sf/day
A29: Hours per media changeout | B29: uloe_throwaway | C29: =8/(20*27) -> 0.01481481481 | D29: hours/cubic foot | E29: For systems using manual media transfer. Based on 20 cubic yards per day, applied separately to removal and replacement.
A31: Maintenance LOE assumptions
A32: For instruments (includes calibration) | B32: uloe_inst_maint | C32: 10 | D32: min/month
A33: For pumps | B33: uloe_pump_maint | C33: 30.25 | D33: hours/year | E33: Based on vendor recommended maintenance activities; applied to large, frequently operated pumps only
A34: For valves | B34: uloe_valve_maint | C34: 5 | D34: min/year | E34: Applied to main process valves only
A35: For chemical supply systems | B35: uloe_chem_maint | C35: 120 | D35: min/month
A37: Energy
A38: Lighting power per sf, low-quality buildings and sheds | B38: lighting_power_low | C38: 0.3 | D38: W/sf | E38: 0.3, 0.6, and 1.2 W/sf are the assumptions used for building capital costs
A39: Lighting power per sf, mid-quality buildings | B39: lighting_power_mid | C39: 0.6 | D39: W/sf
A40: Lighting power per sf, high-quality buildings | B40: lighting_power_high | C40: 1.2 | D40: W/sf
A42: Ventilation air change rate for contactor | B42: Air_changes_contactor | C42: 3 | D42: air changes/hr
A43: Ventilation air change rate for pump room | B43: Air_changes_pump | C43: 20 | D43: air changes/hr | E43: Could be lower (annual average 3 changes/hr) in a northern climate
A44: Ventilation air change rate for chemical storage | B44: Air_changes_chem_storage | C44: 2 | D44: air changes/hr
A45: Ventilation air change rate for offices | B45: Air_changes_office | C45: 2 | D45: air changes/hr
A46: Pressure drop across the fan | B46: Fan_pressure_drop | C46: 0.25 | D46: lbs/ft2
A47: Number of mechanical ventilation days per year first building (small system) | B47: fan_days_build1_small | C47: 90 | D47: days/year | E47: Number of days per year where natural ventilation is applicable cannot be greater than 365 days
A48: Number of mechanical ventilation days per year 2nd building (small system) | B48: fan_days_build2_small | C48: 90 | D48: days/year | E48: For small systems (<1 MGD)
A49: Number of mechanical ventilation days per year first building (medium system) | B49: fan_days_build1_medium | C49: 120 | D49: days/year | E49: For medium systems (1 - 10 MGD)
A50: Number of mechanical ventilation days per year 2nd building (medium system) | B50: fan_days_build2_medium | C50: 120 | D50: days/year
A51: Number of mechanical ventilation days per year first building (large system) | B51: fan_days_build1_large | C51: 185 | D51: days/year | E51: For large systems (> 10 MGD)
A52: Number of mechanical ventilation days per year 2nd building (large system) | B52: fan_days_build2_large | C52: 185 | D52: days/year
A54: R-value for walls | B54: R_wall | C54: 20 | D54: hr-sf-degF/BTU | E54: See Appendix E. If higher R-value materials are desired, user may also need to adjust the cost of building materials in cl.xls
A55: R-value for ceilings | B55: R_ceiling | C55: 49 | D55: hr-sf-degF/BTU | E55: See Appendix E. If higher R-value materials are desired, user may also need to adjust the cost of building materials in cl.xls
A56: Annual heating degree days | B56: heat_DD | C56: 4260 | D56: degree days | E56: Heating and cooling assumptions should be consistent with one another. Assumed values are for a climate that results in a total energy usage for heating and cooling equal to the national median.
A57: Annual cooling degree days | B57: cool_DD | C57: 1415 | D57: degree days | E57: Heating and cooling assumptions should be consistent with one another. Assumed values are for a climate that results in a total energy usage for heating and cooling equal to the national median.
A58: Heating ventilation/infiltration load | B58: heat_viload | C58: 168679 | D58: BTU/cfm | E58: Heating and cooling assumptions should be consistent with one another. Assumed values are for a climate that results in a total energy usage for heating and cooling equal to the national median.
A59: Cooling ventilation/infiltration load | B59: cool_viload | C59: 51771 | D59: BTU/cfm | E59: Heating and cooling assumptions should be consistent with one another. Assumed values are for a climate that results in a total energy usage for heating and cooling equal to the national median.
A60: Electric resistance heating efficiency | B60: resist_eff | C60: 0.98 | E60: See Appendix E
A61: Heat pump heating coefficient of performance | B61: COP | C61: 3.3 | E61: See Appendix E
A62: Natural gas non-condensing furnace efficiency | B62: gas_non_eff | C62: 0.85 | E62: See Appendix E
A63: Natural gas condensing furnace efficiency | B63: gas_eff | C63: 0.9 | E63: See Appendix E
A64: Standard oil furnace efficiency | B64: diesel_non_eff | C64: 0.82 | E64: See Appendix E
A65: Mid-efficiency oil furnace efficiency | B65: diesel_eff | C65: 0.9 | E65: See Appendix E
A66: Air conditioning EER | B66: EER | C66: 11.8 | D66: BTU/Whr | E66: See Appendix E
A67: Heat pump cooling mode EER | B67: hp_EER | C67: 11.8 | D67: BTU/Whr | E67: See Appendix E
A69: Heating oil heat content | B69: diesel_heat_content | C69: 139000 | D69: BTU/gal | E69: U.S. DOE, Energy Information Administration.

Sheet Indirect Assumptions
A1: Default Assumptions for Indirect and Add-On Costs
A2: Users may change any of the cells in the Value column
A4: Assumption | B4: Range Name | C4: Value | D4: Units | E4: Guidance
A5: Permits
A6: Include permit costs? | B6: include_permits | C6: 1 | D6: <--- enter 1 for yes, 0 for no
A7: Always include NEPA compliance costs? | B7: include_NEPA | C7: 1 | D7: <--- enter 1 for default, enter 2 for yes, 3 for no | E7: Default of 1 means NEPA compliance is included only for systems that discharge to surface water. Selecting 2 means NEPA compliance will be included in all estimates. Selecting 3 means NEPA compliance will never be included.
A9: Pilot Study
A10: Include pilot study costs? | B10: include_pilot | C10: 1 | D10: <--- enter 1 for yes, 0 for no
A12: Mobilization and Demobilization
A13: Mobilization percentage for pre-engineered packages | B13: mob_pct_pre | C13: 0 | D13: of direct capital cost | E13: Excluded by default for pre-engineered packages
A14: Mobilization percentage for small systems | B14: mob_pct_small | C14: 0.05 | D14: of direct capital cost | E14: Typically 2-5% of the estimated construction cost. Enter 0% to exclude.
A15: Mobilization percentage for medium systems | B15: mob_pct_medium | C15: 0.04 | D15: of direct capital cost
A16: Mobilization percentage for large systems | B16: mob_pct_large | C16: 0.02 | D16: of direct capital cost
A18: Architectural Fees for Treatment Building
A19: Include architectural fee? | B19: include_arch | C19: 1 | D19: <--- enter 1 for yes, 0 for no | E19: Must be added to building cost. Change for special considerations. Includes structural, mechanical, and electrical engineering for building only.
A20: Include architectural fee for small systems? | B20: include_arch_small | C20: 0 | D20: <--- enter 1 for yes, 0 for no
A22: Installation, Transportatation, and O&P
A23: Installation, Transportatation, and O&P percentage | B23: inst_pct | C23: 0 | D23: of direct capital cost | E23: Included in line item unit costs. Add a percentage for special considerations such as a remote site or high cost location.
A25: Sitework
A26: Include sitework costs? | B26: include_sitework | C26: 1 | D26: <--- enter 1 for yes, 0 for no
A28: Yard Piping
A29: Include yard piping costs? | B29: include_yardpipe | C29: 1 | D29: <--- enter 1 for yes, 0 for no
A30: Frost depth | B30: frost | C30: 38 | D30: inches | E30: Should be consistent with (reflect same climate as) heating and cooling assumptions on O&M assumptions page. Assumptions are for St. Louis, Missouri.
A31: Minimum trench depth to top of pipe | B31: min_trench_depth | C31: 36 | D31: inches | E31: US Army Corps of Engineers recommended minimum cover for distribution pipes of 2.5 ft in grassed areas, 3 ft if buried under pavement or roadways but not less than frost penetration depth (USACOE 1984)
A32: Soil density | B32: soil_dens | C32: 97 | D32: lb/cubic ft. | E32: Based on soil density of loamy sand (1.55 gm/cc)
A33: Coefficient of passive pressure | B33: Coeff_Kp | C33: 3
A34: Reduction factor | B34: Reduction | C34: 0.467
A35: Bedding depth below pipe | B35: bedding_depth | C35: 6 | D35: inches
A36: Bedding depth surrounding the pipe | B36: bedding_pct | C36: 0.25 | D36: of pipe diameter
A37: Trench inside angle | B37: trench_angle | C37: =RADIANS(45) -> 0.7853981634 | D37: radians
A38: Pipe length from water source to the boundary of the 10 foot buffer | B38: yard_in | C38: 0 | D38: feet | E38: Use if technology is first step in treatment process
A39: Pipe length the boundary of the 10 foot buffer to distribution network | B39: yard_out | C39: 0 | D39: feet | E39: Use if technology is last step in treatment process
A41: Geotechnical & Sitework
A42: Include geotechnical costs for low cost systems? | B42: include_geo_low | C42: 0 | D42: <--- enter 1 for yes, 0 for no | E42: Note: geotechnical is always included with the evaporation pond option, regardless of the numbers entered here
A43: Include geotechnical costs for medium cost systems? | B43: include_geo_medium | C43: 0 | D43: <--- enter 1 for yes, 0 for no
A44: Include geotechnical costs for high cost systems? | B44: include_geo_high | C44: 1 | D44: <--- enter 1 for yes, 0 for no
A45: Test pit length | B45: pit_length | C45: 4 | D45: feet
A46: Test pit width | B46: pit_width | C46: 4 | D46: feet
A47: Test pit depth | B47: pit_depth | C47: 7 | D47: feet
A48: Borehole depth (pressure systems) | B48: bore_depth_p | C48: 10 | D48: feet
A49: Borehole depth for shallow basins | B49: bore_depth_min | C49: 25 | D49: feet
A50: Borehole depth for deep basins | B50: bore_depth_max | C50: 50 | D50: feet
A51: Basin excavation depth above which deeper boreholes are needed | B51: deep_bore_need | C51: 20 | D51: feet | E51: Large gravity systems with deep basins require deeper investigation
A52: Technology footprint above which boreholes are needed | B52: bore_need | C52: 2000 | D52: square feet | E52: Small system geotechnical investigation can be completed with test pits, larger systems require boreholes
A53: Minimum number of boreholes | B53: min_holes | C53: 4
A54: Borehole needed every x square feet | B54: hole_per_sf | C54: 1000 | D54: square feet
A55: Boreholes per job | B55: hole_per_job | C55: 24 | D55: boreholes/job
A56: Linear feet bored per day | B56: hole_per_day | C56: 55.5 | D56: l.f./day | E56: RS Means Costworks 2001
A58: Standby Power
A59: Include standby power costs? | B59: include_standby | C59: 1 | D59: <--- enter 1 for yes, 0 for no
A60: Include standby power costs for small systems? | B60: include_standby_small | C60: 0 | D60: <--- enter 1 for yes, 0 for no
A61: Design safety factor for standby power | B61: std_safety_factor | C61: 0 | E61: Default 0%. Apply a percentage to increase standby power requirements.
A62: Include heating in standby power | B62: need_heat | C62: 0 | D62: <--- enter 1 for yes, 0 for no | E62: If a system uses gas or diesel heat, heating will not be included, regardless of this assumption.
A63: Include cooling in standby power | B63: need_cool | C63: 0 | D63: <--- enter 1 for yes, 0 for no | E63: If both heating and cooling are included, standby power requirements will be based on the maximum of the two.
A64: Minimum standby power generator size | B64: min_standby | C64: 1.5 | D64: kW
A66: Electrical (including yard wiring)
A67: Electrical percentage | B67: elect_pct | C67: 0.1 | D67: of direct cost
A69: Instrumentation and Control
A70: Instrumentation and control percentage | B70: i_c_pct | C70: 0 | D70: of direct cost | E70: Included as a direct cost line item.
A72: Contingency
A73: Include contingency costs for low cost systems? | B73: include_conting_low | C73: 0 | D73: <--- enter 1 for yes, 0 for no
A74: Include contingency costs for medium cost systems? | B74: include_conting_medium | C74: 0 | D74: <--- enter 1 for yes, 0 for no
A75: Include contingency costs for high cost systems? | B75: include_conting_high | C75: 1 | D75: <--- enter 1 for yes, 0 for no
A76: Technology complexity factor | B76: complexity | C76: 1.5 | E76: Technology-specific factor. See Appendices for details. Low complexity = 0.5; Average complexity = 1.0; High complexity = 1.5; Very high complexity = 2.0.
A78: Process Engineering
A79: Engineering percentage for small systems | B79: eng_pct_small | C79: 0.2 | D79: of direct capital cost | E79: Enter 0% to exclude.
A80: Engineering percentage for medium systems | B80: eng_pct_medium | C80: 0.12 | D80: of direct capital cost
A81: Engineering percentage for large systems | B81: eng_pct_large | C81: 0.08 | D81: of direct capital cost
A83: Miscellaneous Allowance
A84: Miscellaneous allowance percentage | B84: misc_pct | C84: 0.1 | D84: of direct capital cost | E84: Enter 0% to exclude.
A86: Legal, Fiscal, and Administrative
A87: Legal percentage | B87: legal_pct | C87: 0.02 | D87: of direct capital cost | E87: Enter 0% to exclude. Highly site-specific. Can range from 2-5% of equipment, installation, construction, electrical, and standby power. To estimate, add 5% to total estimated construction cost.
A89: Sales Tax
A90: Sales tax percentage | B90: tax_pct | C90: 0 | D90: of direct capital cost | E90: May be exempt if constructed with public funds. May be as high as 7.25% of equipment and construction, with national average 4.75%.
A92: Financing during Construction
A93: Financing percentage | B93: finance_pct | C93: 0.05 | D93: of direct capital cost | E93: Enter 0% to exclude. Typically assumed to be one year's interest on capital cost.
A94: Financing percentage for small systems | B94: finance_pct_small | C94: 0 | D94: of direct capital cost | E94: Small system construction assumed to take less than one year
A96: Construction Management and General Contractor Overhead
A97: Builder's risk insurance percentage | B97: br_ins_pct | C97: 0.0034 | E97: Enter 0% to exclude. 0.34% is national average rate. RSMeans Building Construction Cost Data 2009, reference section R01100-070
A98: Include performance bond cost? | B98: include_bond | C98: 1 | D98: <--- enter 1 for yes, 0 for no
A99: Include construction management cost? | B99: include_cm | C99: 1 | D99: <--- enter 1 for yes, 0 for no
A100: Include construction management cost for pre-engineered packages? | B100: include_cm_pre | C100: 0 | D100: <--- enter 1 for yes, 0 for no
A102: Concrete Pad
A103: Include concrete pad in total capital cost? | B103: include_pad | C103: 1 | D103: <--- enter 1 for yes, 0 for no
A105: Heating Table (1=include heating in buildings and O&M, 0 = do not include heating)
A106: Component Level | B106: Range Name | C106: System Size
C107: Small (<1 mgd) | D107: Medium (1-10 mgd) | E107: Large (>10 mgd)
A108: Buildings 500 square feet or greater
A109: low cost | B109: heating_table | C109: 0 | D109: 1 | E109: 1
A110: mid cost | C110: 1 | D110: 1 | E110: 1
A111: high cost | C111: 1 | D111: 1 | E111: 1
A112: Buildings less than 500 ft2 (other than those used for chlorine storage)
A113: low cost | B113: heating_table_shed | C113: 0 | D113: 0 | E113: 1
A114: mid cost | C114: 0 | D114: 0 | E114: 1
A115: high cost | C115: 1 | D115: 1 | E115: 1
A117: Cooling Table (1=include cooling in buildings and O&M, 0 = do not include cooling)
A118: Component Level | B118: Range Name | C118: System Size
C119: Small (<1 mgd) | D119: Medium (1-10 mgd) | E119: Large (>10 mgd)
A120: Buildings 500 square feet or greater
A121: low cost | B121: cooling_table | C121: 0 | D121: 0 | E121: 1
A122: mid cost | C122: 0 | D122: 1 | E122: 1
A123: high cost | C123: 1 | D123: 1 | E123: 1
A124: Buildings less than 500 ft2 (other than those used for chlorine storage)
A125: low cost | B125: cooling_table_shed | C125: 0 | D125: 0 | E125: 0
A126: mid cost | C126: 0 | D126: 0 | E126: 0
A127: high cost | C127: 0 | D127: 0 | E127: 0

Sheet Bioreactor Constraints
A1: Bioreactor Constraint Calculations
A2: This sheet performs calculations to confirm that the vessel design on the Input page meets engineering constraints
A4: Calculation | B4: Range Name | C4: Value | D4: Units | E4: Guidance
A5: From Inputs
A6: Design Flow | B6: design_flow | C6: =IF(df_units="gpm",(1-bp_pct)*design_flow_I*24*60/1000000,(1-bp_pct)*design_flow_I) -> 0.03 | D6: MGD | E6: From Inputs
A7: Average Flow | B7: average_flow | C7: =(1-bp_pct)*IF(af_units="gpm",average_flow_I*24*60/1000000,IF(af_units="fraction of design flow",average_flow_I*design_flow,average_flow_I)) -> 0.007 | D7: MGD | E7: From Inputs
A8: Design Flow Rate | B8: design_flow_rate | C8: =design_flow*1000000/(24*60) -> 20.83333333 | D8: gpm | E8: Design flow expressed in gpm
A9: Average Flow Rate | B9: average_flow_rate | C9: =average_flow*1000000/(24*60) -> 4.861111111 | D9: gpm | E9: Average flow expressed in gpm
A10: Bypass Flow Rate (design) | B10: bp_flow_rate | C10: =bp_pct/(1-bp_pct)*design_flow_rate -> 0 | D10: gpm
A11: Target Contaminant | B11: contam | C11: 1 | D11: <-- 1 for perchlorate, 2 for nitrate, 3 for other
A12: Design type chosen | B12: design_type | C12: 1 | D12: <-- 1 for Fixed Bed Pressure Vessel, 2 for Fixed Bed Gravity Basin, 3 for Fluidized Bed
A13: Empty bed contact time or Hydraulic Residence Time | B13: EBCT | C13: =ebct_I -> 12 | D13: minutes
A16: PRESSURE VESSELS
A17: Vessel geometry | B17: tank_geom | C17: =IF(tank_geom_I="horizontal",2,1) -> 1 | D17: <-- 1 for upright cylindrical, 2 for horizontally-laid cylinder
A19: From Central Cost Database
A20: Maximum Standard Vessel Diameter | B20: max_diam_std_size | C20: =max_vessel_diam_cl -> 14 | D20: feet
A21: Minimum Vessel Diameter | B21: min_diam | C21: =IF(design_type=2,0,min_vessel_diam_cl) -> 1.5 | D21: feet
A22: Maximum Vessel Diameter | B22: max_diam | C22: =IF(design_type=2,0,IF(max_diam_override>0,max_diam_override,max_diam_std_size)) -> 14 | D22: feet
A24: Vessel Constraints
A25: EBCT per vessel | B25: EBCT_tank | C25: =EBCT -> 12 | D25: minute
A26: Vessel surface area | B26: max_sa | C26: =IF(design_type=2,"-",IF(tank_geom=1,PI()*(comm_diam-2*Vessel_thickness)*(comm_diam-2*Vessel_thickness)/4,IF(tank_geom=2,(comm_diam-2*Vessel_thickness)*comm_height_length,0))) -> 4.908738521 | D26: square feet
A27: Height available above media bed (for horizontal vessels) | B27: distance_above | C27: =IF(design_type=2,"-",IF(tank_geom=2,comm_diam-bed_depth-horiz_underdrain,"NA")) -> NA | D27: feet
A28: Void space above media bed (for horizontal vessels) | B28: void_above | C28: =IF(design_type=2,"-",IF(tank_geom=2,comm_height_length*(comm_diam*comm_diam/2*ASIN(SQRT(distance_above/comm_diam))-(comm_diam/2-distance_above)*SQRT((comm_diam-distance_above)*distance_above)),"NA")) -> NA | D28: cubic feet
A29: Maximum flow per vessel | B29: flow_per_vessel | C29: =IF(design_type=2,"-",IF(tank_geom=1,(max_sa*IF(design_type=3,bed_depth*(1+bed_expansion_fluidized),bed_depth)*7.48)/EBCT_tank,media_volume*7.48/EBCT_tank)) -> 10.70923121 | D29: gpm
A30: Number of parallel treatment trains | B30: num_treat_lines | C30: =IF(design_type=2,"-",IF(design_type=1,ROUNDUP(design_flow_rate/flow_per_vessel,0),ROUNDUP(design_flow_rate*(1+recycle_fluid)/flow_per_vessel,0))) -> 2 | D30: lines
A31: Number of vessels excluding redundancy | B31: op_num_tanks | C31: =IF(design_type=2,"-",IF(design_type=1,ROUNDUP(design_flow_rate/flow_per_vessel,0),ROUNDUP(design_flow_rate*(1+recycle_fluid)/flow_per_vessel,0))) -> 2 | D31: units
A32: Number of redundant bioreactors | B32: NRD | C32: =IF(design_type=2,"-",IF(NRD_I<>"",NRD_I,IF(design_flow>=1,IF(design_type=1,ROUNDUP(num_treat_lines/redund_freq,0),ROUNDUP(num_treat_lines/redund_freq_fluid,0)),IF(op_num_tanks=1,NRD_small_1,NRD_small)))) -> 0 | D32: units
A33: Total number of vessels including redundancy | B33: final_num_tanks | C33: =IF(design_type=2,0,op_num_tanks+NRD) -> 2 | D33: units
A35: Vessel requirements based on bed depth and contact time
A36: Minimum volume of contact area needed | B36: contact_material | C36: =IF(design_type=2,"-",IF(design_type=1,design_flow_rate*EBCT/(7.481),design_flow_rate*(1+recycle_fluid)*EBCT/(7.481))) -> 33.41799225 | D36: cubic feet
A37: Minimum volume of contact area per vessel | B37: contact_mat_per_vessel | C37: =IF(design_type=2,"-",contact_material/op_num_tanks) -> 16.70899612 | D37: cubic feet
A38: Minimum surface area of contact material | B38: SA | C38: =IF(design_type=2,"-",contact_mat_per_vessel/(IF(design_type=3,bed_depth*(1+bed_expansion_fluidized),bed_depth))) -> 4.773998892 | D38: square feet
A40: Quantities based on user-specified vessel dimensions
A41: Final surface area of contact material | B41: comm_SA | C41: =IF(design_type=2,"-",IF(tank_geom=1,(comm_diam-(2*Vessel_thickness))^2*PI()/4,IF(tank_geom=2,(comm_diam-(2*Vessel_thickness))*comm_height_length))) -> 4.908738521 | D41: square feet
A42: Final surface loading rate | B42: comm_load_rate | C42: =IF(design_type=2,"-",IF(design_type=1,(design_flow_rate/num_treat_lines)/comm_SA,(design_flow_rate*(1+recycle_fluid)/num_treat_lines)/comm_SA)) -> 2.122065908 | D42: gpm/square ft
A43: Volume | B43: comm_vol | C43: =IF(design_type=2,"-",PI()*comm_diam^2/4*comm_height_length) -> 31.90680039 | D43: cubic feet
B44: comm_vol_gal | C44: =IF(design_type=2,"-",comm_vol*7.48) -> 238.6628669 | D44: gal
A46: Checks on user-specified dimensions
A47: Design dimensions for vertical vessels:
A48: Required height of vessel | B48: height | C48: =IF(design_type=2,"-",IF(design_type=1,bed_depth*(1+bed_expansion)+free_board,IF(design_type=3,bed_depth*(1+bed_expansion_fluidized)+IF(design_flow<1,freeboard_fluidized_small,freeboard_fluidized),"-"))) -> 6.25 | D48: feet
A49: Required vessel diameter (circular vessels) | B49: diameter | C49: =IF(design_type=2,"-",(SA*4/PI())^0.5+(2*Vessel_thickness)) -> 2.465450096 | D49: feet
A50: Minimum commercial height given diameter | B50: min_comm_height | C50: =IF(design_type=2,"-",VLOOKUP(comm_diam,vessel_size_table_cl,2)) -> 4 | D50: feet
A51: Maximum commercial height given diameter | B51: max_comm_height | C51: =IF(design_type=2,"-",VLOOKUP(comm_diam,vessel_size_table_cl,3)) -> 9 | D51: feet
A53: Void space required for horizontal vessels:
A54: For freeboard | B54: freeboard_horiz_void | C54: =IF(design_type=2,"-",comm_height_length*(comm_diam*comm_diam/2*ASIN(SQRT(free_board/comm_diam))-(comm_diam/2-free_board)*SQRT((comm_diam-free_board)*free_board))) -> 11.91814839 | D54: cubic feet | E54: Volume of a horizontal slice taken out of a cylinder
A55: For underdrain | B55: underdrain_horiz_void | C55: =IF(design_type=2,"-",comm_height_length*(comm_diam*comm_diam/2*ASIN(SQRT(horiz_underdrain/comm_diam))-(comm_diam/2-horiz_underdrain)*SQRT((comm_diam-horiz_underdrain)*horiz_underdrain))) -> 19.98865199 | D55: cubic feet
A56: Total | B56: horiz_void | C56: =IF(design_type=2,"-",freeboard_horiz_void+underdrain_horiz_void) -> 31.90680039 | D56: cubic feet
A58: Volume available for media and expansion:
A59: Vertical vessel | B59: vert_vol_available | C59: =IF(design_type=2,"-",(comm_height_length-free_board)*PI()*comm_diam^2/4) -> 26.99806187 | D59: cubic feet
A60: Horizontal vessel | B60: horiz_vol_available | C60: =IF(design_type=2,"-",comm_vol-horiz_void) -> 0 | D60: cubic feet
A61: For selected vessel geometry | B61: input_vol_vess | C61: =IF(design_type=2,"-",CHOOSE(tank_geom,vert_vol_available,horiz_vol_available)) -> 26.99806187 | D61: cubic feet | E61: To be compared to vol_vessel, to determine whether vessel is oversized.
A63: GRAVITY CONTACT BASINS
A64: Minimum volume required | B64: min_basin_vol | C64: =IF(OR(design_type=1,design_type=3),"-",design_flow_rate*EBCT/7.48) -> - | D64: cubic ft
A65: Number of basins (no redundancy) | B65: op_num_basins | C65: =IF(OR(design_type=1,design_type=3),"-",ROUNDUP(min_basin_vol/(basin_width*basin_length*basin_op_depth),0)) -> -
A66: Basin depth including freeboard | B66: basin_depth | C66: =IF(OR(design_type=1,design_type=3),"-",basin_op_depth*(1+bed_expansion)+basin_freeboard) -> - | D66: ft
A67: Total basin volume | B67: basin_vol | C67: =IF(OR(design_type=1,design_type=3),"-",basin_width*basin_length*basin_depth*7.48) -> - | D67: gal
A68: Number of reduntant basins | B68: NRD_g | C68: =IF(OR(design_type=1,design_type=3),"-",IF(NRD_I<>"",NRD_I,IF(op_num_basins=1,NRD_small_1,CHOOSE(ss_cat2,NRD_small,NRD_basins_medium,NRD_basins_large)))) -> - | D68: units
A69: Basin loading rate | B69: surface_loading_rate_g | C69: =IF(OR(design_type=1,design_type=3),"-",design_flow_rate/(op_num_basins*(basin_width*basin_length))) -> - | D69: gpm/square ft
A70: Total number of basins (incl. redundancy) | B70: total_num_basins | C70: =IF(OR(design_type=1,design_type=3),0,op_num_basins+NRD_g) -> 0 | D70: units
A71: Concrete volume | B71: basin_conc_vol | C71: =IF(OR(design_type=1,design_type=3),"-",(2*(basin_width*total_num_basins+conc_thick*(total_num_basins+1))*basin_depth*conc_thick+(total_num_basins+1)*basin_length*basin_depth*conc_thick+(basin_length+2*conc_thick)*(basin_width*total_num_basins+conc_thick*(total_num_basins+1))*conc_thick)/27) -> - | D71: cubic yd | E71: incorporates common wall design
A72: Excavation volume | B72: excavation_vol | C72: =IF(OR(design_type=1,design_type=3),"-",((total_num_basins*basin_width+(total_num_basins+1)*conc_thick+overexcavate)*(basin_length+2*conc_thick+overexcavate)*(basin_depth+conc_thick+overexcavate)+0.5*(3*(basin_depth+conc_thick+overexcavate)*(basin_depth+conc_thick+overexcavate)*(basin_length+2*conc_thick+overexcavate)))/27) -> - | D72: cubic yd | E72: incorporates common wall design, includes ramping for moving earth out of excavated area, assumes flush with grade (conservative)
A73: Backfill volume | B73: backfill_vol | C73: =IF(OR(design_type=1,design_type=3),"-",excavation_vol-(total_num_basins*basin_width+(total_num_basins+1)*conc_thick)*(basin_length+2*conc_thick)*(basin_depth+conc_thick)/27) -> - | D73: cubic yd
A74: Railing length | B74: railing | C74: =IF(OR(design_type=1,design_type=3),"-",2*(total_num_basins*basin_width+2*conc_thick/2+(total_num_basins-1)*conc_thick)+2*(basin_length+2*conc_thick/2)) -> - | D74: lf | E74: incorporates common wall design, single railing (concrete thickness is not sufficient to provide walkway)
A75: Surface area each contactor | B75: basin_area | C75: =IF(OR(design_type=1,design_type=3),"-",basin_width*basin_length) -> - | D75: square ft | E75: for internals costing
A78: MEDIA QUANITITIES
A79: GAC media volume per bioreactor | B79: media_volume | C79: =IF(OR(design_type=1,design_type=3),IF(tank_geom=1,comm_SA*bed_depth,IF(tank_geom=2,comm_vol-underdrain_horiz_void-void_above)),basin_width*basin_length*basin_op_depth) -> 17.18058482 | D79: cubic feet
A80: GAC media mass per bioreactor | B80: resin_per_vessel | C80: =media_volume*GAC_density -> 515.4175447 | D80: lbs
A81: Total GAC media | B81: total_resin | C81: =resin_per_vessel*IF(OR(design_type=1,design_type=3),final_num_tanks,total_num_basins) -> 1030.835089 | D81: lbs
A82: Media volume when expanded | B82: media_volume_expanded | C82: =media_volume*(1+bed_expansion) -> 25.77087724 | D82: cubic feet | E82: Accounts for bed expansion

Sheet Chemicals
A1: Chemical Use Calculations
A3: Calculation | B3: Range Name | C3: Value | D3: Units | E3: Guidance
A4: Tank Size Limits
A5: Maximum chemical storage tank size | B5: max_chem_tank_size | C5: =MAX(VLOOKUP(10^6,pl_cst_cost_cl,1)-1,VLOOKUP(10^6,fg_cst_cost_cl,1)-1,VLOOKUP(10^6,ss_cst_cost_cl,1)-1) -> 30000 | D5: gallons | E5: The largest size for which costs are available (including plastic, fiberglass, and stainless)
A6: Maximum chemical storage tank size excluding stainless steel | B6: max_chem_tank_size_noSS | C6: =MAX(VLOOKUP(10^6,pl_cst_cost_cl,1)-1,VLOOKUP(10^6,fg_cst_cost_cl,1)-1) -> 30000 | D6: gallons | E6: The largest size for which costs are available (not including stainless)
A7: Maximum chemical tank size excluding fiberglass | B7: max_chem_tank_size_H2O2 | C7: =MAX(VLOOKUP(10^6,pl_cst_cost_cl,1)-1,VLOOKUP(10^6,ss_cst_cost_cl,1)-1) -> 30000 | D7: gallons | E7: The largest size for which costs are available (not including fiberglass, which is not compatible with H2O2)
A9: ELECTRON DONOR
A10: Electron Donor Type (from Input) | B10: e_donor_type | C10: =IF(e_donor_type_I="acetic acid",1,IF(e_donor_type_I="ethanol",2,"")) -> 1 | D10: <-- 1 for Acetic Acid, 2 for Ethanol
A11: Electron Donor Dose (from Input) | B11: e_donor_dose | C11: =e_donor_dose_I -> 10 | D11: mg/l
A12: Electron donor needed per day as 100% donor (design flow) | B12: e_donor_day_100pct | C12: =e_donor_dose*design_flow*8.34 -> 2.502 | D12: lbs/day
A13: Electron donor solution needed per day | B13: e_donor_day | C13: =IF(e_donor_type=1,e_donor_day_100pct/CH3NOOH_strength,e_donor_day_100pct) -> 12.51 | D13: lbs/day
A14: Electron donor volume per day | B14: e_donor_day_vol | C14: =e_donor_day/IF(e_donor_type=1,CH3NOOH_dens,IF(e_donor_type=2,ethanol_dens,"")) -> 1.485748219 | D14: gal/day
A15: Electron donor storage | B15: e_donor_store | C15: =e_donor_day_vol*(average_flow/design_flow)*chem_storage -> 10.40023753 | D15: gal
A16: Acetic acid storage | B16: acetic_store | C16: =IF(e_donor_type=1,e_donor_day*chem_storage,0) -> 375.3 | D16: lbs
A17: Ethanol storage | B17: ethanol_store | C17: =IF(e_donor_type=2,e_donor_store,0) -> 0 | D17: gal
A19: Number of electron donor storage tanks | B19: e_donor_tanks | C19: =ROUNDUP(e_donor_store/max_chem_tank_size,0) -> 1 | D19: units
A20: Electron donor storage tank size | B20: e_donor_tank_vol | C20: =ROUNDUP(e_donor_store/e_donor_tanks,0) -> 11 | D20: gal
A21: Electron donor day tank storage volume required (based on design flow) | B21: e_donor_day_tank_vol_needed | C21: =e_donor_day_vol*design_flow/average_flow -> 6.367492365 | D21: gallons
A22: Electron donor number of day tanks | B22: e_donor_day_tanks | C22: =IF(e_donor_day_tank_vol_needed<day_tank_needed,0,ROUNDUP(e_donor_day_tank_vol_needed/max_chem_tank_size,0)) -> 1 | D22: units
A23: Electron donor volume of day tanks | B23: e_donor_day_tank_vol | C23: =IF(e_donor_day_tanks=0,0,ROUNDUP(e_donor_day_tank_vol_needed/e_donor_day_tanks,0)) -> 7 | D23: gallons
A24: Maximum chemical tank mixer horsepower | B24: cmix_hp_max | C24: =MAX(VLOOKUP(10^6,port_mix_cost_cl,1)-0.1,VLOOKUP(10^6,mount_mix_cost_cl,1)-0.1,VLOOKUP(10^6,imp_mix_cost_cl,1)-0.1) -> 30 | D24: hp
A25: Mixers per storage tank | B25: e_donor_cmix_per_tank | C25: =IF(AND(include_cmix=1,e_donor_tanks<>0),ROUNDUP(e_donor_tank_vol/1000*cmix_hp_per/cmix_hp_max,0),0) -> 0 | D25: units
A26: Number of storage tank mixers | B26: e_donor_cmixers | C26: =e_donor_tanks*e_donor_cmix_per_tank -> 0 | D26: units
A27: Mixer size for storage tanks | B27: e_donor_cmix_size | C27: =IF(e_donor_cmixers<>0,MAX(min_cmix_hp,e_donor_tank_vol/1000*cmix_hp_per/e_donor_cmix_per_tank),0) -> 0 | D27: hp
A28: Mixers per day tank | B28: e_donor_dmix_per_tank | C28: =IF(AND(include_cmix=1,e_donor_day_tanks<>0),ROUNDUP(e_donor_day_tank_vol/1000*cmix_hp_per/cmix_hp_max,0),0) -> 0 | D28: units
A29: Number of day tank mixers | B29: e_donor_dmixers | C29: =e_donor_day_tanks*e_donor_dmix_per_tank -> 0 | D29: units
A30: Mixer size for day tanks | B30: e_donor_dmix_size | C30: =IF(e_donor_dmixers<>0,MAX(min_cmix_hp,e_donor_day_tank_vol/1000*cmix_hp_per/e_donor_dmix_per_tank),0) -> 0 | D30: hp
A32: Sample Electron Donor Dose Calculations
A33: All influent concnetrations listed | B33: dose_calc | C33: =IF(OR(ClO4_in="",O2_in="",NO3_in=""), FALSE,TRUE) -> FALSE
A34: Calculated acetic acid dose | B34: acetic_dose_sample | C34: =IF(dose_calc,((2.248*O2_in)+(0.515*NO3_in)+(1.447*ClO4_in)),"NA") -> NA | D34: mg/l | E34: Caa = 2.248 O2 + 0.515 NO3-N + 1.447 ClO4- (Batista peer review comments)
A35: Calculated ethanol dose | B35: ethanol_dose_sample | C35: =IF(dose_calc,(0.903*O2_in+2.229*NO3_in+0.581*ClO4_in),"NA") -> NA | D35: mg/l | E35: Ce = 0.903 O2 + 2.229 NO3-N + 0.581 ClO4- (Harding ESE, 2001)
A37: NUTRIENTS
A38: Additional Nutrients? | B38: nutrient_option | C38: =IF(nutrient_option_I="no additional nutrients required",1,IF(nutrient_option_I="additional nitrogen required",2,IF(nutrient_option_I="additional phosphorous required",3,IF(nutrient_option_I="both nitrogen and phosphorous required",4,"")))) -> 3 | D38: <-- 1 for no additional nutrients required, 2 for additional nitrogen required, 3 for additional phosphorous required, 4 for both nitrogen and phosphorous required
A40: Nitorgen Source
A41: Ammonium Chloride Dose (from Input) | B41: NH4Cl_dose | C41: =IF(OR(nutrient_option=2,nutrient_option=4),NH4Cl_dose_I,0) -> 0 | D41: mg/l
A42: Ammonium Chloride needed per day (design flow) | B42: NH4Cl_day | C42: =IF(OR(nutrient_option=2,nutrient_option=4),NH4Cl_dose*design_flow*8.34,0) -> 0 | D42: lbs/day
A43: Ammonium Chloride volume per day | B43: NH4Cl_vol | C43: =IF(OR(nutrient_option=2,nutrient_option=4),NH4Cl_day/NH4CL_dens,0) -> 0 | D43: gal/day
A44: Ammonium Chloride storage | B44: NH4Cl_store | C44: =IF(OR(nutrient_option=2,nutrient_option=4),NH4Cl_vol*(average_flow/design_flow)*chem_storage,0) -> 0 | D44: gal
A45: Ammonium Chloride storage in pounds | B45: NH4Cl_store_lbs | C45: =IF(OR(nutrient_option=2,nutrient_option=4),NH4Cl_day*(average_flow/design_flow)*chem_storage,0) -> 0 | D45: lbs
A46: Number of Ammonium Chloride storage tanks | B46: NH4Cl_tanks | C46: =IF(OR(nutrient_option=2,nutrient_option=4),ROUNDUP(NH4Cl_store/max_chem_tank_size,0),0) -> 0 | D46: units
A47: Ammonium Chloride storage tank size | B47: NH4Cl_tank_vol | C47: =IF(OR(nutrient_option=2,nutrient_option=4),ROUNDUP(NH4Cl_store/NH4Cl_tanks,0),0) -> 0 | D47: gal
A48: Ammonium Chloride day tank storage volume required (based on design flow) | B48: NH4Cl_day_tank_vol_needed | C48: =NH4Cl_vol -> 0 | D48: gallons
A49: Ammonium Chloride number of day tanks | B49: NH4Cl_day_tanks | C49: =IF(NH4Cl_day_tank_vol_needed<day_tank_needed,0,ROUNDUP(NH4Cl_day_tank_vol_needed/max_chem_tank_size,0)) -> 0 | D49: units
A50: Ammonium Chloride volume of day tanks | B50: NH4Cl_day_tank_vol | C50: =IF(NH4Cl_day_tanks=0,0,ROUNDUP(NH4Cl_day_tank_vol_needed/NH4Cl_day_tanks,0)) -> 0 | D50: gallons
A51: Mixers per storage tank | B51: NH4Cl_cmix_per_tank | C51: =IF(AND(include_cmix=1,NH4Cl_tanks<>0),ROUNDUP(NH4Cl_tank_vol/1000*cmix_hp_per/cmix_hp_max,0),0) -> 0 | D51: units
A52: Number of storage tank mixers | B52: NH4Cl_cmixers | C52: =NH4Cl_tanks*NH4Cl_cmix_per_tank -> 0 | D52: units
A53: Mixer size for storage tanks | B53: NH4Cl_cmix_size | C53: =IF(NH4Cl_cmixers<>0,MAX(min_cmix_hp,NH4Cl_tank_vol/1000*cmix_hp_per/NH4Cl_cmix_per_tank),0) -> 0 | D53: hp
A54: Mixers per day tank | B54: NH4Cl_dmix_per_tank | C54: =IF(AND(include_cmix=1,NH4Cl_day_tanks<>0),ROUNDUP(NH4Cl_day_tank_vol/1000*cmix_hp_per/cmix_hp_max,0),0) -> 0 | D54: units
A55: Number of day tank mixers | B55: NH4Cl_dmixers | C55: =NH4Cl_day_tanks*NH4Cl_dmix_per_tank -> 0 | D55: units
A56: Mixer size for day tanks | B56: NH4Cl_dmix_size | C56: =IF(NH4Cl_dmixers<>0,MAX(min_cmix_hp,NH4Cl_day_tank_vol/1000*cmix_hp_per/NH4Cl_dmix_per_tank),0) -> 0 | D56: hp
A58: Phosphorous Source
A59: Phosphoric Acid density | B59: H3PO4_dens | C59: =IF(H3PO4_pct=0.75,13.17,10.14) -> 13.17 | D59: lbs/gal | E59: Based on specific gravity of 1.216 for 36% and 1.579 for 75% phosphoric acid at 20 degrees centigrade
A60: Phosphoric Acid solution strength | B60: H3PO4_strength | C60: =H3PO4_pct*(30.9738/98.2134) -> 0.2365293331 | D60: as P | E60: Ratio of molar mass of P and H3PO4 (30.9738/98.2134) converts percent as H3PO4 to percent as P
A61: Pounds of phosphorus needed per day (design flow) | B61: lb_P_day | C61: =IF(OR(nutrient_option=3,nutrient_option=4),H3PO4_dose_I*3.7854*0.000002204*(design_flow*1000000)) -> 0.250290648 | D61: lbs/day | E61: 3.7854 converts liters to gallons; 0.000002204 converts milligrams to pounds; 1000000 converts MGD to gallons per day;
A62: Phosphoric Acid needed per day (pounds bulk solution at design flow) | B62: H3PO4_day | C62: =IF(OR(nutrient_option=3,nutrient_option=4),H3PO4_vol*H3PO4_dens,0) -> 1.058180162 | D62: lbs/day
A63: Phosphoric Acid volume per day | B63: H3PO4_vol | C63: =IF(OR(nutrient_option=3,nutrient_option=4),lb_P_day/H3PO4_strength/H3PO4_dens,0) -> 0.08034777237 | D63: gal/day
A64: Phosphoric Acid storage | B64: H3PO4_store | C64: =IF(OR(nutrient_option=3,nutrient_option=4),H3PO4_vol*(average_flow/design_flow)*chem_storage,0) -> 0.5624344066 | D64: gal
A65: Phosphoric Acid storage in pounds | B65: H3PO4_store_lbs | C65: =IF(OR(nutrient_option=3,nutrient_option=4),H3PO4_store*H3PO4_dens,0) -> 7.407261135 | D65: lbs
A66: Number of Phosphoric Acid storage tanks | B66: H3PO4_tanks | C66: =IF(OR(nutrient_option=3,nutrient_option=4),ROUNDUP(H3PO4_store/max_chem_tank_size_noSS,0),0) -> 1 | D66: units
A67: Phosphoric Acid storage tank size | B67: H3PO4_tank_vol | C67: =IF(OR(nutrient_option=3,nutrient_option=4),ROUNDUP(H3PO4_store/H3PO4_tanks,0),0) -> 1 | D67: gal
A68: Phosphoric Acid day tank storage volume required (based on design flow) | B68: H3PO4_day_tank_vol_needed | C68: =H3PO4_vol -> 0.08034777237 | D68: gallons
A69: Phosphoric Acid number of day tanks | B69: H3PO4_day_tanks | C69: =IF(H3PO4_day_tank_vol_needed<day_tank_needed,0,ROUNDUP(H3PO4_day_tank_vol_needed/max_chem_tank_size_noSS,0)) -> 0 | D69: units
A70: Phosphoric Acid volume of day tanks | B70: H3PO4_day_tank_vol | C70: =IF(H3PO4_day_tanks=0,0,ROUNDUP(H3PO4_day_tank_vol_needed/H3PO4_day_tanks,0)) -> 0 | D70: gallons
A71: Mixers per storage tank | B71: H3PO4_cmix_per_tank | C71: =IF(AND(include_cmix=1,H3PO4_tanks<>0),ROUNDUP(H3PO4_tank_vol/1000*cmix_hp_per/cmix_hp_max,0),0) -> 0 | D71: units
A72: Number of storage tank mixers | B72: H3PO4_cmixers | C72: =H3PO4_tanks*H3PO4_cmix_per_tank -> 0 | D72: units
A73: Mixer size for storage tanks | B73: H3PO4_cmix_size | C73: =IF(H3PO4_cmixers<>0,MAX(min_cmix_hp,H3PO4_tank_vol/1000*cmix_hp_per/H3PO4_cmix_per_tank),0) -> 0 | D73: hp
A74: Mixers per day tank | B74: H3PO4_dmix_per_tank | C74: =IF(AND(include_cmix=1,H3PO4_day_tanks<>0),ROUNDUP(H3PO4_day_tank_vol/1000*cmix_hp_per/cmix_hp_max,0),0) -> 0 | D74: units
A75: Number of day tank mixers | B75: H3PO4_dmixers | C75: =H3PO4_day_tanks*H3PO4_dmix_per_tank -> 0 | D75: units
A76: Mixer size for day tanks | B76: H3PO4_dmix_size | C76: =IF(H3PO4_dmixers<>0,MAX(min_cmix_hp,H3PO4_day_tank_vol/1000*cmix_hp_per/H3PO4_dmix_per_tank),0) -> 0 | D76: hp
A78: Acetic Acid Purchasing
A79: Quantity required for large quantity purchase | C79: =VLOOKUP("Acetic Acid - Large Qty",chem_break_table_cl,2,FALSE) ->  | D79: lbs | E79: #N/A indicates that price data do not depend on volume purchased.
A80: Quantity required for mid quantity purchase | C80: =VLOOKUP("Acetic Acid - Mid Qty",chem_break_table_cl,2,FALSE) ->  | D80: lbs | E80: #N/A indicates that price data do not depend on volume purchased.
A81: Quantity required for small quantity purchase | C81: =VLOOKUP("Acetic Acid - Small Qty",chem_break_table_cl,2,FALSE) ->  | D81: lbs | E81: #N/A indicates that price data do not depend on volume purchased.
A82: Purchase Type | B82: acetic_purchase | C82: =IF(AND(ISNA(C79),ISNA(C80),ISNA(C81)),"",IF(acetic_store>=C79," - Large Qty",IF(acetic_store>=C80," - Mid Qty"," - Small Qty"))) ->  | E82: Returns descriptive term based on volume of each purchase for use in determining pricing. Blank indicates that price data do not depend on volume purchased.
A84: Ethanol Purchasing
A85: Quantity required for large quantity purchase | C85: =VLOOKUP("Ethanol - Large Qty",chem_break_table_cl,2,FALSE) ->  | D85: gal | E85: #N/A indicates that price data do not depend on volume purchased.
A86: Quantity required for mid quantity purchase | C86: =VLOOKUP("Ethanol - Mid Qty",chem_break_table_cl,2,FALSE) ->  | D86: gal | E86: #N/A indicates that price data do not depend on volume purchased.
A87: Quantity required for small quantity purchase | C87: =VLOOKUP("Ethanol - Small Qty",chem_break_table_cl,2,FALSE) ->  | D87: gal | E87: #N/A indicates that price data do not depend on volume purchased.
A88: Purchase Type | B88: ethanol_purchase | C88: =IF(AND(ISNA(C85),ISNA(C86),ISNA(C87)),"",IF(ethanol_store>=C85," - Large Qty",IF(ethanol_store>=C86," - Mid Qty"," - Small Qty"))) ->  | E88: Returns descriptive term based on volume of each purchase for use in determining pricing. Blank indicates that price data do not depend on volume purchased.
A90: Ammonium Chloride Purchasing
A91: Quantity required for large quantity purchase | C91: =VLOOKUP("Ammonium Chloride - Large Qty",chem_break_table_cl,2,FALSE) ->  | D91: lbs | E91: #N/A indicates that price data do not depend on volume purchased.
A92: Quantity required for mid quantity purchase | C92: =VLOOKUP("Ammonium Chloride - Mid Qty",chem_break_table_cl,2,FALSE) ->  | D92: lbs | E92: #N/A indicates that price data do not depend on volume purchased.
A93: Quantity required for small quantity purchase | C93: =VLOOKUP("Ammonium Chloride - Small Qty",chem_break_table_cl,2,FALSE) ->  | D93: lbs | E93: #N/A indicates that price data do not depend on volume purchased.
A94: Purchase Type | B94: NH4Cl_purchase | C94: =IF(AND(ISNA(C91),ISNA(C92),ISNA(C93)),"",IF(NH4Cl_store_lbs>=C91," - Large Qty",IF(NH4Cl_store_lbs>=C92," - Mid Qty"," - Small Qty"))) ->  | E94: Returns descriptive term based on volume of each purchase for use in determining pricing. Blank indicates that price data do not depend on volume purchased.
A96: Phosphoric Acid Purchasing
A97: Quantity required for large quantity purchase | C97: =VLOOKUP("Phosphoric Acid "&TEXT(H3PO4_pct,"0%")&" - Large Qty",chem_break_table_cl,2,FALSE) -> 44000 | D97: lbs | E97: #N/A indicates that price data do not depend on volume purchased.
A98: Quantity required for mid quantity purchase | C98: =VLOOKUP("Phosphoric Acid "&TEXT(H3PO4_pct,"0%")&" - Mid Qty",chem_break_table_cl,2,FALSE) -> 3621.75 | D98: lbs | E98: #N/A indicates that price data do not depend on volume purchased.
A99: Quantity required for small quantity purchase | C99: =VLOOKUP("Phosphoric Acid "&TEXT(H3PO4_pct,"0%")&" - Small Qty",chem_break_table_cl,2,FALSE) -> 0 | D99: lbs | E99: #N/A indicates that price data do not depend on volume purchased.
A100: Purchase Type | B100: H3PO4_purchase | C100: =IF(AND(ISNA(C97),ISNA(C98),ISNA(C99)),"",IF(H3PO4_store_lbs>=C97," - Large Qty",IF(H3PO4_store_lbs>=C98," - Mid Qty"," - Small Qty"))) -> - Small Qty | E100: Returns descriptive term based on volume of each purchase for use in determining pricing. Blank indicates that price data do not depend on volume purchased.
A102: Secondary Containment for Electron Donor Storage Tanks
A103: Minimum volume required | B103: e_donor_st_cont_volume | C103: =MAX(e_donor_tanks*e_donor_tank_vol*sec_cont_pct_of_total,e_donor_tank_vol*sec_cont_pct_of_largest)/7.48 -> 1.617647059 | D103: cubic feet | E103: 7.48 converts gallons to cubic feet
A104: Footprint available | B104: e_donor_st_cont_fp | C104: =IF(e_donor_tanks=0,0,e_donor_fp-e_donor_tanks*PI()*(e_donor_st_diam/2)^2) -> 8.214601837 | D104: square feet | E104: Total footprint minus displacement by tanks themselves
A105: Curb height required | B105: e_donor_st_curb_height | C105: =IF(e_donor_tanks=0,0,e_donor_st_cont_volume/e_donor_st_cont_fp+sec_cont_freeboard/12) -> 0.6969233678 | D105: feet
A106: Curb thickness | B106: e_donor_st_curb_thick | C106: =IF(e_donor_tanks=0,0,MIN(sec_cont_max_thick,e_donor_st_curb_height)) -> 0.6969233678 | D106: feet
A107: Curb length (long side) | B107: e_donor_st_curb_len_long | C107: =IF(e_donor_tanks=0,0,e_donor_tanks*e_donor_st_diam+2*space_e_donor_st+(e_donor_tanks-1)*space_e_donor_st+2*e_donor_st_curb_thick) -> 4.393846736 | D107: feet
A108: Curb length (short side) | B108: e_donor_st_curb_len_short | C108: =IF(e_donor_tanks=0,0,e_donor_st_diam+2*space_e_donor_st) -> 3 | D108: feet
A109: Curb concrete volume | B109: e_donor_st_curb_concrete | C109: =IF(e_donor_tanks=0,0,ROUNDUP((e_donor_st_curb_len_long*2+e_donor_st_curb_len_short*2)*e_donor_st_curb_height*e_donor_st_curb_thick/27,0)) -> 1 | D109: cubic yards | E109: 27 converts cubic feet to cubic yards
A110: Chemical resistant coating required | B110: e_donor_st_coating_gal | C110: =IF(e_donor_tanks=0,0,ROUNDUP((e_donor_fp+2*(e_donor_st_curb_len_long-2*e_donor_st_curb_thick)*e_donor_st_curb_height+2*e_donor_st_curb_len_short*e_donor_st_curb_height)/sec_cont_coating_cvg,0)) -> 1 | D110: gallons | E110: Covers total footprint plus inside surface and top of curbs
A112: Secondary Containment for Electron Donor Day Tanks
A113: Minimum volume required | B113: e_donor_dt_cont_volume | C113: =MAX(e_donor_day_tanks*e_donor_day_tank_vol*sec_cont_pct_of_total,e_donor_day_tank_vol*sec_cont_pct_of_largest)/7.48 -> 1.029411765 | D113: cubic feet | E113: 7.48 converts gallons to cubic feet
A114: Footprint available | B114: e_donor_dt_cont_fp | C114: =IF(e_donor_day_tanks=0,0,e_donor_day_fp-e_donor_day_tanks*PI()*(e_donor_dt_diam/2)^2) -> 8.214601837 | D114: square feet | E114: Total footprint minus displacement by tanks themselves
A115: Curb height required | B115: e_donor_dt_curb_height | C115: =IF(e_donor_day_tanks=0,0,e_donor_dt_cont_volume/e_donor_dt_cont_fp+sec_cont_freeboard/12) -> 0.6253148704 | D115: feet
A116: Curb thickness | B116: e_donor_dt_curb_thick | C116: =IF(e_donor_day_tanks=0,0,MIN(sec_cont_max_thick,e_donor_dt_curb_height)) -> 0.6253148704 | D116: feet
A117: Curb length (long side) | B117: e_donor_dt_curb_len_long | C117: =IF(e_donor_day_tanks=0,0,e_donor_day_tanks*e_donor_dt_diam+2*space_e_donor_dt+(e_donor_day_tanks-1)*space_e_donor_dt+2*e_donor_dt_curb_thick) -> 4.250629741 | D117: feet
A118: Curb length (short side) | B118: e_donor_dt_curb_len_short | C118: =IF(e_donor_day_tanks=0,0,e_donor_dt_diam+2*space_e_donor_dt) -> 3 | D118: feet
A119: Curb concrete volume | B119: e_donor_dt_curb_concrete | C119: =IF(e_donor_day_tanks=0,0,ROUNDUP((e_donor_dt_curb_len_long*2+e_donor_dt_curb_len_short*2)*e_donor_dt_curb_height*e_donor_dt_curb_thick/27,0)) -> 1 | D119: cubic yards | E119: 27 converts cubic feet to cubic yards
A120: Chemical resistant coating required | B120: e_donor_dt_coating_gal | C120: =IF(e_donor_day_tanks=0,0,ROUNDUP((e_donor_day_fp+2*(e_donor_dt_curb_len_long-2*e_donor_dt_curb_thick)*e_donor_dt_curb_height+2*e_donor_dt_curb_len_short*e_donor_dt_curb_height)/sec_cont_coating_cvg,0)) -> 1 | D120: gallons | E120: Covers total footprint plus inside surface and top of curbs
A122: Secondary Containment for Ammonium Chloride Storage Tanks
A123: Minimum volume required | B123: NH4Cl_st_cont_volume | C123: =MAX(NH4Cl_tanks*NH4Cl_tank_vol*sec_cont_pct_of_total,NH4Cl_tank_vol*sec_cont_pct_of_largest)/7.48 -> 0 | D123: cubic feet | E123: 7.48 converts gallons to cubic feet
A124: Footprint available | B124: NH4Cl_st_cont_fp | C124: =IF(NH4Cl_tanks=0,0,NH4Cl_donor_fp-NH4Cl_tanks*PI()*(NH4Cl_st_diam/2)^2) -> 0 | D124: square feet | E124: Total footprint minus displacement by tanks themselves
A125: Curb height required | B125: NH4Cl_st_curb_height | C125: =IF(NH4Cl_tanks=0,0,NH4Cl_st_cont_volume/NH4Cl_st_cont_fp+sec_cont_freeboard/12) -> 0 | D125: feet
A126: Curb thickness | B126: NH4Cl_st_curb_thick | C126: =IF(NH4Cl_tanks=0,0,MIN(sec_cont_max_thick,NH4Cl_st_curb_height)) -> 0 | D126: feet
A127: Curb length (long side) | B127: NH4Cl_st_curb_len_long | C127: =IF(NH4Cl_tanks=0,0,NH4Cl_tanks*NH4Cl_st_diam+2*space_NH4Cl_st+(NH4Cl_tanks-1)*space_NH4Cl_st+2*NH4Cl_st_curb_thick) -> 0 | D127: feet
A128: Curb length (short side) | B128: NH4Cl_st_curb_len_short | C128: =IF(NH4Cl_tanks=0,0,NH4Cl_st_diam+2*space_NH4Cl_st) -> 0 | D128: feet
A129: Curb concrete volume | B129: NH4Cl_st_curb_concrete | C129: =IF(NH4Cl_tanks=0,0,ROUNDUP((NH4Cl_st_curb_len_long*2+NH4Cl_st_curb_len_short*2)*NH4Cl_st_curb_height*NH4Cl_st_curb_thick/27,0)) -> 0 | D129: cubic yards | E129: 27 converts cubic feet to cubic yards
A130: Chemical resistant coating required | B130: NH4Cl_st_coating_gal | C130: =IF(NH4Cl_tanks=0,0,ROUNDUP((NH4Cl_donor_fp+2*(NH4Cl_st_curb_len_long-2*NH4Cl_st_curb_thick)*NH4Cl_st_curb_height+2*NH4Cl_st_curb_len_short*NH4Cl_st_curb_height)/sec_cont_coating_cvg,0)) -> 0 | D130: gallons | E130: Covers total footprint plus inside surface and top of curbs
A132: Secondary Containment for Ammonium Chloride Day Tanks
A133: Minimum volume required | B133: NH4Cl_dt_cont_volume | C133: =MAX(NH4Cl_day_tanks*NH4Cl_day_tank_vol*sec_cont_pct_of_total,NH4Cl_day_tank_vol*sec_cont_pct_of_largest)/7.48 -> 0 | D133: cubic feet | E133: 7.48 converts gallons to cubic feet
A134: Footprint available | B134: NH4Cl_dt_cont_fp | C134: =IF(NH4Cl_day_tanks=0,0,NH4Cl_donor_day_fp-NH4Cl_day_tanks*PI()*(NH4Cl_dt_diam/2)^2) -> 0 | D134: square feet | E134: Total footprint minus displacement by tanks themselves
A135: Curb height required | B135: NH4Cl_dt_curb_height | C135: =IF(NH4Cl_day_tanks=0,0,NH4Cl_dt_cont_volume/NH4Cl_dt_cont_fp+sec_cont_freeboard/12) -> 0 | D135: feet
A136: Curb thickness | B136: NH4Cl_dt_curb_thick | C136: =IF(NH4Cl_day_tanks=0,0,MIN(sec_cont_max_thick,NH4Cl_dt_curb_height)) -> 0 | D136: feet
A137: Curb length (long side) | B137: NH4Cl_dt_curb_len_long | C137: =IF(NH4Cl_day_tanks=0,0,NH4Cl_day_tanks*NH4Cl_dt_diam+2*space_NH4Cl_dt+(NH4Cl_day_tanks-1)*space_NH4Cl_dt+2*NH4Cl_dt_curb_thick) -> 0 | D137: feet
A138: Curb length (short side) | B138: NH4Cl_dt_curb_len_short | C138: =IF(NH4Cl_day_tanks=0,0,NH4Cl_dt_diam+2*space_NH4Cl_dt) -> 0 | D138: feet
A139: Curb concrete volume | B139: NH4Cl_dt_curb_concrete | C139: =IF(NH4Cl_day_tanks=0,0,ROUNDUP((NH4Cl_dt_curb_len_long*2+NH4Cl_dt_curb_len_short*2)*NH4Cl_dt_curb_height*NH4Cl_dt_curb_thick/27,0)) -> 0 | D139: cubic yards | E139: 27 converts cubic feet to cubic yards
A140: Chemical resistant coating required | B140: NH4Cl_dt_coating_gal | C140: =IF(NH4Cl_day_tanks=0,0,ROUNDUP((NH4Cl_donor_day_fp+2*(NH4Cl_dt_curb_len_long-2*NH4Cl_dt_curb_thick)*NH4Cl_dt_curb_height+2*NH4Cl_dt_curb_len_short*NH4Cl_dt_curb_height)/sec_cont_coating_cvg,0)) -> 0 | D140: gallons | E140: Covers total footprint plus inside surface and top of curbs
A142: Secondary Containment for Phosphoric Acid Storage Tanks
A143: Minimum volume required | B143: H3PO4_st_cont_volume | C143: =MAX(H3PO4_tanks*H3PO4_tank_vol*sec_cont_pct_of_total,H3PO4_tank_vol*sec_cont_pct_of_largest)/7.48 -> 0.1470588235 | D143: cubic feet | E143: 7.48 converts gallons to cubic feet
A144: Footprint available | B144: H3PO4_st_cont_fp | C144: =IF(H3PO4_tanks=0,0,H3PO4_donor_fp-H3PO4_tanks*PI()*(H3PO4_st_diam/2)^2) -> 2.803650459 | D144: square feet | E144: Total footprint minus displacement by tanks themselves
A145: Curb height required | B145: H3PO4_st_curb_height | C145: =IF(H3PO4_tanks=0,0,H3PO4_st_cont_volume/H3PO4_st_cont_fp+sec_cont_freeboard/12) -> 0.5524526241 | D145: feet
A146: Curb thickness | B146: H3PO4_st_curb_thick | C146: =IF(H3PO4_tanks=0,0,MIN(sec_cont_max_thick,H3PO4_st_curb_height)) -> 0.5524526241 | D146: feet
A147: Curb length (long side) | B147: H3PO4_st_curb_len_long | C147: =IF(H3PO4_tanks=0,0,H3PO4_tanks*H3PO4_st_diam+2*space_H3PO4_st+(H3PO4_tanks-1)*space_H3PO4_st+2*H3PO4_st_curb_thick) -> 2.604905248 | D147: feet
A148: Curb length (short side) | B148: H3PO4_st_curb_len_short | C148: =IF(H3PO4_tanks=0,0,H3PO4_st_diam+2*space_H3PO4_st) -> 1.5 | D148: feet
A149: Curb concrete volume | B149: H3PO4_st_curb_concrete | C149: =IF(H3PO4_tanks=0,0,ROUNDUP((H3PO4_st_curb_len_long*2+H3PO4_st_curb_len_short*2)*H3PO4_st_curb_height*H3PO4_st_curb_thick/27,0)) -> 1 | D149: cubic yards | E149: 27 converts cubic feet to cubic yards
A150: Chemical resistant coating required | B150: H3PO4_st_coating_gal | C150: =IF(H3PO4_tanks=0,0,ROUNDUP((H3PO4_donor_fp+2*(H3PO4_st_curb_len_long-2*H3PO4_st_curb_thick)*H3PO4_st_curb_height+2*H3PO4_st_curb_len_short*H3PO4_st_curb_height)/sec_cont_coating_cvg,0)) -> 1 | D150: gallons | E150: Covers total footprint plus inside surface and top of curbs
A152: Secondary Containment for Phosphoric Acid Day Tanks
A153: Minimum volume required | B153: H3PO4_dt_cont_volume | C153: =MAX(H3PO4_day_tanks*H3PO4_day_tank_vol*sec_cont_pct_of_total,H3PO4_day_tank_vol*sec_cont_pct_of_largest)/7.48 -> 0 | D153: cubic feet | E153: 7.48 converts gallons to cubic feet
A154: Footprint available | B154: H3PO4_dt_cont_fp | C154: =IF(H3PO4_day_tanks=0,0,H3PO4_donor_day_fp-H3PO4_day_tanks*PI()*(H3PO4_dt_diam/2)^2) -> 0 | D154: square feet | E154: Total footprint minus displacement by tanks themselves
A155: Curb height required | B155: H3PO4_dt_curb_height | C155: =IF(H3PO4_day_tanks=0,0,H3PO4_dt_cont_volume/H3PO4_dt_cont_fp+sec_cont_freeboard/12) -> 0 | D155: feet
A156: Curb thickness | B156: H3PO4_dt_curb_thick | C156: =IF(H3PO4_day_tanks=0,0,MIN(sec_cont_max_thick,H3PO4_dt_curb_height)) -> 0 | D156: feet
A157: Curb length (long side) | B157: H3PO4_dt_curb_len_long | C157: =IF(H3PO4_day_tanks=0,0,H3PO4_day_tanks*H3PO4_dt_diam+2*space_H3PO4_dt+(H3PO4_day_tanks-1)*space_H3PO4_dt+2*H3PO4_dt_curb_thick) -> 0 | D157: feet
A158: Curb length (short side) | B158: H3PO4_dt_curb_len_short | C158: =IF(H3PO4_day_tanks=0,0,H3PO4_dt_diam+2*space_H3PO4_dt) -> 0 | D158: feet
A159: Curb concrete volume | B159: H3PO4_dt_curb_concrete | C159: =IF(H3PO4_day_tanks=0,0,ROUNDUP((H3PO4_dt_curb_len_long*2+H3PO4_dt_curb_len_short*2)*H3PO4_dt_curb_height*H3PO4_dt_curb_thick/27,0)) -> 0 | D159: cubic yards | E159: 27 converts cubic feet to cubic yards
A160: Chemical resistant coating required | B160: H3PO4_dt_coating_gal | C160: =IF(H3PO4_day_tanks=0,0,ROUNDUP((H3PO4_donor_day_fp+2*(H3PO4_dt_curb_len_long-2*H3PO4_dt_curb_thick)*H3PO4_dt_curb_height+2*H3PO4_dt_curb_len_short*H3PO4_dt_curb_height)/sec_cont_coating_cvg,0)) -> 0 | D160: gallons | E160: Covers total footprint plus inside surface and top of curbs

Sheet Biomass Control
A1: Biomass Control Calculations
A3: Calculation | B3: Range Name | C3: Value | D3: Units | E3: Guidance
A4: Calculated biomass generation | B4: biomass_sample | C4: =IF(dose_calc,((1.016*O2_in)+(0.155*NO3_in)+(0.659*ClO4_in)),"NA") -> NA | D4: mg/l | E4: Cbio = 1.016 O2 + 0.155 NO3-N + 0.659 ClO4- (Batista)
A6: BIOREACTOR BACKWASH
A7: Interval between backwashes (from inputs) | B7: back_interval | C7: =IF(design_type=3,0,back_interval_I) -> 24 | D7: hours | E7: from inputs
A8: Water flush rate (gpm) | B8: water_flush | C8: =ROUND(h2oflush_backwash_rate*IF(design_type=2,basin_width*basin_length,0)+IF(design_type=1,comm_SA,0),0) -> 5 | D8: gpm | E8: for backwahing fixed bed bioreactors
A9: Total water flush | B9: waterflush_vol | C9: =water_flush*backwash_time -> 50 | D9: gallons
A11: FILTER BACKWASH
A12: Interval between filter backwashes (from inputs) | B12: filter_back_interval | C12: =IF(include_post=0,0,filter_back_interval_I) -> 36 | D12: hours | E12: from inputs
A13: Water flush rate (gpm) | B13: filter_water_flush | C13: =IF(include_post=0,0,ROUND(filter_h2oflush_backwash_rate*IF(filter_type=1,filt_basin_area,comm_SA_filt),0)) -> 47 | D13: gpm | E13: for backwahing filters
A14: Total water flush | B14: filter_waterflush_vol | C14: =IF(include_post=0,0,filter_water_flush*filter_backwash_time) -> 329 | D14: gallons
A16: No backwash pumps | B16: no_backwash | C16: =IF(no_backwash_I="existing pumps",1,IF(no_backwash_I="new pumps","",IF(ss_cat2=1,1,""))) -> 1 | D16: <-- 1 = backwash using existing supply or treated water pumps, blank = include backwash pumps in costs
A17: No backwash tanks | B17: no_back_tank | C17: =IF(no_back_tank_I="existing storage",1,IF(no_back_tank_I="new storage","",IF(ss_cat2=2,"",1))) -> 1 | D17: <-- 1 = backwash from existing storage or supply, blank = include backwash tanks in costs
A18: Maximum backwash tank size | B18: max_back_tank_size | C18: =MAX(VLOOKUP(10^6,st_bwt_cost_cl,1)-1,VLOOKUP(10^6,fg_bwt_cost_cl,1)-1,VLOOKUP(10^6,hdpe_bwt_cost_cl,1)-1) -> 289000 | D18: gallons | E18: The largest size for which costs are available.
A19: Backwash tanks | B19: back_tanks | C19: =IF(no_back_tank=1,0,ROUNDUP((water_flush+filter_water_flush)/max_back_tank_size,0)) -> 0 | D19: units
A20: Backwash tank volume | B20: back_tank_vol | C20: =IF(back_tanks=0,0,(waterflush_vol+filter_waterflush_vol)/back_tanks) -> 0 | D20: gallons
A22: AIR SCOUR
A23: Total Backwash Air Scour Volume | B23: tot_air_scour | C23: =IF(air_scour_I="yes",(IF(design_type=1,comm_SA,basin_length*basin_width)+IF(filter_type=1,filt_basin_area,IF(filter_type=2,comm_SA_filt,0)))*air_scour_vol,"NA") -> 32.2013247 | D23: CFM
A24: Total Air Used for Biomass Seperation | B24: tot_air_biomass | C24: =IF(design_type=3,biomass_air_scour*design_flow_rate/60,0) -> 0 | D24: CFM | E24: for fluidized bed designs
A47: h

Sheet Post-Treatment
A1: Post-Treatment Calculations
A3: Calculation | B3: Range Name | C3: Value | D3: Units | E3: Guidance
A4: Re-oxygenation approach | B4: include_post_h2o2 | C4: =IF(include_post_h2o2_I="hydrogen peroxide",1,0) -> 0 | D4: <-- 1 for use H2O2, 0 to use Aeration
A5: Include polishing filter | B5: include_post | C5: =IF(include_post_I="no",0,1) -> 1 | D5: <-- 1 for Yes, 0 for No
A6: Polishing filter design type | B6: filter_type | C6: =IF(include_post=0,0,IF(filter_type_I="gravity basin",1,2)) -> 2 | D6: <-- 1 for gravity basin, 2 for pressure vessel, 0 for no polishing filter
A7: Include coagulant addition before fitration | B7: include_coag_filt | C7: =IF(include_post=0,0,IF(include_coag_filt_I="yes",1,0)) -> 1 | D7: <-- 1 for Yes, 0 for No
A9: Aeration
A10: Total aeration tank volume required | B10: aeration_tank_vol_required | C10: =IF(include_post_h2o2=1,0,design_flow_rate*hrt_aeration/7.48) -> 22.28163993 | D10: gallons
A11: Maximum aeration tank size | B11: max_aeration_tank_size | C11: =IF(include_post_h2o2=1,0,MAX(VLOOKUP(10^6,st_bwt_cost_cl,1)-1,VLOOKUP(10^6,fg_bwt_cost_cl,1)-1,VLOOKUP(10^6,hdpe_bwt_cost_cl,1)-1)) -> 289000 | D11: gallons | E11: The largest size for which costs are available.
A12: Aeration tanks | B12: aeration_tanks | C12: =IF(include_post_h2o2=1,0,ROUNDUP(aeration_tank_vol_required/max_aeration_tank_size,0)) -> 1 | D12: units
A13: Aeration tank volume | B13: aeration_tank_vol | C13: =IF(include_post_h2o2=1,0,aeration_tank_vol_required/aeration_tanks) -> 22.28163993 | D13: gallons
A14: Aeration tank water height | B14: aeration_water_height | C14: =aeration_tank_vol/7.48/(4*PI()*(aer_tank_diam/2)^2) -> 0.421418079 | D14: ft
A15: Design Air Flow | B15: air_flow_tot | C15: =IF(include_post_h2o2=1,0,design_flow_rate*rate_aeration/100) -> 1.354166667 | D15: scfm
A16: Maximum diffuser size | B16: max_diffuser_size | C16: =IF(include_post_h2o2=1,0,MAX(VLOOKUP(10^6,diffuser_cost_cl,1)-1)) -> 43.1 | D16: scfm | E16: The largest size for which costs are available.
A17: Total diffusers | B17: total_diffusers | C17: =IF(include_post_h2o2=1,0,ROUNDUP(air_flow_tot/max_diffuser_size,0)) -> 1 | D17: units
A18: Diffuser size | B18: diffuser_size | C18: =IF(include_post_h2o2=1,0,air_flow_tot/total_diffusers) -> 1.354166667 | D18: scfm
A20: Hydrogen Peroxide Addition
A21: H2O2 needed per day (design flow) | B21: H2O2_day | C21: =IF(include_post_h2o2=0,0,H2O2_dose*design_flow*8.34) -> 0 | D21: lbs/day | E21: for 100% H2O2
A22: Solution needed per day (design flow) | B22: solution_day | C22: =IF(include_post_h2o2=0,0,H2O2_day/H2O2_grade*(8.34*H2O2_sg)) -> 0 | D22: gal/day | E22: based on H2O2 at specified grade
A23: H2O2 storage in gallons | B23: H2O2_store_gal | C23: =IF(include_post_h2o2=0,0,solution_day*(average_flow/design_flow)*H2O2_days) -> 0 | D23: gal
A24: H2O2 storage in lbs | B24: H2O2_store_lbs | C24: =IF(include_post_h2o2=0,0,H2O2_day*(average_flow/design_flow)*H2O2_days) -> 0 | D24: lbs
A25: Number of chemical storage tanks for H2O2 | B25: H2O2_tanks | C25: =IF(include_post_h2o2=0,0,ROUNDUP(H2O2_store_gal/max_chem_tank_size_H2O2,0)) -> 0 | D25: units
A26: H2O2 storage tank size | B26: H2O2_tank_vol | C26: =IF(include_post_h2o2=0,0,ROUNDUP(H2O2_store_gal/H2O2_tanks,0)) -> 0 | D26: gal
A27: Number of static mixers for H2O2 addition | B27: H2O2_mixers | C27: =IF(include_post_h2o2=0,0,n_mixers) -> 0
A28: Day tank storage volume required (based on design flow) | B28: H2O2_day_tank_vol_needed | C28: =solution_day -> 0 | D28: gallons
A29: Number of H2O2 day tanks | B29: H2O2_day_tanks | C29: =IF(H2O2_day_tank_vol_needed<day_tank_needed,0,ROUNDUP(H2O2_day_tank_vol_needed/max_chem_tank_size_H2O2,0)) -> 0 | D29: units
A30: Volume of H2O2 day tanks | B30: H2O2_day_tank_vol | C30: =IF(H2O2_day_tanks=0,0,ROUNDUP(H2O2_day_tank_vol_needed/H2O2_day_tanks,0)) -> 0 | D30: gallons
A31: Mixers per H2O2 storage tank | B31: H2O2_cmix_per_tank | C31: =IF(AND(include_cmix=1,H2O2_tanks<>0),ROUNDUP(H2O2_tank_vol/1000*cmix_hp_per/cmix_hp_max,0),0) -> 0 | D31: units
A32: Number of H2O2 storage tank mixers | B32: H2O2_cmixers | C32: =H2O2_tanks*H2O2_cmix_per_tank -> 0 | D32: units
A33: Mixer size for H2O2 storage tanks | B33: H2O2_cmix_size | C33: =IF(H2O2_cmixers<>0,MAX(min_cmix_hp,H2O2_tank_vol/1000*cmix_hp_per/H2O2_cmix_per_tank),0) -> 0 | D33: hp
A34: Mixers per H2O2 day tank | B34: H2O2_dmix_per_tank | C34: =IF(AND(include_cmix=1,H2O2_day_tanks<>0),ROUNDUP(H2O2_day_tank_vol/1000*cmix_hp_per/cmix_hp_max,0),0) -> 0 | D34: units
A35: Number of H2O2 day tank mixers | B35: H2O2_dmixers | C35: =H2O2_day_tanks*H2O2_dmix_per_tank -> 0 | D35: units
A36: Mixer size for H2O2 day tanks | B36: H2O2_dmix_size | C36: =IF(H2O2_dmixers<>0,MAX(min_cmix_hp,H2O2_day_tank_vol/1000*cmix_hp_per/H2O2_dmix_per_tank),0) -> 0 | D36: hp
A37: Maximum static mixer size available | B37: mixer_size_max | C37: =MAX(VLOOKUP(10^6,in_mix_cost_cl,1)-0.1,VLOOKUP(10^6,pl_in_mix_cost_cl,1)-0.1) -> 42 | D37: in | E37: The largest size for which costs are available
A38: Static mixer size for H2O2 addition | B38: mixer_size | C38: =IF(include_post_h2o2=0,0,MIN(mixer_size_max,H202_pipe_diam)) -> 0 | D38: in
A39: Solution feed rate at design flow | B39: solution_rate | C39: =IF(include_post_h2o2=0,0,solution_day/24) -> 0 | D39: gph | E39: for injection into diluted stream
A40: Flow rate for diluted H2O2 at design flow | B40: diluted_rate | C40: =IF(include_post_h2o2=0,0,solution_day*H2O2_grade/H2O2_dilute_conc/24/60) -> 0 | D40: gpm | E40: for H2O2 diluted to specified concentration before injection
A42: Hydrogen Peroxide Purchasing
A43: Quantity required for large quantity purchase | C43: =VLOOKUP("Hydrogen Peroxide - Large Qty",chem_break_table_cl,2,FALSE) -> 50000 | D43: lbs | E43: #N/A indicates that price data do not depend on volume purchased.
A44: Quantity required for mid quantity purchase | C44: =VLOOKUP("Hydrogen Peroxide - Mid Qty",chem_break_table_cl,2,FALSE) -> 50000 | D44: lbs | E44: #N/A indicates that price data do not depend on volume purchased.
A45: Quantity required for small quantity purchase | C45: =VLOOKUP("Hydrogen Peroxide - Small Qty",chem_break_table_cl,2,FALSE) -> 0 | D45: lbs | E45: #N/A indicates that price data do not depend on volume purchased.
A46: Purchase Type | B46: H2O2_purchase | C46: =IF(AND(ISNA(C43),ISNA(C44),ISNA(C45)),"",IF(H2O2_store_lbs>=C43," - Large Qty",IF(H2O2_store_lbs>=C44," - Mid Qty"," - Small Qty"))) -> - Small Qty | E46: Returns descriptive term based on volume of each purchase for use in determining pricing. Blank indicates that price data do not depend on volume purchased.
A48: Secondary Containment for Hydrogen Peroxide Storage Tanks
A49: Minimum volume required | B49: H2O2_st_cont_volume | C49: =MAX(H2O2_tanks*H2O2_tank_vol*sec_cont_pct_of_total,H2O2_tank_vol*sec_cont_pct_of_largest)/7.48 -> 0 | D49: cubic feet | E49: 7.48 converts gallons to cubic feet
A50: Footprint available | B50: H2O2_st_cont_fp | C50: =IF(H2O2_tanks=0,0,H2O2_donor_fp-H2O2_tanks*PI()*(H2O2_st_diam/2)^2) -> 0 | D50: square feet | E50: Total footprint minus displacement by tanks themselves
A51: Curb height required | B51: H2O2_st_curb_height | C51: =IF(H2O2_tanks=0,0,H2O2_st_cont_volume/H2O2_st_cont_fp+sec_cont_freeboard/12) -> 0 | D51: feet
A52: Curb thickness | B52: H2O2_st_curb_thick | C52: =IF(H2O2_tanks=0,0,MIN(sec_cont_max_thick,H2O2_st_curb_height)) -> 0 | D52: feet
A53: Curb length (long side) | B53: H2O2_st_curb_len_long | C53: =IF(H2O2_tanks=0,0,H2O2_tanks*H2O2_st_diam+2*space_H2O2_st+(H2O2_tanks-1)*space_H2O2_st+2*H2O2_st_curb_thick) -> 0 | D53: feet
A54: Curb length (short side) | B54: H2O2_st_curb_len_short | C54: =IF(H2O2_tanks=0,0,H2O2_st_diam+2*space_H2O2_st) -> 0 | D54: feet
A55: Curb concrete volume | B55: H2O2_st_curb_concrete | C55: =IF(H2O2_tanks=0,0,ROUNDUP((H2O2_st_curb_len_long*2+H2O2_st_curb_len_short*2)*H2O2_st_curb_height*H2O2_st_curb_thick/27,0)) -> 0 | D55: cubic yards | E55: 27 converts cubic feet to cubic yards
A56: Chemical resistant coating required | B56: H2O2_st_coating_gal | C56: =IF(H2O2_tanks=0,0,ROUNDUP((H2O2_donor_fp+2*(H2O2_st_curb_len_long-2*H2O2_st_curb_thick)*H2O2_st_curb_height+2*H2O2_st_curb_len_short*H2O2_st_curb_height)/sec_cont_coating_cvg,0)) -> 0 | D56: gallons | E56: Covers total footprint plus inside surface and top of curbs
A58: Secondary Containment for Hydrogen Peroxide Day Tanks
A59: Minimum volume required | B59: H2O2_dt_cont_volume | C59: =MAX(H2O2_day_tanks*H2O2_day_tank_vol*sec_cont_pct_of_total,H2O2_day_tank_vol*sec_cont_pct_of_largest)/7.48 -> 0 | D59: cubic feet | E59: 7.48 converts gallons to cubic feet
A60: Footprint available | B60: H2O2_dt_cont_fp | C60: =IF(H2O2_day_tanks=0,0,H2O2_donor_day_fp-H2O2_day_tanks*PI()*(H2O2_dt_diam/2)^2) -> 0 | D60: square feet | E60: Total footprint minus displacement by tanks themselves
A61: Curb height required | B61: H2O2_dt_curb_height | C61: =IF(H2O2_day_tanks=0,0,H2O2_dt_cont_volume/H2O2_dt_cont_fp+sec_cont_freeboard/12) -> 0 | D61: feet
A62: Curb thickness | B62: H2O2_dt_curb_thick | C62: =IF(H2O2_day_tanks=0,0,MIN(sec_cont_max_thick,H2O2_dt_curb_height)) -> 0 | D62: feet
A63: Curb length (long side) | B63: H2O2_dt_curb_len_long | C63: =IF(H2O2_day_tanks=0,0,H2O2_day_tanks*H2O2_dt_diam+2*space_H2O2_dt+(H2O2_day_tanks-1)*space_H2O2_dt+2*H2O2_dt_curb_thick) -> 0 | D63: feet
A64: Curb length (short side) | B64: H2O2_dt_curb_len_short | C64: =IF(H2O2_day_tanks=0,0,H2O2_dt_diam+2*space_H2O2_dt) -> 0 | D64: feet
A65: Curb concrete volume | B65: H2O2_dt_curb_concrete | C65: =IF(H2O2_day_tanks=0,0,ROUNDUP((H2O2_dt_curb_len_long*2+H2O2_dt_curb_len_short*2)*H2O2_dt_curb_height*H2O2_dt_curb_thick/27,0)) -> 0 | D65: cubic yards | E65: 27 converts cubic feet to cubic yards
A66: Chemical resistant coating required | B66: H2O2_dt_coating_gal | C66: =IF(H2O2_day_tanks=0,0,ROUNDUP((H2O2_donor_day_fp+2*(H2O2_dt_curb_len_long-2*H2O2_dt_curb_thick)*H2O2_dt_curb_height+2*H2O2_dt_curb_len_short*H2O2_dt_curb_height)/sec_cont_coating_cvg,0)) -> 0 | D66: gallons | E66: Covers total footprint plus inside surface and top of curbs
A68: FILTER PRESSURE VESSELS
A69: Vessel geometry | B69: tank_geom_filt | C69: =IF(filter_type=2,IF(filt_tank_geom_I="horizontal",2,1),"-") -> 1 | D69: <-- 1 for upright cylindrical, 2 for horizontally-laid cylinder
A71: EBCT per vessel | B71: EBCT_tank_filt | C71: =IF(filter_type=2,ebct_filt,0) -> 10 | D71: minute
A72: Vessel surface area | B72: max_sa_filt | C72: =IF(filter_type=2,IF(tank_geom_filt=1,PI()*(filt_comm_diam-2*Vessel_thickness)*(filt_comm_diam-2*Vessel_thickness)/4,IF(tank_geom_filt=2,(filt_comm_diam-2*Vessel_thickness)*filt_comm_height_length,0)),"-") -> 3.141592654 | D72: square feet
A73: Media volume per filter | B73: media_volume_filt | C73: =IF(filter_type=2,IF(tank_geom_filt=1,comm_SA_filt*filt_bed_depth,IF(tank_geom_filt=2,comm_vol_filt-underdrain_horiz_void_filt-void_above_filt)),"-") -> 9.424777961 | D73: cubic feet
A74: Height available above media bed (for horizontal vessels) | B74: distance_above_filt | C74: =IF(filter_type=2,IF(tank_geom_filt=2,filt_comm_diam-filt_bed_depth-horiz_underdrain,"NA"),"-") -> NA | D74: feet
A75: Void space above media bed (for horizontal vessels) | B75: void_above_filt | C75: =IF(filter_type=2,IF(tank_geom_filt=2,filt_comm_height_length*(filt_comm_diam*filt_comm_diam/2*ASIN(SQRT(distance_above_filt/filt_comm_diam))-(filt_comm_diam/2-distance_above_filt)*SQRT((filt_comm_diam-distance_above_filt)*distance_above_filt)),"NA"),"-") -> NA | D75: cubic feet
A76: Maximum flow per vessel | B76: flow_per_vessel_filt | C76: =IF(filter_type=2,IF(tank_geom_filt=1,(max_sa_filt*filt_bed_depth*7.48)/EBCT_tank_filt,media_volume_filt*7.48/EBCT_tank_filt),"-") -> 7.049733915 | D76: gpm
A77: Number of parallel treatment trains | B77: num_treat_lines_filt | C77: =IF(filter_type=2,ROUNDUP(design_flow_rate/flow_per_vessel_filt,0),"-") -> 3 | D77: lines
A78: Number of vessels excluding redundancy | B78: op_num_tanks_filt | C78: =IF(filter_type=2,ROUNDUP(design_flow_rate/flow_per_vessel_filt,0),"-") -> 3 | D78: units
A79: Number of redundant bioreactors | B79: NRD_filt_p | C79: =IF(filter_type=2,IF(op_num_tanks_filt=1,filt_NRD_small_1,CHOOSE(ss_cat2,filt_NRD_small,filt_NRD_basins_medium,filt_NRD_basins_large)),"-") -> 0
A80: Total number of vessels including redundancy | B80: final_num_tanks_filt | C80: =IF(filter_type=2,(op_num_tanks_filt+NRD_filt_p),0) -> 3 | D80: units
A82: Vessel requirements based on bed depth and contact time
A83: Minimum volume of contact area needed | B83: contact_material_filt | C83: =IF(filter_type=2,design_flow_rate*EBCT_tank_filt/(7.481),"-") -> 27.84832687 | D83: cubic feet
A84: Minimum volume of contact area per vessel | B84: contact_mat_per_vessel_filt | C84: =IF(filter_type=2,contact_material_filt/op_num_tanks_filt,"-") -> 9.282775624 | D84: cubic feet
A85: Minimum surface area of contact material | B85: SA_filt | C85: =IF(filter_type=2,contact_mat_per_vessel_filt/filt_bed_depth,"-") -> 3.094258541 | D85: square feet
A87: Quantities based on user-specified vessel dimensions
A88: Final surface area of contact material | B88: comm_SA_filt | C88: =IF(filter_type=2,IF(tank_geom_filt=1,(filt_comm_diam-(2*Vessel_thickness))^2*PI()/4,IF(tank_geom_filt=2,(filt_comm_diam-(2*Vessel_thickness))*filt_comm_height_length)),"-") -> 3.141592654 | D88: square feet
A89: Final surface loading rate | B89: comm_load_rate_filt | C89: =IF(filter_type=2,design_flow_rate/num_treat_lines_filt/comm_SA_filt,"-") -> 2.210485321 | D89: gpm/square ft
A90: Volume | B90: comm_vol_filt | C90: =IF(filter_type=2,PI()*filt_comm_diam^2/4*filt_comm_height_length,"-") -> 17.27875959 | D90: cubic feet
A91: Volume in gallons | B91: comm_vol_gal_filt | C91: =IF(filter_type=2,comm_vol_filt*7.48,"-") -> 129.2451218 | D91: gal
A93: Checks on user-specified dimensions
A94: Design dimensions for vertical vessels:
A95: Required height of vessel | B95: height_filt | C95: =IF(filter_type=2,filt_bed_depth*(1+filt_bed_expansion)+free_board,"-") -> 5.5 | D95: feet
A96: Required vessel diameter (circular vessels) | B96: diameter_filt | C96: =IF(filter_type=2,(SA_filt*4/PI())^0.5+(2*Vessel_thickness),"-") -> 1.9848759 | D96: feet
A97: Minimum commercial height given diameter | B97: min_comm_height_filt | C97: =IF(filter_type=2,VLOOKUP(filt_comm_diam,vessel_size_table_cl,2),"-") -> 3.5 | D97: feet
A98: Maximum commercial height given diameter | B98: max_comm_height_filt | C98: =IF(filter_type=2,VLOOKUP(filt_comm_diam,vessel_size_table_cl,3),"-") -> 7.5 | D98: feet
A100: Void space required for horizontal vessels:
A101: For freeboard | B101: freeboard_horiz_void_filt | C101: =IF(filter_type=2,filt_comm_height_length*(filt_comm_diam*filt_comm_diam/2*ASIN(SQRT(free_board/filt_comm_diam))-(filt_comm_diam/2-free_board)*SQRT((filt_comm_diam-free_board)*free_board)),"-") -> 8.639379797 | D101: cubic feet | E101: Volume of a horizontal slice taken out of a cylinder
A102: For underdrain | B102: underdrain_horiz_void_filt | C102: =IF(filter_type=2,filt_comm_height_length*(filt_comm_diam*filt_comm_diam/2*ASIN(SQRT(horiz_underdrain/filt_comm_diam))-(filt_comm_diam/2-horiz_underdrain)*SQRT((filt_comm_diam-horiz_underdrain)*horiz_underdrain)),"-") -> 13.90074292 | D102: cubic feet
A103: Total | B103: horiz_void_filt | C103: =IF(filter_type=2,freeboard_horiz_void_filt+underdrain_horiz_void_filt,"-") -> 22.54012272 | D103: cubic feet
A105: Volume available for media and expansion:
A106: Vertical vessel | B106: vert_vol_available_filt | C106: =IF(filter_type=2,(filt_comm_height_length-free_board)*PI()*filt_comm_diam^2/4,"-") -> 14.13716694 | D106: cubic feet
A107: Horizontal vessel | B107: horiz_vol_available_filt | C107: =IF(filter_type=2,comm_vol_filt-horiz_void_filt,"-") -> -5.261363126 | D107: cubic feet
A109: FILTER GRAVITY CONTACT BASINS
A110: Total filter volume required | B110: min_filt_vol | C110: =IF(filter_type=1,design_flow_rate*ebct_filt/7.48,0) -> 0 | D110: cubic ft
A111: Filter Volume per Basin | B111: filt_bed_volume | C111: =IF(filter_type=1,min_filt_vol/op_num_filters,0) -> 0 | D111: cubic ft
A112: Number of filters (no redundancy) | B112: op_num_filters | C112: =IF(filter_type=1,ROUNDUP(min_filt_vol/(filt_basin_width*filt_basin_length*filt_basin_op_depth),0),"-") -> -
A113: Basin depth including freeboard | B113: filt_basin_depth | C113: =IF(filter_type=1,filt_basin_op_depth*(1+filt_bed_expansion)+filt_freeboard,0) -> 0 | D113: ft
A114: Filter Volume per Basin | B114: filt_volume | C114: =IF(filter_type=1,filt_basin_width*filt_basin_length*filt_basin_depth*7.48,"-") -> - | D114: gal
A115: Number of reduntant basins | B115: NRD_filt | C115: =IF(filter_type=1,IF(op_num_filters=1,filt_NRD_small_1,CHOOSE(ss_cat2,filt_NRD_small,filt_NRD_basins_medium,filt_NRD_basins_large)),0) -> 0 | D115: units
A116: Total number of basins (incl. redundancy) | B116: total_num_filt_basins | C116: =IF(filter_type=1,op_num_filters+NRD_filt,0) -> 0 | D116: units
A117: Concrete volume | B117: filt_basin_conc_vol | C117: =IF(filter_type=1,(2*(filt_basin_width*total_num_filt_basins+conc_thick*(total_num_filt_basins+1))*filt_basin_depth*conc_thick+(total_num_filt_basins+1)*filt_basin_length*filt_basin_depth*conc_thick+(filt_basin_length+2*conc_thick)*(filt_basin_width*total_num_filt_basins+conc_thick*(total_num_filt_basins+1))*conc_thick)/27,"-") -> - | D117: cubic yd | E117: incorporates common wall design
A118: Excavation volume | B118: filt_excavation_vol | C118: =IF(filter_type=1,((total_num_filt_basins*filt_basin_width+(total_num_filt_basins+1)*conc_thick+overexcavate)*(filt_basin_length+2*conc_thick+overexcavate)*(filt_basin_depth+conc_thick+overexcavate)+0.5*(3*(filt_basin_depth+conc_thick+overexcavate)*(filt_basin_depth+conc_thick+overexcavate)*(filt_basin_length+2*conc_thick+overexcavate)))/27,"-") -> - | D118: cubic yd | E118: incorporates common wall design, includes ramping for moving earth out of excavated area, assumes flush with grade (conservative)
A119: Backfill volume | B119: filt_backfill_vol | C119: =IF(filter_type=1,filt_excavation_vol-(total_num_filt_basins*filt_basin_width+(total_num_filt_basins+1)*conc_thick)*(filt_basin_length+2*conc_thick)*(filt_basin_depth+conc_thick)/27,"-") -> - | D119: cubic yd
A120: Railing length | B120: filt_railing | C120: =IF(filter_type=1,2*(total_num_filt_basins*filt_basin_width+2*conc_thick/2+(total_num_filt_basins-1)*conc_thick)+2*(filt_basin_length+2*conc_thick/2),"-") -> - | D120: lf | E120: incorporates common wall design, single railing (concrete thickness is not sufficient to provide walkway)
A121: Surface area each contactor | B121: filt_basin_area | C121: =IF(filter_type=1,filt_basin_width*filt_basin_length,"-") -> - | D121: square ft
A123: Filter Media Quantities
A124: Sand quantity each filter | B124: sand_each | C124: =IF(filter_type=1,filt_bed_volume*(sand_fraction),IF(filter_type=2,media_volume_filt,0)) -> 9.424777961 | D124: cubic ft
A125: Anthracite quantity each filter | B125: anthracite_each | C125: =IF(filter_type=1,filt_bed_volume*anthracite_fraction*anthracite_density,IF(filter_type=2,media_volume_filt*anthracite_fraction*anthracite_density,0)) -> 315.7300617 | D125: lbs
A126: Garnet quantity each filter | B126: garnet_each | C126: =IF(filter_type=1,filt_bed_volume*garnet_fraction*garnet_density,IF(filter_type=2,media_volume_filt*garnet_fraction*garnet_density,0)) -> 0 | D126: lbs
A127: GAC quantity each filter | B127: filt_GAC_each | C127: =IF(filter_type=1,filt_bed_volume*GAC_fraction*GAC_density,IF(filter_type=2,media_volume_filt*GAC_fraction*GAC_density,0)) -> 0 | D127: lbs
A128: Sand filter media | B128: sand_vol | C128: =sand_each*IF(filter_type=1,total_num_filt_basins,IF(filter_type=2,final_num_tanks_filt,0)) -> 28.27433388 | D128: cubic ft
A129: Anthracite filter media | B129: anthracite | C129: =anthracite_each*IF(filter_type=1,total_num_filt_basins,IF(filter_type=2,final_num_tanks_filt,0)) -> 947.1901851 | D129: lbs
A130: Garnet filter media | B130: garnet | C130: =garnet_each*IF(filter_type=1,total_num_filt_basins,IF(filter_type=2,final_num_tanks_filt,0)) -> 0 | D130: lbs
A131: GAC filter media | B131: filt_GAC | C131: =filt_GAC_each*IF(filter_type=1,total_num_filt_basins,IF(filter_type=2,final_num_tanks_filt,0)) -> 0 | D131: lbs
A133: Coagulant Addition
A134: Pounds of pure coagulant per day (average flow) | B134: coag_day | C134: =IF(include_coag_filt=1,coag_dose_filt*8.34*average_flow,0) -> 0.5838 | D134: lb/day
A135: Pounds of pure coagulant per day (design flow) | B135: coag_day_design_flow | C135: =IF(include_coag_filt=1,coag_dose_filt*8.34*design_flow,0) -> 2.502 | D135: lb/day
A136: Gallons of coagulant solution per day (average flow) | B136: coag_day_gal_filt | C136: =coag_day/coag_pct_filt/coag_density_filt -> 0.123164557 | D136: gal/day
A137: Gallons of coagulant solution per day (design flow) | B137: coag_day_gal_filt_design_flow | C137: =coag_day_design_flow/coag_pct_filt/coag_density_filt -> 0.5278481013 | D137: gal/day
A138: Gallons of coagulant solution in storage | B138: coag_storage_gal_filt | C138: =coag_day_gal_filt*cstore_days -> 3.694936709 | D138: gallons
A139: Annual coagulant use (lbs bulk solution) | B139: coag_yr_filt | C139: =coag_day_gal_filt*365*coag_density_filt -> 532.7175 | D139: lbs/year
A141: Coagulant Mixing Tanks
A142: Maximum mixing tank size | B142: max_coag_mix_tank | C142: =MAX(VLOOKUP(10^6,st_bwt_cost_cl,1)-1,VLOOKUP(10^6,fg_bwt_cost_cl,1)-1,VLOOKUP(10^6,hdpe_bwt_cost_cl,1)-1) -> 289000 | D142: gal | E142: The largest size for which costs are available
A143: Number of coaglant mixing tanks | B143: coag_mix_tank | C143: =IF(include_coag_filt=1,ROUNDUP(design_flow_rate*coag_mix_time/60/max_coag_mix_tank,0),0) -> 1 | D143: units
A144: Coagulant mix tank size | B144: coag_mix_tank_size | C144: =IF(include_coag_filt=1,design_flow_rate*coag_mix_time/60/coag_mix_tank,0) -> 20.83333333 | D144: gal
A145: Max coagulant mix tank mixer horsepower | B145: mix_hp_max | C145: =VLOOKUP(10^6,imp_mix_cost_cl,1)-0.1 -> 30 | D145: hp | E145: The largest impeller mixer size available
A146: Mixers per coagulant mix tank | B146: mix_per_tank | C146: =IF(include_coag_filt=1,ROUNDUP(coag_mix_tank_size/1000*mix_hp_per/mix_hp_max,0),0) -> 1 | D146: units
A147: Number of mixers | B147: mixers | C147: =IF(include_coag_filt=1,coag_mix_tank*mix_per_tank,0) -> 1 | D147: units
A148: Mixer size | B148: mix_size | C148: =IF(include_coag_filt=1,MAX(min_mix_hp,coag_mix_tank_size/1000*mix_hp_per/mix_per_tank),0) -> 0.3333333333 | D148: hp
A149: Coagulant solution feed rate | B149: coag_rate_filt | C149: =coag_day_gal_filt_design_flow/24 -> 0.02199367089 | D149: gph
A150: Number of coagulant metering pumps | B150: cm_pumps_coag_filt | C150: =IF(coag_day_gal_filt_design_flow=0,0,ROUNDUP(coag_rate_filt/max_cm_pump_size_noSS,0)+NRD_cm_pump) -> 2 | D150: units
A151: Coagulant metering pump rating | B151: cm_pump_rating_coag_filt | C151: =IF(coag_day_gal_filt_design_flow=0,0,MAX(min_chem_flow,coag_rate_filt*(1+pump_safety_factor))/(cm_pumps_coag_filt-NRD_cm_pump)) -> 0.13 | D151: gph
A153: Coagulant Storage Tanks
A154: Ferric chloride storage in gallons | B154: coag_storage_gal | C154: =coag_storage_gal_filt+coag_storage_lbs/coag_pct/coag_density -> 3.694936709 | D154: gal | E154: Includes residuals ferric chloride addtion, if selected
A155: Pounds of bulk ferric chloride solution in storage | B155: coag_storage_lbs_bulk | C155: =coag_storage_gal*coag_density -> 43.785 | D155: lbs | E155: Includes residuals ferric chloride addtion, if selected
A156: Number of ferric chloride storage tanks | B156: coag_tanks | C156: =ROUNDUP(coag_storage_gal/max_chem_tank_size_noSS,0) -> 1 | D156: units
A157: Ferric chloride storage tank size | B157: coag_tank_vol | C157: =IF(coag_tanks>0,ROUNDUP(coag_storage_gal/coag_tanks,0),0) -> 4 | D157: gal
A158: Mixers per ferric chloride storage tank | B158: coag_cmix_per_tank | C158: =IF(AND(include_cmix=1,coag_tanks<>0),ROUNDUP(coag_tank_vol/1000*cmix_hp_per/cmix_hp_max,0),0) -> 0 | D158: units
A159: Number of ferric chloride storage tank mixers | B159: coag_cmixers | C159: =coag_tanks*coag_cmix_per_tank -> 0 | D159: units
A160: Mixer size for ferric chloride storage tanks | B160: coag_cmix_size | C160: =IF(coag_cmixers<>0,MAX(min_cmix_hp,coag_tank_vol/1000*cmix_hp_per/coag_cmix_per_tank),0) -> 0 | D160: hp
A161: Day tank storage volume required (based on design flow) | B161: coag_day_tank_vol_needed | C161: =coag_day_gal_filt_design_flow -> 0.5278481013 | D161: gallons | E161: Considers post-treatment ferric chloride only, because residuals addition is intermittent
A162: Number of ferric chloride day tanks | B162: coag_day_tanks | C162: =IF(coag_day_tank_vol_needed<day_tank_needed,0,ROUNDUP(coag_day_tank_vol_needed/max_chem_tank_size_noSS,0)) -> 0 | D162: units
A163: Volume of ferric chloride day tanks | B163: coag_day_tank_vol | C163: =IF(coag_day_tanks=0,0,ROUNDUP(coag_day_tank_vol_needed/coag_day_tanks,0)) -> 0 | D163: gallons
A164: Mixers per ferric chloride day tank | B164: coag_dmix_per_tank | C164: =IF(AND(include_cmix=1,coag_day_tanks<>0),ROUNDUP(coag_day_tank_vol/1000*cmix_hp_per/cmix_hp_max,0),0) -> 0 | D164: units
A165: Number of ferric chloride day tank mixers | B165: coag_dmixers | C165: =coag_day_tanks*coag_dmix_per_tank -> 0 | D165: units
A166: Mixer size for ferric chloride day tanks | B166: coag_dmix_size | C166: =IF(coag_dmixers<>0,MAX(min_cmix_hp,coag_day_tank_vol/1000*cmix_hp_per/coag_dmix_per_tank),0) -> 0 | D166: hp
A168: Secondary Containment for Coagulant Storage Tanks
A169: Minimum volume required | B169: coag_cont_volume | C169: =MAX(coag_tanks*coag_tank_vol*sec_cont_pct_of_total,coag_tank_vol*sec_cont_pct_of_largest)/7.48 -> 0.5882352941 | D169: cubic feet | E169: 7.48 converts gallons to cubic feet
A170: Footprint available | B170: coag_cont_fp | C170: =IF(coag_tanks=0,0,coag_fp-coag_tanks*PI()*(coag_st_diam/2)^2) -> 8.214601837 | D170: square feet | E170: Total footprint minus displacement by tanks themselves
A171: Curb height required | B171: coag_curb_height | C171: =IF(coag_tanks=0,0,coag_cont_volume/coag_cont_fp+sec_cont_freeboard/12) -> 0.5716084974 | D171: feet
A172: Curb thickness | B172: coag_curb_thick | C172: =IF(coag_tanks=0,0,MIN(sec_cont_max_thick,coag_curb_height)) -> 0.5716084974 | D172: feet
A173: Curb length (long side) | B173: coag_curb_len_long | C173: =IF(coag_tanks=0,0,coag_tanks*coag_st_diam+2*space_coag_st+(coag_tanks-1)*space_coag_st+2*coag_curb_thick) -> 4.143216995 | D173: feet
A174: Curb length (short side) | B174: coag_curb_len_short | C174: =IF(coag_tanks=0,0,coag_st_diam+2*space_coag_st) -> 3 | D174: feet
A175: Curb concrete volume | B175: coag_curb_concrete | C175: =IF(coag_tanks=0,0,ROUNDUP((coag_curb_len_long*2+coag_curb_len_short*2)*coag_curb_height*coag_curb_thick/27,0)) -> 1 | D175: cubic yards | E175: 27 converts cubic feet to cubic yards
A176: Chemical resistant coating required | B176: coag_coating_gal | C176: =IF(coag_tanks=0,0,ROUNDUP((coag_fp+2*(coag_curb_len_long-2*coag_curb_thick)*coag_curb_height+2*coag_curb_len_short*coag_curb_height)/sec_cont_coating_cvg,0)) -> 1 | D176: gallons | E176: Covers total footprint plus inside surface and top of curbs
A178: Secondary Containment for Coagulant Day Tanks
A179: Minimum volume required | B179: coag_dt_cont_volume | C179: =MAX(coag_day_tanks*coag_day_tank_vol*sec_cont_pct_of_total,coag_day_tank_vol*sec_cont_pct_of_largest)/7.48 -> 0 | D179: cubic feet | E179: 7.48 converts gallons to cubic feet
A180: Footprint available | B180: coag_dt_cont_fp | C180: =IF(coag_day_tanks=0,0,coag_day_fp-coag_day_tanks*PI()*(coag_dt_diam/2)^2) -> 0 | D180: square feet | E180: Total footprint minus displacement by tanks themselves
A181: Curb height required | B181: coag_dt_curb_height | C181: =IF(coag_day_tanks=0,0,coag_dt_cont_volume/coag_dt_cont_fp+sec_cont_freeboard/12) -> 0 | D181: feet
A182: Curb thickness | B182: coag_dt_curb_thick | C182: =IF(coag_day_tanks=0,0,MIN(sec_cont_max_thick,coag_dt_curb_height)) -> 0 | D182: feet
A183: Curb length (long side) | B183: coag_dt_curb_len_long | C183: =IF(coag_day_tanks=0,0,coag_day_tanks*coag_dt_diam+2*space_coag_dt+(coag_day_tanks-1)*space_coag_dt+2*coag_dt_curb_thick) -> 0 | D183: feet
A184: Curb length (short side) | B184: coag_dt_curb_len_short | C184: =IF(coag_day_tanks=0,0,coag_dt_diam+2*space_coag_dt) -> 0 | D184: feet
A185: Curb concrete volume | B185: coag_dt_curb_concrete | C185: =IF(coag_day_tanks=0,0,ROUNDUP((coag_dt_curb_len_long*2+coag_dt_curb_len_short*2)*coag_dt_curb_height*coag_dt_curb_thick/27,0)) -> 0 | D185: cubic yards | E185: 27 converts cubic feet to cubic yards
A186: Chemical resistant coating required | B186: coag_dt_coating_gal | C186: =IF(coag_day_tanks=0,0,ROUNDUP((coag_day_fp+2*(coag_dt_curb_len_long-2*coag_dt_curb_thick)*coag_dt_curb_height+2*coag_dt_curb_len_short*coag_dt_curb_height)/sec_cont_coating_cvg,0)) -> 0 | D186: gallons | E186: Covers total footprint plus inside surface and top of curbs
A188: Coagulant Purchasing | E188: Includes residuals ferric chloride addtion, if selected
A189: Quantity required for large quantity purchase | C189: =VLOOKUP("Ferric Chloride - Large Qty",chem_break_table_cl,2,FALSE) ->  | D189: lbs | E189: #N/A indicates that price data do not depend on volume purchased.
A190: Quantity required for mid quantity purchase | C190: =VLOOKUP("Ferric Chloride - Mid Qty",chem_break_table_cl,2,FALSE) ->  | D190: lbs | E190: #N/A indicates that price data do not depend on volume purchased.
A191: Quantity required for small quantity purchase | C191: =VLOOKUP("Ferric Chloride - Small Qty",chem_break_table_cl,2,FALSE) ->  | D191: lbs | E191: #N/A indicates that price data do not depend on volume purchased.
A192: Purchase Type | B192: coag_purchase | C192: =IF(AND(ISNA(C189),ISNA(C190),ISNA(C191)),"",IF(coag_storage_lbs_bulk>=C189," - Large Qty",IF(coag_storage_lbs_bulk>=C190," - Mid Qty"," - Small Qty"))) ->  | E192: Returns descriptive term based on volume of each purchase for use in determining pricing. Blank indicates that price data do not depend on volume purchased.

Sheet Pumps Pipe Structure
A1: Pumps, Piping, and Structure Calculations
A3: Calculation | B3: Range Name | C3: Value | D3: Units | E3: Guidance
A4: Pump and Blower Design
A5: Booster pump rating | B5: pump_rating | C5: =IF(lines_pump_I="",IF(ss_cat2=1,0,MIN(MAX(average_flow_rate+bp_flow_rate*average_flow_rate/design_flow_rate,(design_flow_rate+bp_flow_rate)/2)*(1+pump_safety_factor),max_pump_size)),IF(lines_pump_I=0,0,(design_flow_rate+bp_flow_rate)*(1+pump_safety_factor)/lines_pump_I)) -> 0 | D5: gpm | E5: Includes safety factor
A6: Maximum pump size | B6: max_pump_size | C6: =VLOOKUP(10^6,pump_cost_cl,1)-1 -> 10000 | D6: gpm | E6: The largest pump size for which costs are available. Applies to booster pumps and backwash pumps. For booster pumps, will override bioreactors per pump input, if this input results in pumps that are too large.
A7: Maximum chemical metering pump size | B7: max_cm_pump_size | C7: =MAX(VLOOKUP(10^6,ss_empump_cost_cl,1)-0.01,VLOOKUP(10^6,ss_mmpump_cost_cl,1)-0.01,VLOOKUP(10^6,pvc_empump_cost_cl,1)-0.01,VLOOKUP(10^6,pvc_mmpump_cost_cl,1)-0.01) -> 132 | D7: gph | E7: The largest size for which costs are available.
A8: Maximum chemical metering pump size excluding stainless steel | B8: max_cm_pump_size_noSS | C8: =MAX(VLOOKUP(10^6,pvc_empump_cost_cl,1)-0.01,VLOOKUP(10^6,pvc_mmpump_cost_cl,1)-0.01) -> 132 | D8: gph | E8: The largest size for which costs are available excluding stainless, which is not compatible with phosphoric acid
A10: Number of booster pumps | B10: booster_pumps | C10: =IF(pump_rating=0,0,ROUNDUP((design_flow_rate+bp_flow_rate)*(1+pump_safety_factor)/pump_rating,0)) -> 0 | D10: units | E10: Operating pumps
A11: Total booster pumps | B11: total_booster_pumps | C11: =IF(booster_pumps=0,0,booster_pumps+NRD_pumps) -> 0 | D11: units | E11: Includes redundancy
A13: Number of recycle pumps | B13: recycle_pumps | C13: =IF(design_type=3,ROUNDUP(design_flow_rate*recycle_fluid*(1+pump_safety_factor)/max_pump_size+NRD_recycle_pumps,0),0) -> 0 | D13: pumps | E13: Includes redundancy
A14: Recycle pump rating | B14: recycle_pump_rating | C14: =IF(recycle_pumps=0,0,design_flow_rate*recycle_fluid*(1+pump_safety_factor)/(recycle_pumps-NRD_recycle_pumps)) -> 0 | D14: gpm | E14: Includes safety factor
A16: Number of backwash pumps | B16: backwash_pumps | C16: =IF(AND(include_post=0,design_type=3),0,IF(no_backwash=1,0,ROUNDUP(IF(water_flush>filter_water_flush,water_flush,filter_water_flush)*(1+pump_safety_factor)/max_pump_size,0)+NRD_back_pumps)) -> 0 | D16: pumps | E16: Includes redundancy
A17: Backwash pump rating | B17: back_pump_rating | C17: =IF(backwash_pumps=0,0,IF(water_flush>filter_water_flush,water_flush,filter_water_flush)*(1+pump_safety_factor)/(backwash_pumps-NRD_back_pumps)) -> 0 | D17: gpm | E17: Includes safety factor
A19: Electron Donor Pump
A20: Number of chemical metering pumps | B20: cm_pumps_e_donor | C20: =ROUNDUP(e_donor_day_vol/24*(1+pump_safety_factor)/max_cm_pump_size,0)+NRD_cm_pump -> 2 | D20: units
A21: Chemical metering pump rating | B21: cm_pump_rating_e_donor | C21: =MAX(min_chem_flow,e_donor_day_vol/24*(1+pump_safety_factor)/(cm_pumps_e_donor-NRD_cm_pump)) -> 0.13 | D21: gph
A23: Ammonium Chloride Pump
A24: Number of chemical metering pumps | B24: cm_pumps_NH4Cl | C24: =IF(OR(nutrient_option=2,nutrient_option=4),ROUNDUP(NH4Cl_vol/24*(1+pump_safety_factor)/max_cm_pump_size,0)+NRD_cm_pump,0) -> 0 | D24: units
A25: Chemical metering pump rating | B25: cm_pump_rating_NH4Cl | C25: =IF(cm_pumps_NH4Cl=0,0,MAX(min_chem_flow,NH4Cl_vol/24*(1+pump_safety_factor)/(cm_pumps_NH4Cl-NRD_cm_pump))) -> 0 | D25: gph
A27: Phosphoric Acid Pump
A28: Number of chemical metering pumps | B28: cm_pumps_H3PO4 | C28: =IF(OR(nutrient_option=3,nutrient_option=4),ROUNDUP(H3PO4_vol/24*(1+pump_safety_factor)/max_cm_pump_size_noSS,0)+NRD_cm_pump,0) -> 2 | D28: units
A29: Chemical metering pump rating | B29: cm_pump_rating_H3PO4 | C29: =IF(cm_pumps_H3PO4=0,0,MAX(min_chem_flow,H3PO4_vol/24*(1+pump_safety_factor)/(cm_pumps_H3PO4-NRD_cm_pump))) -> 0.13 | D29: gph
A31: Blower for Air Scour
A32: Maximum blower size | B32: max_blower_size | C32: =VLOOKUP(10^6,pd_blow_cost_cl,1)-1 -> 5000 | D32: CFM | E32: The largest size for which costs are available.
A33: Number of blowers | B33: num_blowers | C33: =IF(AND(design_type=3,include_post=0),0,IF(air_scour_I="yes",ROUNDUP(tot_air_scour/max_blower_size,0),0)) -> 1 | D33: units
A34: Design air flow | B34: design_air_flow | C34: =IF(num_blowers=0,0,tot_air_scour/(num_blowers)) -> 32.2013247 | D34: cfm
A36: Blowers of Biomass Removal
A37: Number of blowers | B37: num_bio_blowers | C37: =IF(design_type=3,ROUNDUP(tot_air_biomass/max_blower_size,0),0) -> 0 | D37: units | E37: Fluidized Bed Designs Only
A38: Design air flow | B38: design_air_flow_bio | C38: =IF(num_bio_blowers=0,0,tot_air_biomass/(num_bio_blowers)) -> 0 | D38: cfm
A40: Blowers of Aeration
A41: Number of blowers | B41: num_aeration_blowers | C41: =IF(include_post_h2o2=0,ROUNDUP(air_flow_tot/max_blower_size,0)+NRD_blowers,0) -> 2 | D41: units
A42: Design air flow | B42: design_air_flow_aeration | C42: =IF(num_aeration_blowers=0,0,air_flow_tot/(num_aeration_blowers-NRD_blowers)) -> 1.354166667 | D42: cfm
A44: Hydrogen Peroxide Pump
A45: Number of chemical metering pumps | B45: cm_pumps_H2O2 | C45: =IF(include_post_h2o2=0,0,ROUNDUP(solution_rate*(1+pump_safety_factor)/max_cm_pump_size,0)+NRD_cm_pump) -> 0 | D45: units
A46: Chemical metering pump rating | B46: cm_pump_rating_H2O2 | C46: =IF(include_post_h2o2=0,0,MAX(min_chem_flow,solution_rate*(1+pump_safety_factor)/(cm_pumps_H2O2-NRD_cm_pump))) -> 0 | D46: gph
A48: Piping Design
A49: Influent and treated water pipe length | B49: in_out_pipe_length | C49: =in_out_pipe_mult*facil_length -> 40 | D49: linear feet
A50: Process piping length | B50: proc_pipe_length | C50: =proc_pipe_mult*facil_length -> 40 | D50: linear feet
A51: Recycle piping length | B51: recycle_pipe_length | C51: =IF(design_type=3,recycle_pipe_mult*facil_length,0) -> 0 | D51: linear feet
A52: Backwash piping length | B52: back_pipe_length | C52: =back_pipe_mult*facil_length -> 50 | D52: linear feet
A53: Electron donor piping length | B53: e_donor_pipe_length | C53: =chem_pipe_mult*facil_length -> 20 | D53: linear feet
A54: Ammonium chloride piping length | B54: NH4Cl_pipe_length | C54: =IF(OR(nutrient_option=2,nutrient_option=4),chem_pipe_mult*facil_length,0) -> 0 | D54: linear feet
A55: Phosphoric acid piping length | B55: H3PO4_pipe_length | C55: =IF(OR(nutrient_option=3,nutrient_option=4),chem_pipe_mult*facil_length,0) -> 20 | D55: linear feet
A56: Dilute hydrogen peroxide piping length | B56: H202_pipe_length | C56: =IF(include_post_h2o2=0,0,chem_pipe_mult*facil_length) -> 0 | D56: linear feet
A57: Ferric chloride addition pipe length | B57: coag_pipe_length | C57: =IF((coag_day_gal+coag_day_gal_filt)=0,0,chem_pipe_mult*facil_length) -> 20 | D57: linear feet | E57: Present with ferric addition to either post-treatment or residuals
A58: Polymer addition pipe length | B58: polymer_pipe_length | C58: =IF(AND(htanks<>0,polymer_res=1),chem_pipe_mult*facil_length,0) -> 20 | D58: linear feet
A59: Bypass piping length | B59: bp_pipe_length | C59: =IF(bp_pct>0,bp_pipe_mult*facil_length,0) -> 0 | D59: linear feet
A61: Influent and treated water pipe flow | B61: in_out_pipe_flow | C61: =design_flow_rate+bp_flow_rate -> 20.83333333 | D61: gpm
A62: Influent and treated water piping diameter | B62: in_out_pipe_diam | C62: =VLOOKUP(in_out_pipe_flow,pipe_size_table_cl,2) -> 1.5 | D62: inches
A63: Process pipe flow | B63: proc_pipe_flow | C63: =IF(OR(design_type=1,design_type=3),flow_per_vessel,design_flow_rate/op_num_basins) -> 10.70923121 | D63: gpm
A64: Process pipe diameter | B64: proc_pipe_diam | C64: =VLOOKUP(proc_pipe_flow,pipe_size_table_cl,2) -> 1.5 | D64: inches
A65: Recycle pipe flow | B65: recycle_pipe_flow | C65: =IF(design_type=3,design_flow_rate*recycle_fluid,0) -> 0 | D65: gpm
A66: Recycle pipe diameter | B66: recycle_pipe_diam | C66: =IF(design_type=3,VLOOKUP(recycle_pipe_flow,pipe_size_table_cl,2),0) -> 0 | D66: inches
A67: Backwash pipe flow | B67: back_pipe_flow | C67: =IF(water_flush>filter_water_flush,water_flush,filter_water_flush) -> 47 | D67: gpm
A68: Backwash pipe diameter | B68: back_pipe_diam | C68: =VLOOKUP(back_pipe_flow,pipe_size_table_cl,2) -> 2.5 | D68: inches
A69: Electron donor pipe flow | B69: e_donor_pipe_flow | C69: =e_donor_day_vol/1440 -> 0.001031769596 | D69: gpm
A70: Electron donor pipe diameter | B70: e_donor_pipe_diam | C70: =VLOOKUP(e_donor_pipe_flow,pipe_size_table_cl,2) -> 0.5 | D70: inches
A71: Ammonium chloride pipe flow | B71: NH4Cl_pipe_flow | C71: =NH4Cl_vol/1440 -> 0 | D71: gpm
A72: Ammonium chloride pipe diameter | B72: NH4Cl_pipe_diam | C72: =IF(OR(nutrient_option=2,nutrient_option=4),VLOOKUP(NH4Cl_pipe_flow,pipe_size_table_cl,2),0) -> 0 | D72: inches
A73: Phosphoric acid pipe flow | B73: H3PO4_pipe_flow | C73: =H3PO4_vol/1440 -> 5.579706414e-05 | D73: gpm
A74: Phosphoric acid pipe diameter | B74: H3PO4_pipe_diam | C74: =IF(OR(nutrient_option=3,nutrient_option=4),VLOOKUP(H3PO4_pipe_flow,pipe_size_table_cl,2),0) -> 0.5 | D74: inches
A75: Aeration tank pipe flow | B75: aer_tank_pipe_flow | C75: =design_flow_rate/aeration_tanks -> 20.83333333 | D75: gpm
A76: Aeration tank pipe diameter | B76: aer_tank_pipe_diam | C76: =VLOOKUP(aer_tank_pipe_flow,pipe_size_table_cl,2) -> 1.5 | D76: inches
A77: Dilute hydrogen peroxide pipe flow | B77: H202_pipe_flow | C77: =IF(include_post_h2o2=0,0,diluted_rate) -> 0 | D77: gpm
A78: Dilute hydrogen peroxide pipe diameter | B78: H202_pipe_diam | C78: =IF(include_post_h2o2=0,0,VLOOKUP(H202_pipe_flow,pipe_size_table_cl,2)) -> 0 | D78: inches
A79: Ferric chloride pipe flow | B79: coag_pipe_flow | C79: =coag_rate/60+coag_rate_filt/60 -> 0.0003665611814 | D79: gpm
A80: Ferric chloride pipe diameter | B80: coag_pipe_diam | C80: =IF((coag_day_gal+coag_day_gal_filt)=0,0,VLOOKUP(coag_pipe_flow,pipe_size_table_cl,2)) -> 0.5 | D80: inches
A81: Polymer pipe flow | B81: polymer_pipe_flow | C81: =polymer_rate/60 -> 0.004703660714 | D81: gpm
A82: Polymer pipe diameter | B82: polymer_pipe_diam | C82: =IF(polymer_day=0,0,VLOOKUP(polymer_pipe_flow,pipe_size_table_cl,2)) -> 0.5 | D82: inches
A83: Bypass pipe flow | B83: bp_pipe_flow | C83: =bp_flow_rate -> 0 | D83: gpm
A84: Bypass pipe diameter | B84: bp_pipe_diam | C84: =IF(bp_pct>0,VLOOKUP(bp_pipe_flow,pipe_size_table_cl,2),0) -> 0 | D84: inches
A86: Building Structure
A87: Aeration tank diameter | B87: aer_tank_diam | C87: =ROUNDUP(2*(MAX((2*aeration_tank_vol/7.48/PI())^(1/3),(4*aeration_tank_vol/7.48/PI()/(Building_height-ceiling_clearance))^(1/2))),0)/2 -> 1.5 | D87: feet
A88: Backwash tank diameter | B88: bt_diam | C88: =ROUNDUP(2*(MAX((2*back_tank_vol/7.48/PI())^(1/3),(4*back_tank_vol/7.48/PI()/(Building_height-ceiling_clearance))^(1/2))),0)/2 -> 0 | D88: feet
A89: Electron donor storage tank diameter | B89: e_donor_st_diam | C89: =ROUNDUP(2*(MAX((2*e_donor_tank_vol/7.48/PI())^(1/3),(4*e_donor_tank_vol/7.48/PI()/(Building_height-ceiling_clearance))^(1/2))),0)/2 -> 1 | D89: feet
A90: Ammonium chloride storage tank diameter | B90: NH4Cl_st_diam | C90: =ROUNDUP(2*(MAX((2*NH4Cl_tank_vol/7.48/PI())^(1/3),(4*NH4Cl_tank_vol/7.48/PI()/(Building_height-ceiling_clearance))^(1/2))),0)/2 -> 0 | D90: feet
A91: Phosphoric acid storage tank diameter | B91: H3PO4_st_diam | C91: =ROUNDUP(2*(MAX((2*H3PO4_tank_vol/7.48/PI())^(1/3),(4*H3PO4_tank_vol/7.48/PI()/(Building_height-ceiling_clearance))^(1/2))),0)/2 -> 0.5 | D91: feet
A92: Hydrogen peroxide storage tank diameter | B92: H2O2_st_diam | C92: =ROUNDUP((MAX((2*H2O2_tank_vol/7.48/PI())^(1/3),(4*H2O2_tank_vol/7.48/PI()/(Building_height-ceiling_clearance))^(1/2))),0) -> 0 | D92: feet
A93: Electron donor day tank diameter | B93: e_donor_dt_diam | C93: =ROUNDUP((MAX((2*e_donor_day_tank_vol/7.48/PI())^(1/3),(4*e_donor_day_tank_vol/7.48/PI()/(Building_height-ceiling_clearance))^(1/2))),0) -> 1 | D93: feet
A94: Ammonium chloride day tank diameter | B94: NH4Cl_dt_diam | C94: =ROUNDUP((MAX((2*NH4Cl_day_tank_vol/7.48/PI())^(1/3),(4*NH4Cl_day_tank_vol/7.48/PI()/(Building_height-ceiling_clearance))^(1/2))),0) -> 0 | D94: feet
A95: Phosphoric acid day tank diameter | B95: H3PO4_dt_diam | C95: =ROUNDUP((MAX((2*H3PO4_day_tank_vol/7.48/PI())^(1/3),(4*H3PO4_day_tank_vol/7.48/PI()/(Building_height-ceiling_clearance))^(1/2))),0) -> 0 | D95: feet
A96: Hydrogen peroxide day tank diameter | B96: H2O2_dt_diam | C96: =ROUNDUP((MAX((2*H2O2_day_tank_vol/7.48/PI())^(1/3),(4*H2O2_day_tank_vol/7.48/PI()/(Building_height-ceiling_clearance))^(1/2))),0) -> 0 | D96: feet
A97: Residuals holding tank diameter | B97: ht_diam | C97: =ROUNDUP(2*(MAX((2*htank_vol/7.48/PI())^(1/3),(4*htank_vol/7.48/PI()/(Building_height-ceiling_clearance))^(1/2))),0)/2 -> 4.5 | D97: feet
A98: Thickening tank diameter | B98: thick_diam | C98: =IF(sed_sludge_method=0,0,IF(component_level=2,ROUNDUP(2*(MAX((2*thick_tank_volume/7.48/PI())^(1/3),(4*thick_tank_volume/7.48/PI()/(Building_height-ceiling_clearance))^(1/2))),0)/2,thick_basin_diam)) -> 0 | D98: feet
A99: Ferric chloride storage tank diameter | B99: coag_st_diam | C99: =ROUNDUP((MAX((2*coag_tank_vol/7.48/PI())^(1/3),(4*coag_tank_vol/7.48/PI()/(Building_height-ceiling_clearance))^(1/2))),0) -> 1 | D99: feet
A100: Ferric chloride day tank diameter | B100: coag_dt_diam | C100: =ROUNDUP((MAX((2*coag_day_tank_vol/7.48/PI())^(1/3),(4*coag_day_tank_vol/7.48/PI()/(Building_height-ceiling_clearance))^(1/2))),0) -> 0 | D100: feet
A101: Polymer storage tank diameter | B101: polymer_st_diam | C101: =ROUNDUP(2*(MAX((2*polymer_tank_vol/7.48/PI())^(1/3),(4*polymer_tank_vol/7.48/PI()/(Building_height-ceiling_clearance))^(1/2))),0)/2 -> 1 | D101: feet
A102: Coagulant mix tank diameter | B102: coag_mix_diam | C102: =ROUNDUP(2*(MAX((2*coag_mix_tank_size/7.48/PI())^(1/3),(4*coag_mix_tank_size/7.48/PI()/(Building_height-ceiling_clearance))^(1/2))),0)/2 -> 1.5 | D102: feet
A103: Maximum access space per vessel or tank | B103: max_space_vessels | C103: =IF(AND(OR(design_type=1,design_type=3),ss_cat2=1),max_space_vessels_pre,max_space_vessels_cust) -> 1 | D103: feet
A104: Access space per vessel | B104: space_vessels | C104: =IF(tank_geom=2,max_space_vessels,IF(comm_diam>max_space_vessels,max_space_vessels,comm_diam)) -> 1 | D104: feet
A105: Access space per backwash tank | B105: space_aer | C105: =IF(aer_tank_diam>max_space_vessels,max_space_vessels,aer_tank_diam) -> 1 | D105: feet
A106: Access space per backwash tank | B106: space_bt | C106: =IF(bt_diam>max_space_vessels,max_space_vessels,bt_diam) -> 0 | D106: feet
A107: Access space per electron donor storage tank | B107: space_e_donor_st | C107: =IF(e_donor_st_diam>max_space_vessels,max_space_vessels,e_donor_st_diam) -> 1 | D107: feet
A108: Access space per ammonium chloride storage tank | B108: space_NH4Cl_st | C108: =IF(NH4Cl_st_diam>max_space_vessels,max_space_vessels,NH4Cl_st_diam) -> 0 | D108: feet
A109: Access space per phosphoric acid storage tank | B109: space_H3PO4_st | C109: =IF(H3PO4_st_diam>max_space_vessels,max_space_vessels,H3PO4_st_diam) -> 0.5 | D109: feet
A110: Access space per hydrogen peroxide storage tank | B110: space_H2O2_st | C110: =IF(H2O2_st_diam>max_space_vessels,max_space_vessels,H2O2_st_diam) -> 0 | D110: feet
A111: Access space per electron donor day tank | B111: space_e_donor_dt | C111: =IF(e_donor_dt_diam>max_space_vessels,max_space_vessels,e_donor_dt_diam) -> 1 | D111: feet
A112: Access space per ammonium chloride day tank | B112: space_NH4Cl_dt | C112: =IF(NH4Cl_dt_diam>max_space_vessels,max_space_vessels,NH4Cl_dt_diam) -> 0 | D112: feet
A113: Access space per phosphoric acid day tank | B113: space_H3PO4_dt | C113: =IF(H3PO4_dt_diam>max_space_vessels,max_space_vessels,H3PO4_dt_diam) -> 0 | D113: feet
A114: Access space per hydrogen peroxide day tank | B114: space_H2O2_dt | C114: =IF(H2O2_dt_diam>max_space_vessels,max_space_vessels,H2O2_dt_diam) -> 0 | D114: feet
A115: Access space per residuals holding tank | B115: space_ht | C115: =IF(ht_diam>max_space_vessels,max_space_vessels,ht_diam) -> 1 | D115: feet
A116: Access space per thickening tank | B116: space_thick | C116: =IF(thick_diam>max_space_vessels,max_space_vessels,thick_diam) -> 0 | D116: feet
A117: Access space per ferric chloride storage tank | B117: space_coag_st | C117: =IF(coag_st_diam>max_space_vessels,max_space_vessels,coag_st_diam) -> 1 | D117: feet
A118: Access space per ferric chloride storage tank | B118: space_coag_dt | C118: =IF(coag_dt_diam>max_space_vessels,max_space_vessels,coag_dt_diam) -> 0 | D118: feet
A119: Access space per polymer storage tank | B119: space_polymer_st | C119: =IF(polymer_st_diam>max_space_vessels,max_space_vessels,polymer_st_diam) -> 1 | D119: feet
A120: Access space per coagulant mix tank | B120: space_coag_mix | C120: =IF(coag_mix_diam>max_space_vessels,max_space_vessels,coag_mix_diam) -> 1 | D120: feet
A121: Access space per pump | B121: space_pumps | C121: =IF(AND(design_type=1,ss_cat2=1),space_pumps_pre,space_pumps_cust) -> 0 | D121: feet
A122: Footprint for gravity basins | B122: basin_fp | C122: =IF(design_type=2,total_num_basins*basin_area*2,0) -> 0 | D122: square feet | E122: Two times basin area for walkways and equipment
A123: Footprint for vessels (large system assumptions) | C123: =IF(design_type=2,0,IF(tank_geom=1,ROUNDUP(((comm_diam+2*space_vessels)^2+(final_num_tanks-1)*(comm_diam+2*space_vessels)*(comm_diam+space_vessels)),0),IF(tank_geom=2,ROUNDUP((comm_diam+2*space_vessels)*(comm_height_length+2*space_vessels)+(final_num_tanks-1)*(comm_height_length+2*space_vessels)*(comm_diam+space_vessels),0)))) -> 36 | D123: square feet
A124: Footprint for vessels (skid mounted small system) | C124: =IF(design_type=2,0,IF(tank_geom=1,ROUNDUP(((comm_diam+2*space_vessels)^2+(final_num_tanks-1)*(comm_diam+2*space_vessels)*(comm_diam+space_vessels/2)),0),IF(tank_geom=2,ROUNDUP((comm_diam+2*space_vessels)*(comm_height_length+2*space_vessels)+(final_num_tanks-1)*(comm_height_length+2*space_vessels)*(comm_diam+space_vessels/2),0)))) -> 34 | D124: square feet | E124: Space between skid mounted vessels is reduced, outside access space remains the same
A125: Footprints for vessels | B125: vessel_fp | C125: =IF(ss_cat2=1,C124,C123) -> 34 | D125: square feet
A126: Footprint for aeration tank | B126: aer_tank_fp | C126: =IF(aeration_tanks=0,0,ROUNDUP((aer_tank_diam+2*space_aer)^2+(aeration_tanks-1)*(aer_tank_diam+2*space_aer)*(aer_tank_diam+space_aer),0)) -> 13 | D126: square feet
A127: Footprint for backwash tank | B127: back_tank_fp | C127: =IF(back_tanks=0,0,ROUNDUP((bt_diam+2*space_bt)^2+(back_tanks-1)*(bt_diam+2*space_bt)*(bt_diam+space_bt),0)) -> 0 | D127: square feet
A128: Footprint for coagulant mix tank | B128: coag_mix_fp | C128: =IF(coag_mix_tank=0,0,ROUNDUP((coag_mix_diam+2*space_coag_mix)^2+(coag_mix_tank-1)*(coag_mix_diam+2*space_coag_mix)*(coag_mix_diam+space_coag_mix),0)) -> 13 | D128: square feet
A129: Booster pump footprint | C129: =IF(total_booster_pumps=0,0,ROUNDUP((VLOOKUP(pump_rating,pump_dim_table_cl,3)+space_pumps)*(VLOOKUP(pump_rating,pump_dim_table_cl,4)+2*space_pumps)+(total_booster_pumps-1)*(VLOOKUP(pump_rating,pump_dim_table_cl,3)+space_pumps)*(VLOOKUP(pump_rating,pump_dim_table_cl,4)+space_pumps),0)) -> 0 | D129: square feet
A130: Recycle Pump Footprint | C130: =IF(design_type=3,ROUNDUP((VLOOKUP(recycle_pump_rating,pump_dim_table_cl,3)+space_pumps)*(VLOOKUP(recycle_pump_rating,pump_dim_table_cl,4)+2*space_pumps)+(recycle_pumps-1)*(VLOOKUP(recycle_pump_rating,pump_dim_table_cl,3)+space_pumps)*(VLOOKUP(recycle_pump_rating,pump_dim_table_cl,4)+space_pumps),0),0) -> 0 | D130: square feet
A131: Backwash pump footprint | C131: =IF(backwash_pumps=0,0,ROUNDUP((VLOOKUP(back_pump_rating,pump_dim_table_cl,3)+space_pumps)*(VLOOKUP(back_pump_rating,pump_dim_table_cl,4)+2*space_pumps)+(backwash_pumps-1)*(VLOOKUP(back_pump_rating,pump_dim_table_cl,3)+space_pumps)*(VLOOKUP(back_pump_rating,pump_dim_table_cl,4)+space_pumps),0)) -> 0 | D131: square feet
A132: Residuals pump footprint | C132: =IF(res_pumps=0,0,ROUNDUP((VLOOKUP(res_pump_rating,pump_dim_table_cl,3)+space_pumps)*(VLOOKUP(res_pump_rating,pump_dim_table_cl,4)+2*space_pumps)+(res_pumps-1)*(VLOOKUP(res_pump_rating,pump_dim_table_cl,3)+space_pumps)*(VLOOKUP(res_pump_rating,pump_dim_table_cl,4)+space_pumps),0)) -> 13 | D132: square feet
A133: Blower footprint for aeration | C133: =IF(num_aeration_blowers=0,0,ROUNDUP((VLOOKUP(design_air_flow_aeration,blow_dim_table_cl,7)+2*space_pumps)*(VLOOKUP(design_air_flow_aeration,blow_dim_table_cl,8)+2*space_pumps)+(num_aeration_blowers-1)*(VLOOKUP(design_air_flow_aeration,blow_dim_table_cl,7)+2*space_pumps)*(VLOOKUP(design_air_flow_aeration,blow_dim_table_cl,8)+space_pumps),0)) -> 14 | D133: square feet
A134: Blower footprint for backwash | C134: =IF(num_blowers=0,0,ROUNDUP((VLOOKUP(design_air_flow,blow_dim_table_cl,7)+2*space_pumps)*(VLOOKUP(design_air_flow,blow_dim_table_cl,8)+2*space_pumps)+(num_blowers-1)*(VLOOKUP(design_air_flow,blow_dim_table_cl,7)+2*space_pumps)*(VLOOKUP(design_air_flow,blow_dim_table_cl,8)+space_pumps),0)) -> 7 | D134: square feet
A135: Blower footprint for biomass seperation | C135: =IF(num_bio_blowers=0,0,ROUNDUP((VLOOKUP(design_air_flow_bio,blow_dim_table_cl,7)+2*space_pumps)*(VLOOKUP(design_air_flow_bio,blow_dim_table_cl,8)+2*space_pumps)+(num_bio_blowers-1)*(VLOOKUP(design_air_flow_bio,blow_dim_table_cl,7)+2*space_pumps)*(VLOOKUP(design_air_flow_bio,blow_dim_table_cl,8)+space_pumps),0)) -> 0 | D135: square feet
A136: Footprint for pumps | B136: pump_fp | C136: =C131+C129+C132+C130 -> 13 | D136: square feet
A137: Residuals holding tank footprint | B137: htank_fp | C137: =IF(res_holding<>"tanks",0,ROUNDUP((ht_diam+2*space_ht)^2+(htanks-1)*(ht_diam+2*space_ht)*(ht_diam+space_ht),0)) -> 0 | D137: square feet
A138: Residuals holding basin footprint | B138: hbasin_fp | C138: =IF(res_holding<>"basins",0,ROUNDUP(hbasins*hbasin_length*hbasin_width*2,0)) -> 72 | D138: square feet
A139: Footprint for Blowers | B139: blower_fp | C139: =C134+C135+C133 -> 21 | D139: square feet
A140: Electron donor storage tank footprint | B140: e_donor_fp | C140: =IF(e_donor_tanks=0,0,ROUNDUP((e_donor_st_diam+2*space_e_donor_st)^2+(e_donor_tanks-1)*(e_donor_st_diam+2*space_e_donor_st)*(e_donor_st_diam+space_e_donor_st),0)) -> 9 | D140: square feet
A141: Ammonium chloride storage tank footprint | B141: NH4Cl_donor_fp | C141: =IF(NH4Cl_tanks=0,0,ROUNDUP((NH4Cl_st_diam+2*space_NH4Cl_st)^2+(NH4Cl_tanks-1)*(NH4Cl_st_diam+2*space_NH4Cl_st)*(NH4Cl_st_diam+space_NH4Cl_st),0)) -> 0 | D141: square feet
A142: Phosphoric acid storage tank footprint | B142: H3PO4_donor_fp | C142: =IF(H3PO4_tanks=0,0,ROUNDUP((H3PO4_st_diam+2*space_H3PO4_st)^2+(H3PO4_tanks-1)*(H3PO4_st_diam+2*space_H3PO4_st)*(H3PO4_st_diam+space_H3PO4_st),0)) -> 3 | D142: square feet
A143: Hydrogen peroxide storage tank footprint | B143: H2O2_donor_fp | C143: =IF(H2O2_tanks=0,0,ROUNDUP((H2O2_st_diam+2*space_H2O2_st)^2+(H2O2_tanks-1)*(H2O2_st_diam+2*space_H2O2_st)*(H2O2_st_diam+space_H2O2_st),0)) -> 0 | D143: square feet
A144: Electron donor day tank footprint | B144: e_donor_day_fp | C144: =IF(e_donor_tanks=0,0,ROUNDUP((e_donor_st_diam+2*space_e_donor_st)^2+(e_donor_tanks-1)*(e_donor_st_diam+2*space_e_donor_st)*(e_donor_st_diam+space_e_donor_st),0)) -> 9 | D144: square feet
A145: Ammonium chloride day tank footprint | B145: NH4Cl_donor_day_fp | C145: =IF(NH4Cl_day_tanks=0,0,ROUNDUP((NH4Cl_dt_diam+2*space_NH4Cl_dt)^2+(NH4Cl_day_tanks-1)*(NH4Cl_dt_diam+2*space_NH4Cl_dt)*(NH4Cl_dt_diam+space_NH4Cl_dt),0)) -> 0 | D145: square feet
A146: Phosphoric acid day tank footprint | B146: H3PO4_donor_day_fp | C146: =IF(H3PO4_day_tanks=0,0,ROUNDUP((H3PO4_dt_diam+2*space_H3PO4_dt)^2+(H3PO4_day_tanks-1)*(H3PO4_dt_diam+2*space_H3PO4_dt)*(H3PO4_dt_diam+space_H3PO4_dt),0)) -> 0 | D146: square feet
A147: Hydrogen peroxide day tank footprint | B147: H2O2_donor_day_fp | C147: =IF(H2O2_day_tanks=0,0,ROUNDUP((H2O2_dt_diam+2*space_H2O2_dt)^2+(H2O2_day_tanks-1)*(H2O2_dt_diam+2*space_H2O2_dt)*(H2O2_dt_diam+space_H2O2_dt),0)) -> 0 | D147: square feet
A148: Ferric chloride storage tank footprint | B148: coag_fp | C148: =IF(coag_tanks=0,0,ROUNDUP((coag_st_diam+2*space_coag_st)^2+(coag_tanks-1)*(coag_st_diam+2*space_coag_st)*(coag_st_diam+space_coag_st),0)) -> 9 | D148: square feet
A149: Ferric chloride day tank footprint | B149: coag_day_fp | C149: =IF(coag_day_tanks=0,0,ROUNDUP((coag_dt_diam+2*space_coag_dt)^2+(coag_day_tanks-1)*(coag_dt_diam+2*space_coag_dt)*(coag_dt_diam+space_coag_dt),0)) -> 0 | D149: square feet
A150: Polymer storage tank footprint | B150: polymer_fp | C150: =IF(polymer_tanks=0,0,ROUNDUP((polymer_st_diam+2*space_polymer_st)^2+(polymer_tanks-1)*(polymer_st_diam+2*space_polymer_st)*(polymer_st_diam+space_polymer_st),0)) -> 9 | D150: square feet
A151: Footprint for polishing filter basins | B151: filter_fp | C151: =IF(filter_type=1,total_num_filt_basins*filt_basin_area*2,0) -> 0 | D151: square feet | E151: Two times basin area for walkways and equipment
A152: Footprint for solids thickeners | B152: thick_fp | C152: =IF(sed_sludge_method=0,0,IF(OUTPUT!L495=1,2*thick_basins*thick_basin_diam^2,ROUNDUP((thick_diam+2*space_thick)^2+(thick_tanks-1)*(thick_diam+2*space_thick)*(thick_diam+space_thick),0))) -> 0 | D152: square feet
A153: Footprint for belt press | B153: belt_press_fp | C153: =IF(num_belt_press>0,num_belt_press*(VLOOKUP(belt_press_size,belt_press_dimension,2,FALSE)/12*VLOOKUP(belt_press_size,belt_press_dimension,3,FALSE)/12),0) -> 0 | D153: square feet
A154: Footprint for vessels (large system assumptions) | C154: =IF(filter_type=2,IF(tank_geom_filt=1,ROUNDUP(((filt_comm_diam+2*space_vessels)^2+(final_num_tanks_filt-1)*(filt_comm_diam+2*space_vessels)*(filt_comm_diam+space_vessels)),0),IF(tank_geom_filt=2,ROUNDUP((filt_comm_diam+2*space_vessels)*(filt_comm_height_length+2*space_vessels)+(final_num_tanks_filt-1)*(filt_comm_height_length+2*space_vessels)*(filt_comm_diam+space_vessels),0))),0) -> 40 | D154: square feet
A155: Footprint for vessels (skid mounted small system) | C155: =IF(filter_type=2,IF(tank_geom_filt=1,ROUNDUP(((filt_comm_diam+2*space_vessels)^2+(final_num_tanks_filt-1)*(filt_comm_diam+2*space_vessels)*(filt_comm_diam+space_vessels/2)),0),IF(tank_geom_filt=2,ROUNDUP((filt_comm_diam+2*space_vessels)*(filt_comm_height_length+2*space_vessels)+(final_num_tanks_filt-1)*(filt_comm_height_length+2*space_vessels)*(filt_comm_diam+space_vessels/2),0))),0) -> 36 | D155: square feet | E155: Space between skid mounted vessels is reduced, outside access space remains the same
A156: Footprints for vessels | B156: filter_vessel_fp | C156: =IF(filter_type=2,IF(ss_cat2=1,C155,C154),0) -> 36 | D156: square feet
A157: Office space | B157: office_fp | C157: =VLOOKUP(design_flow,labor_table_cl,3)*IF(ss_cat2=1,space_office_small,space_office) -> 0 | D157: square feet
A158: Exact building footprint required | B158: fp_required | C158: =pump_fp+basin_fp+vessel_fp+back_tank_fp+office_fp+htank_fp+hbasin_fp+blower_fp+e_donor_fp+NH4Cl_donor_fp+H3PO4_donor_fp+H2O2_donor_fp+filter_fp+e_donor_day_fp+NH4Cl_donor_day_fp+H3PO4_donor_day_fp+H2O2_donor_day_fp+aer_tank_fp+coag_fp+coag_day_fp+polymer_fp+filter_vessel_fp+coag_mix_fp+thick_fp+belt_press_fp -> 241 | D158: square feet
A159: Footprint of building 1 | B159: build1_fp | C159: =ROUNDUP(IF(fp_required<add_2nd_building,fp_required,basin_fp+vessel_fp+filter_fp+filter_vessel_fp+aer_tank_fp),-1) -> 250 | D159: square feet | E159: If total footprint is large, building 1 contains vessels, aeration, and filters only. If total footprint is small, building 1 contains all equipment.
A160: Footprint of building 2 | B160: build2_fp | C160: =ROUNDUP(IF(fp_required<add_2nd_building,0,pump_fp+back_tank_fp+office_fp+htank_fp+hbasin_fp+e_donor_fp+NH4Cl_donor_fp+H3PO4_donor_fp+H2O2_donor_fp+blower_fp+e_donor_day_fp+NH4Cl_donor_day_fp+H3PO4_donor_day_fp+H2O2_donor_day_fp+coag_fp+coag_day_fp+polymer_fp+coag_mix_fp+thick_fp+belt_press_fp),-1) -> 0 | D160: square feet | E160: If total footprint is large, a second building is used for pumps, blowers, backwash, and chemical storage
A161: Total footprint | B161: total_fp | C161: =build1_fp+build2_fp -> 250 | D161: square feet
A162: Concrete Class A for vessel and pumps padding | B162: concrete | C162: =ROUNDUP((fp_required-office_fp)*IF(ss_cat2=1,pad_thick_small,pad_thick)/27,0) -> 3 | D162: cubic yards
A163: Facility dimension assumed square | B163: facil_length | C163: =ROUNDUP(total_fp^0.5,-1) -> 20 | D163: feet
A164: Additional footprint for evaporation pond | B164: ep_fp | C164: =IF(ep_cells=0,0,ROUNDUP((ep_cell_side+2*non_fire_buffer)^2+(ep_cells-1)*(ep_cell_side+2*non_fire_buffer)*(ep_cell_side+non_fire_buffer),0)) -> 0 | D164: square feet
A165: Land acquisition required | B165: land_required | C165: =ROUNDUP(((build1_fp)^0.5+(2*non_fire_buffer))*((build1_fp)^0.5+(non_fire_buffer+fire_buffer))+IF(build2_fp=0,0,((build2_fp)^0.5+(2*non_fire_buffer))*((build2_fp)^0.5+(non_fire_buffer+fire_buffer)))+ep_fp+solids_pad_area,-2)/43560 -> 0.05509641873 | D165: acres
A167: Land acquisition cost | B167: land_cost_cl | C167: =VLOOKUP(design_flow,land_cost_cl,3) -> 21165.71325 | D167: /acre

Sheet Instrumentation and Control
A1: Instrumentation and Control Calculations
A3: Calculation | B3: Range Name | C3: Value | D3: Units | E3: Guidance
A4: From Inputs
A5: Component level | B5: component_level | C5: =IF(component_level_I="high cost",2,IF(component_level_I="mid cost",1,"")) ->  | D5: blank = low cost, 1 = mid cost, 2 = high cost
A6: Manual system controls | B6: manual | C6: =IF(manual_I="manual",1,IF(manual_I="semi-automated",2,IF(manual_I="fully automated",3,IF(component_level="",1,IF(component_level=2,3,CHOOSE(ss_cat2,1,3,3)))))) -> 3 | D6: 1 = fully manual system, 2 = semi-automated system, 3 = fully automated system. | E6: Based on system size and component level (see cell comment), unless user overrides on input sheet
A8: Control Valves and Instrumentation
A9: Size of valves for influent and treated water lines | B9: in_valve_size | C9: =in_out_pipe_diam -> 1.5 | D9: inches
A10: Size of valves for contactor pipe line | B10: tank_valve_size | C10: =proc_pipe_diam -> 1.5 | D10: inches
A11: Size of valves for recycle pipe line | B11: rec_valve_size | C11: =recycle_pipe_diam -> 0 | D11: inches
A12: Size of valves for electron donor line | B12: e_donor_valve_size | C12: =e_donor_pipe_diam -> 0.5 | D12: inches
A13: Size of valves for ammonium chloride line | B13: NH4Cl_valve_size | C13: =NH4Cl_pipe_diam -> 0 | D13: inches
A14: Size of valves for phosphoric acid line | B14: H3PO4_valve_size | C14: =H3PO4_pipe_diam -> 0.5 | D14: inches
A15: Size of valves for aeration air line | B15: aer_tank_valve_size | C15: =IF(include_post_h2o2=1,0,aer_tank_pipe_diam) -> 1.5 | D15: inches
A16: Size of valves for backwash pipe line | B16: back_valve_size | C16: =back_pipe_diam -> 2.5 | D16: inches
A17: Size of valves for bypass pipe line | B17: bypass_valve_size | C17: =bp_pipe_diam -> 0 | D17: inches
A18: Size of valves for air scour line | B18: air_valve_size | C18: =IF(air_scour_I="yes",tank_valve_size,0) -> 1.5 | D18: inches | E18: =IF(air_scour_I="yes","assume equal to contactor valve size","") -> assume equal to contactor valve size
A19: Size of valves for biomass removal air line | B19: bio_air_valve_size | C19: =IF(design_type=3,tank_valve_size/2,0) -> 0 | D19: inches | E19: assume equal to half of contactor valve size
A20: Size of valves for aeration air line | B20: aeration_valve_size | C20: =C15/2 -> 0.75 | D20: inches | E20: =IF(air_scour_I="yes","assume equal to half of aeration tank valve size","") -> assume equal to half of aeration tank valve size
A21: Size of valves for hydrogen peroxide line | B21: H2O2_valve_size | C21: =H202_pipe_diam -> 0 | D21: inches
A22: Size of valves for ferric chloride line | B22: coag_valve_size | C22: =coag_pipe_diam -> 0.5 | D22: inches
A23: Size of valves for polymer line | B23: polymer_valve_size | C23: =polymer_pipe_diam -> 0.5 | D23: inches
A25: Number of MOVs on process line per vessel | B25: proc_MOV_vessel | C25: =VLOOKUP("proc_mov_vessel_par",valve_table,manual+1,FALSE) -> 2 | D25: valves/vessel
A26: Number of MOVs for process line | B26: tot_proc_MOVs | C26: =(IF(OR(design_type=1,design_type=3),final_num_tanks,total_num_basins)+IF(filter_type=1,total_num_filt_basins,final_num_tanks_filt)+coag_mix_tank)*proc_MOV_vessel+total_booster_pumps*VLOOKUP("proc_MOV_pump",valve_table,manual+1,FALSE) -> 12 | D26: valves
A27: Number of MOVs for recycle line | B27: tot_rec_MOVs | C27: =IF(design_type=3,VLOOKUP("tot_rec_movs",valve_table,manual+1,FALSE)+recycle_pumps*VLOOKUP("rec_MOV_pump",valve_table,manual+1,FALSE),0) -> 0 | D27: valves
A28: Number of MOVs for electron donor line | B28: tot_e_donor_MOVs | C28: =IF(OR(design_type=1,design_type=3),final_num_tanks,total_num_basins)*VLOOKUP("chem_MOV_vessel",valve_table,manual+1,FALSE)+(cm_pumps_e_donor)*VLOOKUP("chem_MOV_pump",valve_table,manual+1,FALSE)+VLOOKUP("chem_MOV_day",valve_table,manual+1,FALSE)*e_donor_day_tanks -> 7 | D28: valves
A29: Number of MOVs for ammonium chloride line | B29: tot_NH4Cl_MOVs | C29: =IF(OR(nutrient_option=2,nutrient_option=4),IF(OR(design_type=1,design_type=3),final_num_tanks,total_num_basins)*VLOOKUP("chem_MOV_vessel",valve_table,manual+1,FALSE)+(cm_pumps_NH4Cl)*VLOOKUP("chem_MOV_pump",valve_table,manual+1,FALSE)+VLOOKUP("chem_MOV_day",valve_table,manual+1,FALSE)*NH4Cl_day_tanks,0) -> 0 | D29: valves
A30: Number of MOVs for phosphoric acid line | B30: tot_H3PO4_MOVs | C30: =IF(OR(nutrient_option=3,nutrient_option=4),IF(OR(design_type=1,design_type=3),final_num_tanks,total_num_basins)*VLOOKUP("chem_MOV_vessel",valve_table,manual+1,FALSE)+(cm_pumps_H3PO4)*VLOOKUP("chem_MOV_pump",valve_table,manual+1,FALSE)+VLOOKUP("chem_MOV_day",valve_table,manual+1,FALSE)*H3PO4_day_tanks,0) -> 6 | D30: valves
A31: Number of MOVs for backwash line | B31: tot_back_MOVs | C31: =((IF(design_type=1,final_num_tanks,0)+total_num_basins+IF(filter_type=1,total_num_filt_basins,final_num_tanks_filt)))*VLOOKUP("back_MOV_vessel",valve_table,manual+1,FALSE)+backwash_pumps*VLOOKUP("back_MOV_pump",valve_table,manual+1,FALSE)+back_tanks*VLOOKUP("back_MOV_tank",valve_table,manual+1,FALSE)+IF(no_backwash=1,VLOOKUP("back_MOV_no_back",valve_table,manual+1,FALSE),0) -> 11 | D31: valves
A32: Number of MOVs for bypass line | B32: tot_bp_MOVs | C32: =IF(bp_pct=0,0,VLOOKUP("tot_bp_movs",valve_table,manual+1,FALSE)) -> 0 | D32: valves
A33: Number of MOVs for air scour | B33: tot_air_MOVs | C33: =IF(air_scour_I="yes",num_blowers*VLOOKUP("air_mov_blower",valve_table,manual+1,FALSE)+VLOOKUP("air_mov",valve_table,manual+1,FALSE),0) -> 2 | D33: valves
A34: Number of MOVs for biomass removal air line | B34: tot_bio_air_MOVs | C34: =IF(design_type=3,num_bio_blowers*VLOOKUP("air_mov_blower",valve_table,manual+1,FALSE)+VLOOKUP("air_mov",valve_table,manual+1,FALSE),0) -> 0 | D34: valves
A35: Number of MOVs for aeration air line | B35: tot_aeration_MOVs | C35: =IF(include_post_h2o2=1,0,num_aeration_blowers*VLOOKUP("air_mov_blower",valve_table,manual+1,FALSE)+VLOOKUP("air_mov",valve_table,manual+1,FALSE)) -> 3 | D35: valves
A36: Number of MOVs for hydrogen peroxide line | B36: tot_H2O2_MOVs | C36: =IF(include_post_h2o2=0,0,VLOOKUP("chem_MOV_post",valve_table,manual+1,FALSE)+(cm_pumps_H2O2)*VLOOKUP("chem_MOV_pump",valve_table,manual+1,FALSE)+VLOOKUP("chem_MOV_day",valve_table,manual+1,FALSE)*H2O2_day_tanks) -> 0 | D36: valves
A37: Number of MOVs for ferric chloride line | B37: tot_coag_MOVs | C37: =IF((coag_day_gal+coag_day_gal_filt)=0,0,VLOOKUP("chem_MOV_post",valve_table,manual+1,FALSE)+(cm_pumps_coag+cm_pumps_coag_filt)*VLOOKUP("chem_MOV_pump",valve_table,manual+1,FALSE)+VLOOKUP("chem_MOV_day",valve_table,manual+1,FALSE)*coag_day_tanks) -> 5 | D37: valves
A38: Number of MOVs for polymer addition line | B38: tot_polymer_MOVs | C38: =IF(polymer_day=0,0,(cm_pumps_polymer)*VLOOKUP("chem_MOV_pump",valve_table,manual+1,FALSE)) -> 4 | D38: valves
A39: Total number of MOVs | B39: tot_MOVs | C39: =SUM(C26:C38)+total_res_MOVs -> 53 | D39: valves
A41: Number of manual valves on process line per vessel | B41: proc_man_vessel_cont | C41: =VLOOKUP("proc_man_vessel_par",valve_table,manual+1,FALSE) -> 0 | D41: valves/vessel
A42: Number of manual valves for process line | B42: tot_proc_man | C42: =IF(OR(design_type=1,design_type=3),(proc_man_vessel_cont+proc_man_vessel)*final_num_tanks,proc_man_vessel_cont*total_num_basins)+proc_man_vessel_cont*(IF(filter_type=1,total_num_filt_basins,final_num_tanks_filt)+coag_mix_tank)+total_booster_pumps*VLOOKUP("proc_man_pump",valve_table,manual+1,FALSE) -> 2 | D42: valves
A43: Number of manual valves for electron donor line | B43: tot_e_donor_man | C43: =IF(OR(design_type=1,design_type=3),final_num_tanks,total_num_basins)*VLOOKUP("chem_man_vessel",valve_table,manual+1,FALSE)+(cm_pumps_e_donor)*VLOOKUP("chem_man_pump",valve_table,manual+1,FALSE)+VLOOKUP("chem_man_day",valve_table,manual+1,FALSE)*e_donor_day_tanks -> 0 | D43: valves
A44: Number of manual valves for ammonium chloride line | B44: tot_NH4Cl_man | C44: =IF(OR(nutrient_option=2,nutrient_option=4),IF(OR(design_type=1,design_type=3),final_num_tanks,total_num_basins)*VLOOKUP("chem_man_vessel",valve_table,manual+1,FALSE)+(cm_pumps_NH4Cl)*VLOOKUP("chem_man_pump",valve_table,manual+1,FALSE)+VLOOKUP("chem_man_day",valve_table,manual+1,FALSE)*NH4Cl_day_tanks,0) -> 0 | D44: valves
A45: Number of manual valves for phosphoric acid line | B45: tot_H3PO4_man | C45: =IF(OR(nutrient_option=3,nutrient_option=4),IF(OR(design_type=1,design_type=3),final_num_tanks,total_num_basins)*VLOOKUP("chem_man_vessel",valve_table,manual+1,FALSE)+(cm_pumps_H3PO4)*VLOOKUP("chem_man_pump",valve_table,manual+1,FALSE)+VLOOKUP("chem_man_day",valve_table,manual+1,FALSE)*H3PO4_day_tanks,0) -> 0 | D45: valves
A46: Number of manual valves for backwash line | B46: tot_back_man | C46: =(IF(OR(design_type=1,design_type=3),final_num_tanks,0)+total_num_basins+IF(filter_type=1,total_num_filt_basins,final_num_tanks_filt))*VLOOKUP("back_man_vessel",valve_table,manual+1,FALSE)+backwash_pumps*VLOOKUP("back_man_pump",valve_table,manual+1,FALSE)+back_tanks*VLOOKUP("back_man_tank",valve_table,manual+1,FALSE)+IF(no_backwash=1,VLOOKUP("back_man_no_back",valve_table,manual+1,FALSE),0) -> 0 | D46: valves
A47: Number of manual valves for recycle line | B47: tot_rec_man | C47: =IF(design_type=3,VLOOKUP("tot_man_rec",valve_table,manual+1,FALSE)+recycle_pumps*VLOOKUP("rec_man_pump",valve_table,manual+1,FALSE),0) -> 0 | D47: valves
A48: Number of manual valves for bypass line | B48: tot_bp_man | C48: =IF(bp_pct=0,0,VLOOKUP("tot_bp_man",valve_table,manual+1,FALSE)) -> 0 | D48: valves
A49: Number of manual valves for air scour | B49: tot_air_man | C49: =IF(air_scour_I="yes",num_blowers*VLOOKUP("air_man_blower",valve_table,manual+1,FALSE)+VLOOKUP("air_man",valve_table,manual+1,FALSE),0) -> 0 | D49: valves
A50: Number of manual valves for biomass removal air line | B50: tot_bio_air_man | C50: =IF(design_type=3,num_bio_blowers*VLOOKUP("air_man_blower",valve_table,manual+1,FALSE)+VLOOKUP("air_man",valve_table,manual+1,FALSE),0) -> 0 | D50: valves
A51: Number of manual valves for aeration air line | B51: tot_aeration_man | C51: =IF(include_post_h2o2=1,0,num_aeration_blowers*VLOOKUP("air_man_blower",valve_table,manual+1,FALSE)+VLOOKUP("air_man",valve_table,manual+1,FALSE)) -> 0 | D51: valves
